Workbook

Sheet Main
B10: 2021-10-27
B12: Sheet No. | C12: Template Name | D12: Summary
B13: 1 | C13: Future Intra | D13: For Intraday trading in F&O segment
B14: 2 | C14: Cash Intra | D14: For Intraday trading in cash market segment
B15: 3 | C15: Mid-cap Intra | D15: For Intraday trading in Mid-cap stocks
B16: 4 | C16: Bulk Deals | D16: Reveals Bulk Deals carried on NSE & BSE
B17: 5 | C17: Call Tracker
K27: `

Sheet Future Intra
M5: Back to Main Page
A6: FOR INTRA DAY TRADING | L6: =Main!B10 -> 2021-10-27
A9: Sr.no | B9: Sector | C9: Scrip | D9: Expiry Date | E9: CLOSE RATE | F9: Pivot Point | G9: Supports | J9: Resistances
E10: Point | F10: Point | G10: S1 | H10: S2 | I10: S3 | J10: R1 | K10: R2 | L10: R3 | M10: HIGH | N10: LOW | O10: OI | P10: % Change in OI
A11: 1 | B11: Index | C11: BANKNIFTY | D11: 2021-10-28 | E11: 41360.45 | F11: 41220.17 | G11: 41016.33 | H11: 40672.22 | I11: 40468.38 | J11: 41564.28 | K11: 41768.12 | L11: 42112.23 | M11: 41424 | N11: 40876.05 | O11: 2197350 | P11: 6.26%
A12: 2 | B12: Index | C12: NIFTY | D12: 2021-10-28 | E12: 18314.15 | F12: 18257.42 | G12: 18164.83 | H12: 18015.52 | I12: 17922.93 | J12: 18406.73 | K12: 18499.32 | L12: 18648.63 | M12: 18350 | N12: 18108.1 | O12: 12599250 | P12: -2.12%
A13: 3 | B13: Index | C13: FINNIFTY | D13: 2021-10-26 | E13: 19643.75 | F13: 19595.88 | G13: 19507.92 | H13: 19372.08 | I13: 19284.12 | J13: 19731.72 | K13: 19819.68 | L13: 19955.52 | M13: 19683.85 | N13: 19460.05 | O13: 3560 | P13: -3.26%
A14: 4 | B14: Chemical | C14: AARTIIND | D14: 2021-10-28 | E14: 1016.30 | F14: 1014.48 | G14: 1007.82 | H14: 999.33 | I14: 992.67 | J14: 1022.97 | K14: 1029.63 | L14: 1038.12 | M14: 1021.15 | N14: 1006 | O14: 4382600 | P14: 1.88%
A15: 5 | B15: Pharma | C15: ABBOTINDIA | D15: 2021-10-28 | E15: 20189.65 | F15: 20158.65 | G15: 20065.30 | H15: 19940.95 | I15: 19847.60 | J15: 20283.00 | K15: 20376.35 | L15: 20500.70 | M15: 20252 | N15: 20034.3 | O15: 38025 | P15: -0.91%
A16: 6 | B16: Textile | C16: ABFRL | D16: 2021-10-28 | E16: 261.05 | F16: 258.22 | G16: 253.33 | H16: 245.62 | I16: 240.73 | J16: 265.93 | K16: 270.82 | L16: 278.53 | M16: 263.1 | N16: 250.5 | O16: 11572600 | P16: 8.88%
A17: 7 | B17: Cement | C17: ACC | D17: 2021-10-28 | E17: 2242.35 | F17: 2233.72 | G17: 2219.03 | H17: 2195.72 | I17: 2181.03 | J17: 2257.03 | K17: 2271.72 | L17: 2295.03 | M17: 2248.4 | N17: 2210.4 | O17: 2830000 | P17: -4.08%
A18: 8 | B18: Others | C18: ADANIENT | D18: 2021-10-28 | E18: 1547.70 | F18: 1541.68 | G18: 1526.17 | H18: 1504.63 | I18: 1489.12 | J18: 1563.22 | K18: 1578.73 | L18: 1600.27 | M18: 1557.2 | N18: 1520.15 | O18: 24904000 | P18: -1.57%
A19: 9 | B19: Others | C19: ADANIPORTS | D19: 2021-10-28 | E19: 750.25 | F19: 749.63 | G19: 740.32 | H19: 730.38 | I19: 721.07 | J19: 759.57 | K19: 768.88 | L19: 778.82 | M19: 758.95 | N19: 739.7 | O19: 92156250 | P19: -0.03%
A20: 10 | B20: Pharma | C20: ALKEM | D20: 2021-10-28 | E20: 3709.15 | F20: 3704.77 | G20: 3684.63 | H20: 3660.12 | I20: 3639.98 | J20: 3729.28 | K20: 3749.42 | L20: 3773.93 | M20: 3724.9 | N20: 3680.25 | O20: 503800 | P20: 2.15%
A21: 11 | B21: Automobile | C21: AMARAJABAT | D21: 2021-10-28 | E21: 701.20 | F21: 699.53 | G21: 696.22 | H21: 691.23 | I21: 687.92 | J21: 704.52 | K21: 707.83 | L21: 712.82 | M21: 702.85 | N21: 694.55 | O21: 11397000 | P21: -0.15%
A22: 12 | B22: Cement | C22: AMBUJACEM | D22: 2021-10-28 | E22: 380.20 | F22: 378.33 | G22: 375.67 | H22: 371.13 | I22: 368.47 | J22: 382.87 | K22: 385.53 | L22: 390.07 | M22: 381 | N22: 373.8 | O22: 20532000 | P22: -0.35%
A23: 13 | B23: Pharma | C23: APLLTD | D23: 2021-10-28 | E23: 757.15 | F23: 755.07 | G23: 742.63 | H23: 728.12 | I23: 715.68 | J23: 769.58 | K23: 782.02 | L23: 796.53 | M23: 767.5 | N23: 740.55 | O23: 2848450 | P23: 11.14%
A24: 14 | B24: Others | C24: APOLLOHOSP | D24: 2021-10-28 | E24: 4265.55 | F24: 4240.77 | G24: 4174.78 | H24: 4084.02 | I24: 4018.03 | J24: 4331.53 | K24: 4397.52 | L24: 4488.28 | M24: 4306.75 | N24: 4150 | O24: 2936000 | P24: -4.08%
A25: 15 | B25: Automobile | C25: APOLLOTYRE | D25: 2021-10-28 | E25: 219.65 | F25: 218.78 | G25: 216.57 | H25: 213.48 | I25: 211.27 | J25: 221.87 | K25: 224.08 | L25: 227.17 | M25: 221 | N25: 215.7 | O25: 14820000 | P25: -2.31%
A26: 16 | B26: Automobile | C26: ASHOKLEY | D26: 2021-10-28 | E26: 143.55 | F26: 141.50 | G26: 138.90 | H26: 134.25 | I26: 131.65 | J26: 146.15 | K26: 148.75 | L26: 153.40 | M26: 144.1 | N26: 136.85 | O26: 41148000 | P26: -1.47%
A27: 17 | B27: FMCG | C27: ASIANPAINT | D27: 2021-10-28 | E27: 2984.60 | F27: 2971.08 | G27: 2914.52 | H27: 2844.43 | I27: 2787.87 | J27: 3041.17 | K27: 3097.73 | L27: 3167.82 | M27: 3027.65 | N27: 2901 | O27: 4990200 | P27: 4.90%
A28: 18 | B28: Others | C28: ASTRAL | D28: 2021-10-28 | E28: 2132.60 | F28: 2137.22 | G28: 2091.48 | H28: 2050.37 | I28: 2004.63 | J28: 2178.33 | K28: 2224.07 | L28: 2265.18 | M28: 2182.95 | N28: 2096.1 | O28: 867075 | P28: 3.01%
A29: 19 | B29: Banking | C29: AUBANK | D29: 2021-10-28 | E29: 1263.95 | F29: 1247.90 | G29: 1225.30 | H29: 1186.65 | I29: 1164.05 | J29: 1286.55 | K29: 1309.15 | L29: 1347.80 | M29: 1270.5 | N29: 1209.25 | O29: 4819500 | P29: 4.84%
A30: 20 | B30: Pharma | C30: AUROPHARMA | D30: 2021-10-28 | E30: 703.65 | F30: 697.80 | G30: 690.60 | H30: 677.55 | I30: 670.35 | J30: 710.85 | K30: 718.05 | L30: 731.10 | M30: 705 | N30: 684.75 | O30: 14733550 | P30: -3.20%
A31: 21 | B31: Banking | C31: AXISBANK | D31: 2021-10-28 | E31: 842.70 | F31: 839.58 | G31: 827.97 | H31: 813.23 | I31: 801.62 | J31: 854.32 | K31: 865.93 | L31: 880.67 | M31: 851.2 | N31: 824.85 | O31: 37098000 | P31: 5.91%
A32: 22 | B32: Automobile | C32: BAJAJ-AUTO | D32: 2021-10-28 | E32: 3800.70 | F32: 3790.05 | G32: 3771.10 | H32: 3741.50 | I32: 3722.55 | J32: 3819.65 | K32: 3838.60 | L32: 3868.20 | M32: 3809 | N32: 3760.45 | O32: 2661500 | P32: -2.16%
A33: 23 | B33: Finance | C33: BAJAJFINSV | D33: 2021-10-28 | E33: 18407.55 | F33: 18305.87 | G33: 18126.98 | H33: 17846.42 | I33: 17667.53 | J33: 18586.43 | K33: 18765.32 | L33: 19045.88 | M33: 18484.75 | N33: 18025.3 | O33: 769650 | P33: -1.30%
A34: 24 | B34: Finance | C34: BAJFINANCE | D34: 2021-10-28 | E34: 7878.25 | F34: 7823.18 | G34: 7716.37 | H34: 7554.48 | I34: 7447.67 | J34: 7985.07 | K34: 8091.88 | L34: 8253.77 | M34: 7930 | N34: 7661.3 | O34: 5266500 | P34: 5.06%
A35: 25 | B35: Automobile | C35: BALKRISIND | D35: 2021-10-28 | E35: 2489.90 | F35: 2462.13 | G35: 2427.82 | H35: 2365.73 | I35: 2331.42 | J35: 2524.22 | K35: 2558.53 | L35: 2620.62 | M35: 2496.45 | N35: 2400.05 | O35: 1571200 | P35: -4.45%
A36: 26 | B36: Banking | C36: BANDHANBNK | D36: 2021-10-28 | E36: 303.75 | F36: 305.08 | G36: 295.67 | H36: 287.58 | I36: 278.17 | J36: 313.17 | K36: 322.58 | L36: 330.67 | M36: 314.5 | N36: 297 | O36: 32450400 | P36: 23.39%
A37: 27 | B37: Banking | C37: BANKBARODA | D37: 2021-10-28 | E37: 99.65 | F37: 99.93 | G37: 96.27 | H37: 92.88 | I37: 89.22 | J37: 103.32 | K37: 106.98 | L37: 110.37 | M37: 103.6 | N37: 96.55 | O37: 176962500 | P37: -2.34%
A38: 28 | B38: FMCG | C38: BATAINDIA | D38: 2021-10-28 | E38: 1990.95 | F38: 1986.38 | G38: 1966.87 | H38: 1942.78 | I38: 1923.27 | J38: 2010.47 | K38: 2029.98 | L38: 2054.07 | M38: 2005.9 | N38: 1962.3 | O38: 1920050 | P38: -2.21%
A39: 29 | B39: Capital_Goods | C39: BEL | D39: 2021-10-28 | E39: 206.05 | F39: 204.75 | G39: 202.30 | H39: 198.55 | I39: 196.10 | J39: 208.50 | K39: 210.95 | L39: 214.70 | M39: 207.2 | N39: 201 | O39: 25505600 | P39: 6.44%
A40: 30 | B40: FMCG | C40: BERGEPAINT | D40: 2021-10-28 | E40: 734.65 | F40: 732.13 | G40: 719.07 | H40: 703.48 | I40: 690.42 | J40: 747.72 | K40: 760.78 | L40: 776.37 | M40: 745.2 | N40: 716.55 | O40: 5746400 | P40: 2.37%
A41: 31 | B41: Automobile | C41: BHARATFORG | D41: 2021-10-28 | E41: 787.80 | F41: 778.48 | G41: 767.32 | H41: 746.83 | I41: 735.67 | J41: 798.97 | K41: 810.13 | L41: 830.62 | M41: 789.65 | N41: 758 | O41: 10611000 | P41: 0.54%
A42: 32 | B42: Telecom | C42: BHARTIARTL | D42: 2021-10-28 | E42: 695.40 | F42: 697.22 | G42: 685.53 | H42: 675.67 | I42: 663.98 | J42: 707.08 | K42: 718.77 | L42: 728.63 | M42: 708.9 | N42: 687.35 | O42: 70649560 | P42: -4.38%
A43: 33 | B43: Capital_Goods | C43: BHEL | D43: 2021-10-28 | E43: 71.80 | F43: 70.98 | G43: 69.67 | H43: 67.53 | I43: 66.22 | J43: 73.12 | K43: 74.43 | L43: 76.57 | M43: 72.3 | N43: 68.85 | O43: 122094000 | P43: -1.20%
A44: 34 | B44: Pharma | C44: BIOCON | D44: 2021-10-28 | E44: 333.75 | F44: 329.90 | G44: 324.40 | H44: 315.05 | I44: 309.55 | J44: 339.25 | K44: 344.75 | L44: 354.10 | M44: 335.4 | N44: 320.55 | O44: 21491200 | P44: -5.84%
A45: 35 | B45: Automobile | C45: BOSCHLTD | D45: 2021-10-28 | E45: 17018.40 | F45: 16922.98 | G45: 16766.02 | H45: 16513.63 | I45: 16356.67 | J45: 17175.37 | K45: 17332.33 | L45: 17584.72 | M45: 17079.95 | N45: 16670.6 | O45: 156700 | P45: -3.27%
A46: 36 | B46: Oil_Gas | C46: BPCL | D46: 2021-10-28 | E46: 431.65 | F46: 432.60 | G46: 427.80 | H46: 423.95 | I46: 419.15 | J46: 436.45 | K46: 441.25 | L46: 445.10 | M46: 437.4 | N46: 428.75 | O46: 38583000 | P46: 5.06%
A47: 37 | B47: FMCG | C47: BRITANNIA | D47: 2021-10-28 | E47: 3685.60 | F47: 3663.50 | G47: 3628.15 | H47: 3570.70 | I47: 3535.35 | J47: 3720.95 | K47: 3756.30 | L47: 3813.75 | M47: 3698.85 | N47: 3606.05 | O47: 1209800 | P47: -4.95%
A48: 38 | B48: Pharma | C48: CADILAHC | D48: 2021-10-28 | E48: 509.25 | F48: 506.03 | G48: 501.57 | H48: 493.88 | I48: 489.42 | J48: 513.72 | K48: 518.18 | L48: 525.87 | M48: 510.5 | N48: 498.35 | O48: 19428200 | P48: -4.59%
A49: 39 | B49: Banking | C49: CANBK | D49: 2021-10-28 | E49: 193.45 | F49: 197.42 | G49: 187.03 | H49: 180.62 | I49: 170.23 | J49: 203.83 | K49: 214.22 | L49: 220.63 | M49: 207.8 | N49: 191 | O49: 75016800 | P49: 7.24%
A50: 40 | B50: Finance | C50: CANFINHOME | D50: 2021-10-28 | E50: 658.35 | F50: 658.82 | G50: 647.08 | H50: 635.82 | I50: 624.08 | J50: 670.08 | K50: 681.82 | L50: 693.08 | M50: 670.55 | N50: 647.55 | O50: 5380050 | P50: 0.15%
A51: 41 | B51: Finance | C51: CHOLAFIN | D51: 2021-10-28 | E51: 606.75 | F51: 598.80 | G51: 585.95 | H51: 565.15 | I51: 552.30 | J51: 619.60 | K51: 632.45 | L51: 653.25 | M51: 611.65 | N51: 578 | O51: 10398750 | P51: -0.83%
A52: 42 | B52: Pharma | C52: CIPLA | D52: 2021-10-28 | E52: 909.35 | F52: 907.45 | G52: 900.90 | H52: 892.45 | I52: 885.90 | J52: 915.90 | K52: 922.45 | L52: 930.90 | M52: 914 | N52: 899 | O52: 12496250 | P52: 1.17%
A53: 43 | B53: Others | C53: COALINDIA | D53: 2021-10-28 | E53: 175.15 | F53: 174.52 | G53: 172.63 | H53: 170.12 | I53: 168.23 | J53: 177.03 | K53: 178.92 | L53: 181.43 | M53: 176.4 | N53: 172 | O53: 77733600 | P53: 8.64%
A54: 44 | B54: Technology | C54: COFORGE | D54: 2021-10-28 | E54: 5077.35 | F54: 5082.48 | G54: 4954.97 | H54: 4832.58 | I54: 4705.07 | J54: 5204.87 | K54: 5332.38 | L54: 5454.77 | M54: 5210 | N54: 4960.1 | O54: 620200 | P54: -1.08%
A55: 45 | B55: FMCG | C55: COLPAL | D55: 2021-10-28 | E55: 1551.25 | F55: 1543.00 | G55: 1531.65 | H55: 1512.05 | I55: 1500.70 | J55: 1562.60 | K55: 1573.95 | L55: 1593.55 | M55: 1554.35 | N55: 1523.4 | O55: 3303300 | P55: 2.30%
A56: 46 | B56: Others | C56: CONCOR | D56: 2021-10-28 | E56: 678.00 | F56: 675.60 | G56: 670.65 | H56: 663.30 | I56: 658.35 | J56: 682.95 | K56: 687.90 | L56: 695.25 | M56: 680.55 | N56: 668.25 | O56: 7915032 | P56: -3.04%
A57: 47 | B57: Others | C57: COROMANDEL | D57: 2021-10-28 | E57: 810.00 | F57: 809.45 | G57: 801.90 | H57: 793.80 | I57: 786.25 | J57: 817.55 | K57: 825.10 | L57: 833.20 | M57: 817 | N57: 801.35 | O57: 1949375 | P57: 1.63%
A58: 48 | B58: Capital_Goods | C58: CROMPTON | D58: 2021-10-28 | E58: 465.75 | F58: 463.62 | G58: 455.33 | H58: 444.92 | I58: 436.63 | J58: 474.03 | K58: 482.32 | L58: 492.73 | M58: 471.9 | N58: 453.2 | O58: 1944800 | P58: -10.84%
A59: 49 | B59: Banking | C59: CUB | D59: 2021-10-28 | E59: 180.80 | F59: 179.77 | G59: 176.28 | H59: 171.77 | I59: 168.28 | J59: 184.28 | K59: 187.77 | L59: 192.28 | M59: 183.25 | N59: 175.25 | O59: 9780500 | P59: -7.75%
A60: 50 | B60: Capital_Goods | C60: CUMMINSIND | D60: 2021-10-28 | E60: 878.85 | F60: 878.40 | G60: 868.30 | H60: 857.75 | I60: 847.65 | J60: 888.95 | K60: 899.05 | L60: 909.60 | M60: 888.5 | N60: 867.85 | O60: 2959800 | P60: -0.98%
A61: 51 | B61: FMCG | C61: DABUR | D61: 2021-10-28 | E61: 582.90 | F61: 581.13 | G61: 577.32 | H61: 571.73 | I61: 567.92 | J61: 586.72 | K61: 590.53 | L61: 596.12 | M61: 584.95 | N61: 575.55 | O61: 14157500 | P61: 5.22%
A62: 52 | B62: Cement | C62: DALBHARAT | D62: 2021-10-28 | E62: 1939.65 | F62: 1921.23 | G62: 1893.47 | H62: 1847.28 | I62: 1819.52 | J62: 1967.42 | K62: 1995.18 | L62: 2041.37 | M62: 1949 | N62: 1875.05 | O62: 673750 | P62: -11.06%
A63: 53 | B63: Chemical | C63: DEEPAKNTR | D63: 2021-10-28 | E63: 2468.55 | F63: 2430.38 | G63: 2380.67 | H63: 2292.78 | I63: 2243.07 | J63: 2518.27 | K63: 2567.98 | L63: 2655.87 | M63: 2480.1 | N63: 2342.5 | O63: 3182500 | P63: -2.17%
A64: 54 | B64: Others | C64: DELTACORP | D64: 2021-10-28 | E64: 262.75 | F64: 260.53 | G64: 257.07 | H64: 251.38 | I64: 247.92 | J64: 266.22 | K64: 269.68 | L64: 275.37 | M64: 264 | N64: 254.85 | O64: 12185400 | P64: -1.65%
A65: 55 | B65: Pharma | C65: DIVISLAB | D65: 2021-10-28 | E65: 5017.00 | F65: 5018.82 | G65: 4967.98 | H65: 4918.97 | I65: 4868.13 | J65: 5067.83 | K65: 5118.67 | L65: 5167.68 | M65: 5069.65 | N65: 4969.8 | O65: 1971600 | P65: -5.14%
A66: 56 | B66: Others | C66: DIXON | D66: 2021-10-28 | E66: 5164.80 | F66: 5043.92 | G66: 4870.98 | H66: 4577.17 | I66: 4404.23 | J66: 5337.73 | K66: 5510.67 | L66: 5804.48 | M66: 5216.85 | N66: 4750.1 | O66: 550875 | P66: 2.18%
A67: 57 | B67: Realty | C67: DLF | D67: 2021-10-28 | E67: 416.20 | F67: 412.12 | G67: 406.83 | H67: 397.47 | I67: 392.18 | J67: 421.48 | K67: 426.77 | L67: 436.13 | M67: 417.4 | N67: 402.75 | O67: 38240400 | P67: -1.13%
A68: 58 | B68: Pharma | C68: DRREDDY | D68: 2021-10-28 | E68: 4673.55 | F68: 4669.57 | G68: 4637.23 | H68: 4600.92 | I68: 4568.58 | J68: 4705.88 | K68: 4738.22 | L68: 4774.53 | M68: 4701.9 | N68: 4633.25 | O68: 2860125 | P68: -0.11%
A69: 59 | B69: Automobile | C69: EICHERMOT | D69: 2021-10-28 | E69: 2600.85 | F69: 2597.55 | G69: 2576.40 | H69: 2551.95 | I69: 2530.80 | J69: 2622.00 | K69: 2643.15 | L69: 2667.60 | M69: 2618.7 | N69: 2573.1 | O69: 4389350 | P69: 6.11%
A70: 60 | B70: Automobile | C70: ESCORTS | D70: 2021-10-28 | E70: 1546.50 | F70: 1532.40 | G70: 1514.05 | H70: 1481.60 | I70: 1463.25 | J70: 1564.85 | K70: 1583.20 | L70: 1615.65 | M70: 1550.75 | N70: 1499.95 | O70: 7333700 | P70: -2.62%
A71: 61 | B71: Automobile | C71: EXIDEIND | D71: 2021-10-28 | E71: 176.80 | F71: 176.07 | G71: 174.83 | H71: 172.87 | I71: 171.63 | J71: 178.03 | K71: 179.27 | L71: 181.23 | M71: 177.3 | N71: 174.1 | O71: 33645600 | P71: -2.64%
A72: 62 | B72: Banking | C72: FEDERALBNK | D72: 2021-10-28 | E72: 102.05 | F72: 102.80 | G72: 100.90 | H72: 99.75 | I72: 97.85 | J72: 103.95 | K72: 105.85 | L72: 107.00 | M72: 104.7 | N72: 101.65 | O72: 103030000 | P72: -2.45%
A73: 63 | B73: Oil_Gas | C73: GAIL | D73: 2021-10-28 | E73: 151.95 | F73: 151.13 | G73: 149.92 | H73: 147.88 | I73: 146.67 | J73: 153.17 | K73: 154.38 | L73: 156.42 | M73: 152.35 | N73: 149.1 | O73: 58822300 | P73: 1.70%
A74: 64 | B74: Pharma | C74: GLENMARK | D74: 2021-10-28 | E74: 507.70 | F74: 501.65 | G74: 494.10 | H74: 480.50 | I74: 472.95 | J74: 515.25 | K74: 522.80 | L74: 536.40 | M74: 509.2 | N74: 488.05 | O74: 8439850 | P74: -4.92%
A75: 65 | B75: Infrastructure | C75: GMRINFRA | D75: 2021-10-28 | E75: 41.35 | F75: 41.20 | G75: 40.75 | H75: 40.15 | I75: 39.70 | J75: 41.80 | K75: 42.25 | L75: 42.85 | M75: 41.65 | N75: 40.6 | O75: 132502500 | P75: 2.44%
A76: 66 | B76: FMCG | C76: GODREJCP | D76: 2021-10-28 | E76: 964.95 | F76: 957.10 | G76: 944.40 | H76: 923.85 | I76: 911.15 | J76: 977.65 | K76: 990.35 | L76: 1010.90 | M76: 969.8 | N76: 936.55 | O76: 6143000 | P76: -1.16%
A77: 67 | B77: Realty | C77: GODREJPROP | D77: 2021-10-28 | E77: 2347.45 | F77: 2329.57 | G77: 2293.13 | H77: 2238.82 | I77: 2202.38 | J77: 2383.88 | K77: 2420.32 | L77: 2474.63 | M77: 2366 | N77: 2275.25 | O77: 2133950 | P77: -3.38%
A78: 68 | B78: Pharma | C78: GRANULES | D78: 2021-10-28 | E78: 318.30 | F78: 317.67 | G78: 315.43 | H78: 312.57 | I78: 310.33 | J78: 320.53 | K78: 322.77 | L78: 325.63 | M78: 319.9 | N78: 314.8 | O78: 11056150 | P78: -1.05%
A79: 69 | B79: Cement | C79: GRASIM | D79: 2021-10-28 | E79: 1744.00 | F79: 1738.10 | G79: 1710.20 | H79: 1676.40 | I79: 1648.50 | J79: 1771.90 | K79: 1799.80 | L79: 1833.60 | M79: 1766 | N79: 1704.3 | O79: 10454750 | P79: 1.32%
A80: 70 | B80: Oil_Gas | C80: GUJGASLTD | D80: 2021-10-28 | E80: 595.05 | F80: 591.08 | G80: 585.72 | H80: 576.38 | I80: 571.02 | J80: 600.42 | K80: 605.78 | L80: 615.12 | M80: 596.45 | N80: 581.75 | O80: 5500000 | P80: -0.61%
A81: 71 | B81: Others | C81: HAL | D81: 2021-10-28 | E81: 1324.85 | F81: 1324.23 | G81: 1313.67 | H81: 1302.48 | I81: 1291.92 | J81: 1335.42 | K81: 1345.98 | L81: 1357.17 | M81: 1334.8 | N81: 1313.05 | O81: 2978725 | P81: 1.80%
A82: 72 | B82: Capital_Goods | C82: HAVELLS | D82: 2021-10-28 | E82: 1286.60 | F82: 1282.97 | G82: 1266.08 | H82: 1245.57 | I82: 1228.68 | J82: 1303.48 | K82: 1320.37 | L82: 1340.88 | M82: 1299.85 | N82: 1262.45 | O82: 4365500 | P82: -0.72%
A83: 73 | B83: Technology | C83: HCLTECH | D83: 2021-10-28 | E83: 1169.65 | F83: 1169.62 | G83: 1156.18 | H83: 1142.72 | I83: 1129.28 | J83: 1183.08 | K83: 1196.52 | L83: 1209.98 | M83: 1183.05 | N83: 1156.15 | O83: 24756200 | P83: 3.35%
A84: 74 | B84: Finance | C84: HDFC | D84: 2021-10-28 | E84: 2909.90 | F84: 2911.43 | G84: 2890.72 | H84: 2871.53 | I84: 2850.82 | J84: 2930.62 | K84: 2951.33 | L84: 2970.52 | M84: 2932.15 | N84: 2892.25 | O84: 11150700 | P84: -2.82%
A85: 75 | B85: Finance | C85: HDFCAMC | D85: 2021-10-28 | E85: 2737.15 | F85: 2726.30 | G85: 2697.85 | H85: 2658.55 | I85: 2630.10 | J85: 2765.60 | K85: 2794.05 | L85: 2833.35 | M85: 2754.75 | N85: 2687 | O85: 3526400 | P85: -1.21%
A86: 76 | B86: Banking | C86: HDFCBANK | D86: 2021-10-28 | E86: 1658.15 | F86: 1660.95 | G86: 1646.25 | H86: 1634.35 | I86: 1619.65 | J86: 1672.85 | K86: 1687.55 | L86: 1699.45 | M86: 1675.65 | N86: 1649.05 | O86: 28249650 | P86: -5.17%
A87: 77 | B87: Finance | C87: HDFCLIFE | D87: 2021-10-28 | E87: 691.95 | F87: 690.85 | G87: 685.95 | H87: 679.95 | I87: 675.05 | J87: 696.85 | K87: 701.75 | L87: 707.75 | M87: 695.75 | N87: 684.85 | O87: 21591900 | P87: -2.55%
A88: 78 | B88: Automobile | C88: HEROMOTOCO | D88: 2021-10-28 | E88: 2704.00 | F88: 2696.32 | G88: 2681.88 | H88: 2659.77 | I88: 2645.33 | J88: 2718.43 | K88: 2732.87 | L88: 2754.98 | M88: 2710.75 | N88: 2674.2 | O88: 4554900 | P88: 0.27%
A89: 79 | B89: Metals | C89: HINDALCO | D89: 2021-10-28 | E89: 485.15 | F89: 481.25 | G89: 475.50 | H89: 465.85 | I89: 460.10 | J89: 490.90 | K89: 496.65 | L89: 506.30 | M89: 487 | N89: 471.6 | O89: 26477250 | P89: -2.27%
A90: 80 | B90: Oil_Gas | C90: HINDPETRO | D90: 2021-10-28 | E90: 332.60 | F90: 329.15 | G90: 322.60 | H90: 312.60 | I90: 306.05 | J90: 339.15 | K90: 345.70 | L90: 355.70 | M90: 335.7 | N90: 319.15 | O90: 25296300 | P90: 6.32%
A91: 81 | B91: FMCG | C91: HINDUNILVR | D91: 2021-10-28 | E91: 2442.95 | F91: 2443.00 | G91: 2421.15 | H91: 2399.35 | I91: 2377.50 | J91: 2464.80 | K91: 2486.65 | L91: 2508.45 | M91: 2464.85 | N91: 2421.2 | O91: 9036600 | P91: -1.98%
A92: 82 | B92: Finance | C92: IBULHSGFIN | D92: 2021-10-28 | E92: 227.20 | F92: 225.75 | G92: 221.55 | H92: 215.90 | I92: 211.70 | J92: 231.40 | K92: 235.60 | L92: 241.25 | M92: 229.95 | N92: 220.1 | O92: 37782800 | P92: -2.42%
A93: 83 | B93: Banking | C93: ICICIBANK | D93: 2021-10-28 | E93: 828.00 | F93: 830.17 | G93: 819.53 | H93: 811.07 | I93: 800.43 | J93: 838.63 | K93: 849.27 | L93: 857.73 | M93: 840.8 | N93: 821.7 | O93: 75893125 | P93: -7.91%
A94: 84 | B94: Finance | C94: ICICIGI | D94: 2021-10-28 | E94: 1506.15 | F94: 1505.47 | G94: 1494.23 | H94: 1482.32 | I94: 1471.08 | J94: 1517.38 | K94: 1528.62 | L94: 1540.53 | M94: 1516.7 | N94: 1493.55 | O94: 3329875 | P94: 0.88%
A95: 85 | B95: Finance | C95: ICICIPRULI | D95: 2021-10-28 | E95: 624.50 | F95: 623.65 | G95: 618.55 | H95: 612.60 | I95: 607.50 | J95: 629.60 | K95: 634.70 | L95: 640.65 | M95: 628.75 | N95: 617.7 | O95: 4792500 | P95: -0.47%
A96: 86 | B96: Telecom | C96: IDEA | D96: 2021-10-28 | E96: 10.40 | F96: 10.47 | G96: 10.18 | H96: 9.97 | I96: 9.68 | J96: 10.68 | K96: 10.97 | L96: 11.18 | M96: 10.75 | N96: 10.25 | O96: 827050000 | P96: 5.13%
A97: 87 | B97: Banking | C97: IDFCFIRSTB | D97: 2021-10-28 | E97: 53.00 | F97: 51.90 | G97: 50.60 | H97: 48.20 | I97: 46.90 | J97: 54.30 | K97: 55.60 | L97: 58.00 | M97: 53.2 | N97: 49.5 | O97: 189677000 | P97: -1.96%
A98: 88 | B98: Others | C98: IEX | D98: 2021-10-28 | E98: 737.90 | F98: 733.37 | G98: 715.53 | H98: 693.17 | I98: 675.33 | J98: 755.73 | K98: 773.57 | L98: 795.93 | M98: 751.2 | N98: 711 | O98: 14601250 | P98: -6.20%
A99: 89 | B99: Oil_Gas | C99: IGL | D99: 2021-10-28 | E99: 474.10 | F99: 472.18 | G99: 469.32 | H99: 464.53 | I99: 461.67 | J99: 476.97 | K99: 479.83 | L99: 484.62 | M99: 475.05 | N99: 467.4 | O99: 18418125 | P99: -3.12%
A100: 90 | B100: Infrastructure | C100: INDHOTEL | D100: 2021-10-28 | E100: 208.45 | F100: 208.67 | G100: 204.78 | H100: 201.12 | I100: 197.23 | J100: 212.33 | K100: 216.22 | L100: 219.88 | M100: 212.55 | N100: 205 | O100: 15054000 | P100: -0.10%
A101: 91 | B101: Cement | C101: INDIACEM | D101: 2021-10-28 | E101: 199.05 | F101: 197.78 | G101: 194.97 | H101: 190.88 | I101: 188.07 | J101: 201.87 | K101: 204.68 | L101: 208.77 | M101: 200.6 | N101: 193.7 | O101: 11649300 | P101: 0.60%
A102: 92 | B102: Others | C102: INDIAMART | D102: 2021-10-28 | E102: 7275.40 | F102: 7314.42 | G102: 7144.38 | H102: 7013.37 | I102: 6843.33 | J102: 7445.43 | K102: 7615.47 | L102: 7746.48 | M102: 7484.45 | N102: 7183.4 | O102: 283875 | P102: 12.72%
A103: 93 | B103: Others | C103: INDIGO | D103: 2021-10-28 | E103: 2027.25 | F103: 2017.22 | G103: 2000.43 | H103: 1973.62 | I103: 1956.83 | J103: 2044.03 | K103: 2060.82 | L103: 2087.63 | M103: 2034 | N103: 1990.4 | O103: 3758000 | P103: -1.83%
A104: 94 | B104: Banking | C104: INDUSINDBK | D104: 2021-10-28 | E104: 1156.95 | F104: 1163.92 | G104: 1132.68 | H104: 1108.42 | I104: 1077.18 | J104: 1188.18 | K104: 1219.42 | L104: 1243.68 | M104: 1195.15 | N104: 1139.65 | O104: 14625900 | P104: 6.21%
A105: 95 | B105: Telecom | C105: INDUSTOWER | D105: 2021-10-28 | E105: 282.05 | F105: 288.10 | G105: 272.20 | H105: 262.35 | I105: 246.45 | J105: 297.95 | K105: 313.85 | L105: 323.70 | M105: 304 | N105: 278.25 | O105: 17200400 | P105: -3.26%
A106: 96 | B106: Technology | C106: INFY | D106: 2021-10-28 | E106: 1707.85 | F106: 1709.03 | G106: 1692.37 | H106: 1676.88 | I106: 1660.22 | J106: 1724.52 | K106: 1741.18 | L106: 1756.67 | M106: 1725.7 | N106: 1693.55 | O106: 38385000 | P106: -3.90%
A107: 97 | B107: Oil_Gas | C107: IOC | D107: 2021-10-28 | E107: 131.65 | F107: 131.43 | G107: 130.37 | H107: 129.08 | I107: 128.02 | J107: 132.72 | K107: 133.78 | L107: 135.07 | M107: 132.5 | N107: 130.15 | O107: 39988000 | P107: 3.59%
A108: 98 | B108: Pharma | C108: IPCALAB | D108: 2021-10-28 | E108: 2198.15 | F108: 2213.28 | G108: 2149.87 | H108: 2101.58 | I108: 2038.17 | J108: 2261.57 | K108: 2324.98 | L108: 2373.27 | M108: 2276.7 | N108: 2165 | O108: 1403775 | P108: 14.69%
A109: 99 | B109: Others | C109: IRCTC | D109: 2021-10-28 | E109: 4203.15 | F109: 4217.45 | G109: 4020.70 | H109: 3838.25 | I109: 3641.50 | J109: 4399.90 | K109: 4596.65 | L109: 4779.10 | M109: 4414.2 | N109: 4035 | O109: 2483650 | P109: 5.99%
A110: 100 | B110: FMCG | C110: ITC | D110: 2021-10-28 | E110: 237.55 | F110: 236.68 | G110: 234.12 | H110: 230.68 | I110: 228.12 | J110: 240.12 | K110: 242.68 | L110: 246.12 | M110: 239.25 | N110: 233.25 | O110: 222393600 | P110: 3.38%
A111: 101 | B111: Metals | C111: JINDALSTEL | D111: 2021-10-28 | E111: 446.65 | F111: 440.77 | G111: 432.43 | H111: 418.22 | I111: 409.88 | J111: 454.98 | K111: 463.32 | L111: 477.53 | M111: 449.1 | N111: 426.55 | O111: 39617500 | P111: 0.38%
A112: 102 | B112: Cement | C112: JKCEMENT | D112: 2021-10-28 | E112: 3164.80 | F112: 3147.32 | G112: 3086.18 | H112: 3007.57 | I112: 2946.43 | J112: 3225.93 | K112: 3287.07 | L112: 3365.68 | M112: 3208.45 | N112: 3068.7 | O112: 122325 | P112: 11.84%
A113: 103 | B113: Metals | C113: JSWSTEEL | D113: 2021-10-28 | E113: 695.80 | F113: 689.82 | G113: 680.58 | H113: 665.37 | I113: 656.13 | J113: 705.03 | K113: 714.27 | L113: 729.48 | M113: 699.05 | N113: 674.6 | O113: 44556750 | P113: -4.00%
A114: 104 | B114: Others | C114: JUBLFOOD | D114: 2021-10-28 | E114: 3720.45 | F114: 3699.47 | G114: 3669.18 | H114: 3617.92 | I114: 3587.63 | J114: 3750.73 | K114: 3781.02 | L114: 3832.28 | M114: 3729.75 | N114: 3648.2 | O114: 1861500 | P114: -1.30%
A115: 105 | B115: Banking | C115: KOTAKBANK | D115: 2021-10-28 | E115: 2217.10 | F115: 2196.00 | G115: 2147.65 | H115: 2078.20 | I115: 2029.85 | J115: 2265.45 | K115: 2313.80 | L115: 2383.25 | M115: 2244.35 | N115: 2126.55 | O115: 11877600 | P115: 10.15%
A116: 106 | B116: Finance | C116: L&TFH | D116: 2021-10-28 | E116: 85.10 | F116: 83.88 | G116: 82.47 | H116: 79.83 | I116: 78.42 | J116: 86.52 | K116: 87.93 | L116: 90.57 | M116: 85.3 | N116: 81.25 | O116: 71356304 | P116: -10.93%
A117: 107 | B117: Others | C117: LALPATHLAB | D117: 2021-10-28 | E117: 3557.20 | F117: 3521.10 | G117: 3461.70 | H117: 3366.20 | I117: 3306.80 | J117: 3616.60 | K117: 3676.00 | L117: 3771.50 | M117: 3580.5 | N117: 3425.6 | O117: 865500 | P117: -18.66%
A118: 108 | B118: Finance | C118: LICHSGFIN | D118: 2021-10-28 | E118: 405.80 | F118: 404.15 | G118: 400.15 | H118: 394.50 | I118: 390.50 | J118: 409.80 | K118: 413.80 | L118: 419.45 | M118: 408.15 | N118: 398.5 | O118: 19400000 | P118: -1.61%
A119: 109 | B119: Capital_Goods | C119: LT | D119: 2021-10-28 | E119: 1793.25 | F119: 1793.63 | G119: 1778.42 | H119: 1763.58 | I119: 1748.37 | J119: 1808.47 | K119: 1823.68 | L119: 1838.52 | M119: 1808.85 | N119: 1778.8 | O119: 10023975 | P119: -1.26%
A120: 110 | B120: Technology | C120: LTI | D120: 2021-10-28 | E120: 6528.85 | F120: 6515.57 | G120: 6428.28 | H120: 6327.72 | I120: 6240.43 | J120: 6616.13 | K120: 6703.42 | L120: 6803.98 | M120: 6602.85 | N120: 6415 | O120: 629400 | P120: 3.17%
A121: 111 | B121: Technology | C121: LTTS | D121: 2021-10-28 | E121: 4578.10 | F121: 4595.08 | G121: 4482.27 | H121: 4386.43 | I121: 4273.62 | J121: 4690.92 | K121: 4803.73 | L121: 4899.57 | M121: 4707.9 | N121: 4499.25 | O121: 764200 | P121: 0.55%
A122: 112 | B122: Pharma | C122: LUPIN | D122: 2021-10-28 | E122: 932.70 | F122: 932.83 | G122: 925.82 | H122: 918.93 | I122: 911.92 | J122: 939.72 | K122: 946.73 | L122: 953.62 | M122: 939.85 | N122: 925.95 | O122: 9522550 | P122: -4.89%
A123: 113 | B123: Automobile | C123: M&M | D123: 2021-10-28 | E123: 897.80 | F123: 895.23 | G123: 888.67 | H123: 879.53 | I123: 872.97 | J123: 904.37 | K123: 910.93 | L123: 920.07 | M123: 901.8 | N123: 886.1 | O123: 8876700 | P123: 2.86%
A124: 114 | B124: Finance | C124: M&MFIN | D124: 2021-10-28 | E124: 188.60 | F124: 185.88 | G124: 182.22 | H124: 175.83 | I124: 172.17 | J124: 192.27 | K124: 195.93 | L124: 202.32 | M124: 189.55 | N124: 179.5 | O124: 21744000 | P124: -6.42%
A125: 115 | B125: Finance | C125: MANAPPURAM | D125: 2021-10-28 | E125: 205.15 | F125: 204.43 | G125: 200.62 | H125: 196.08 | I125: 192.27 | J125: 208.97 | K125: 212.78 | L125: 217.32 | M125: 208.25 | N125: 199.9 | O125: 21240000 | P125: -7.31%
A126: 116 | B126: FMCG | C126: MARICO | D126: 2021-10-28 | E126: 564.60 | F126: 561.37 | G126: 556.93 | H126: 549.27 | I126: 544.83 | J126: 569.03 | K126: 573.47 | L126: 581.13 | M126: 565.8 | N126: 553.7 | O126: 6528000 | P126: -4.45%
A127: 117 | B127: Automobile | C127: MARUTI | D127: 2021-10-28 | E127: 7302.60 | F127: 7277.82 | G127: 7210.73 | H127: 7118.87 | I127: 7051.78 | J127: 7369.68 | K127: 7436.77 | L127: 7528.63 | M127: 7344.9 | N127: 7185.95 | O127: 2557500 | P127: 2.43%
A128: 118 | B128: FMCG | C128: MCDOWELL-N | D128: 2021-10-28 | E128: 836.50 | F128: 837.08 | G128: 828.42 | H128: 820.33 | I128: 811.67 | J128: 845.17 | K128: 853.83 | L128: 861.92 | M128: 845.75 | N128: 829 | O128: 17100000 | P128: 1.79%
A129: 119 | B129: Others | C129: MCX | D129: 2021-10-28 | E129: 1709.55 | F129: 1691.12 | G129: 1659.18 | H129: 1608.82 | I129: 1576.88 | J129: 1741.48 | K129: 1773.42 | L129: 1823.78 | M129: 1723.05 | N129: 1640.75 | O129: 1762250 | P129: -7.61%
A130: 120 | B130: Pharma | C130: METROPOLIS | D130: 2021-10-28 | E130: 2920.95 | F130: 2883.93 | G130: 2826.92 | H130: 2732.88 | I130: 2675.87 | J130: 2977.97 | K130: 3034.98 | L130: 3129.02 | M130: 2940.95 | N130: 2789.9 | O130: 891400 | P130: 7.09%
A131: 121 | B131: Finance | C131: MFSL | D131: 2021-10-28 | E131: 980.05 | F131: 978.82 | G131: 960.73 | H131: 941.42 | I131: 923.33 | J131: 998.13 | K131: 1016.22 | L131: 1035.53 | M131: 996.9 | N131: 959.5 | O131: 2467400 | P131: 5.47%
A132: 122 | B132: Oil_Gas | C132: MGL | D132: 2021-10-28 | E132: 1008.50 | F132: 1000.00 | G132: 988.40 | H132: 968.30 | I132: 956.70 | J132: 1020.10 | K132: 1031.70 | L132: 1051.80 | M132: 1011.6 | N132: 979.9 | O132: 4557600 | P132: -2.81%
A133: 123 | B133: Technology | C133: MINDTREE | D133: 2021-10-28 | E133: 4551.80 | F133: 4528.68 | G133: 4472.42 | H133: 4393.03 | I133: 4336.77 | J133: 4608.07 | K133: 4664.33 | L133: 4743.72 | M133: 4584.95 | N133: 4449.3 | O133: 2436800 | P133: -1.12%
A134: 124 | B134: Automobile | C134: MOTHERSUMI | D134: 2021-10-28 | E134: 226.90 | F134: 225.20 | G134: 223.00 | H134: 219.10 | I134: 216.90 | J134: 229.10 | K134: 231.30 | L134: 235.20 | M134: 227.4 | N134: 221.3 | O134: 32812500 | P134: -1.32%
A135: 125 | B135: Technology | C135: MPHASIS | D135: 2021-10-28 | E135: 3251.50 | F135: 3262.25 | G135: 3187.70 | H135: 3123.90 | I135: 3049.35 | J135: 3326.05 | K135: 3400.60 | L135: 3464.40 | M135: 3336.8 | N135: 3198.45 | O135: 1333800 | P135: -2.86%
A136: 126 | B136: Automobile | C136: MRF | D136: 2021-10-28 | E136: 80339.35 | F136: 80073.87 | G136: 79483.43 | H136: 78627.52 | I136: 78037.08 | J136: 80929.78 | K136: 81520.22 | L136: 82376.13 | M136: 80664.3 | N136: 79217.95 | O136: 54790 | P136: -2.51%
A137: 127 | B137: Finance | C137: MUTHOOTFIN | D137: 2021-10-28 | E137: 1532.10 | F137: 1526.45 | G137: 1510.65 | H137: 1489.20 | I137: 1473.40 | J137: 1547.90 | K137: 1563.70 | L137: 1585.15 | M137: 1542.25 | N137: 1505 | O137: 3485250 | P137: 2.92%
A138: 128 | B138: Others | C138: NAM-INDIA | D138: 2021-10-28 | E138: 432.20 | F138: 433.45 | G138: 425.45 | H138: 418.70 | I138: 410.70 | J138: 440.20 | K138: 448.20 | L138: 454.95 | M138: 441.45 | N138: 426.7 | O138: 3246400 | P138: -0.34%
A139: 129 | B139: Metals | C139: NATIONALUM | D139: 2021-10-28 | E139: 107.00 | F139: 105.65 | G139: 103.65 | H139: 100.30 | I139: 98.30 | J139: 109.00 | K139: 111.00 | L139: 114.35 | M139: 107.65 | N139: 102.3 | O139: 99161000 | P139: 4.03%
A140: 130 | B140: Others | C140: NAUKRI | D140: 2021-10-28 | E140: 6082.35 | F140: 6053.08 | G140: 5955.12 | H140: 5827.88 | I140: 5729.92 | J140: 6180.32 | K140: 6278.28 | L140: 6405.52 | M140: 6151.05 | N140: 5925.85 | O140: 1083625 | P140: -1.52%
A141: 131 | B141: Chemical | C141: NAVINFLUOR | D141: 2021-10-28 | E141: 3468.50 | F141: 3454.83 | G141: 3411.67 | H141: 3354.83 | I141: 3311.67 | J141: 3511.67 | K141: 3554.83 | L141: 3611.67 | M141: 3498 | N141: 3398 | O141: 992475 | P141: 10.88%
A142: 132 | B142: FMCG | C142: NESTLEIND | D142: 2021-10-28 | E142: 19234.15 | F142: 19025.40 | G142: 18760.20 | H142: 18286.25 | I142: 18021.05 | J142: 19499.35 | K142: 19764.55 | L142: 20238.50 | M142: 19290.6 | N142: 18551.45 | O142: 270300 | P142: -6.87%
A143: 133 | B143: Metals | C143: NMDC | D143: 2021-10-28 | E143: 143.20 | F143: 142.25 | G143: 140.50 | H143: 137.80 | I143: 136.05 | J143: 144.95 | K143: 146.70 | L143: 149.40 | M143: 144 | N143: 139.55 | O143: 121913200 | P143: -5.46%
A144: 134 | B144: Power | C144: NTPC | D144: 2021-10-28 | E144: 143.45 | F144: 143.97 | G144: 142.18 | H144: 140.92 | I144: 139.13 | J144: 145.23 | K144: 147.02 | L144: 148.28 | M144: 145.75 | N144: 142.7 | O144: 53129700 | P144: -12.20%
A145: 135 | B145: Realty | C145: OBEROIRLTY | D145: 2021-10-28 | E145: 941.30 | F145: 931.00 | G145: 910.25 | H145: 879.20 | I145: 858.45 | J145: 962.05 | K145: 982.80 | L145: 1013.85 | M145: 951.75 | N145: 899.95 | O145: 1704500 | P145: -2.52%
A146: 136 | B146: Technology | C146: OFSS | D146: 2021-10-28 | E146: 4554.10 | F146: 4548.70 | G146: 4462.35 | H146: 4370.60 | I146: 4284.25 | J146: 4640.45 | K146: 4726.80 | L146: 4818.55 | M146: 4635.05 | N146: 4456.95 | O146: 943500 | P146: 0.91%
A147: 137 | B147: Oil_Gas | C147: ONGC | D147: 2021-10-28 | E147: 163.00 | F147: 162.48 | G147: 161.02 | H147: 159.03 | I147: 157.57 | J147: 164.47 | K147: 165.93 | L147: 167.92 | M147: 163.95 | N147: 160.5 | O147: 66905300 | P147: 5.13%
A148: 138 | B148: Textile | C148: PAGEIND | D148: 2021-10-28 | E148: 37617.30 | F148: 37601.83 | G148: 36716.67 | H148: 35816.03 | I148: 34930.87 | J148: 38502.47 | K148: 39387.63 | L148: 40288.27 | M148: 38487 | N148: 36701.2 | O148: 118410 | P148: 6.94%
A149: 139 | B149: Pharma | C149: PEL | D149: 2021-10-28 | E149: 2677.85 | F149: 2660.27 | G149: 2615.73 | H149: 2553.62 | I149: 2509.08 | J149: 2722.38 | K149: 2766.92 | L149: 2829.03 | M149: 2704.8 | N149: 2598.15 | O149: 3933875 | P149: -1.15%
A150: 140 | B150: Technology | C150: PERSISTENT | D150: 2021-10-28 | E150: 3921.00 | F150: 3943.27 | G150: 3803.13 | H150: 3685.27 | I150: 3545.13 | J150: 4061.13 | K150: 4201.27 | L150: 4319.13 | M150: 4083.4 | N150: 3825.4 | O150: 424800 | P150: 26.88%
A151: 141 | B151: Oil_Gas | C151: PETRONET | D151: 2021-10-28 | E151: 232.40 | F151: 231.38 | G151: 229.92 | H151: 227.43 | I151: 225.97 | J151: 233.87 | K151: 235.33 | L151: 237.82 | M151: 232.85 | N151: 228.9 | O151: 24654000 | P151: -3.58%
A152: 142 | B152: Finance | C152: PFC | D152: 2021-10-28 | E152: 137.80 | F152: 137.77 | G152: 135.78 | H152: 133.77 | I152: 131.78 | J152: 139.78 | K152: 141.77 | L152: 143.78 | M152: 139.75 | N152: 135.75 | O152: 51236800 | P152: 6.32%
A153: 143 | B153: Pharma | C153: PFIZER | D153: 2021-10-28 | E153: 4991.20 | F153: 4987.95 | G153: 4920.85 | H153: 4850.50 | I153: 4783.40 | J153: 5058.30 | K153: 5125.40 | L153: 5195.75 | M153: 5055.05 | N153: 4917.6 | O153: 229875 | P153: 2.45%
A154: 144 | B154: FMCG | C154: PIDILITIND | D154: 2021-10-28 | E154: 2318.00 | F154: 2312.42 | G154: 2284.83 | H154: 2251.67 | I154: 2224.08 | J154: 2345.58 | K154: 2373.17 | L154: 2406.33 | M154: 2340 | N154: 2279.25 | O154: 2363500 | P154: -0.65%
A155: 145 | B155: Chemical | C155: PIIND | D155: 2021-10-28 | E155: 3036.10 | F155: 3007.22 | G155: 2943.08 | H155: 2850.07 | I155: 2785.93 | J155: 3100.23 | K155: 3164.37 | L155: 3257.38 | M155: 3071.35 | N155: 2914.2 | O155: 1260750 | P155: -0.63%
A156: 146 | B156: Banking | C156: PNB | D156: 2021-10-28 | E156: 45.90 | F156: 46.28 | G156: 44.82 | H156: 43.73 | I156: 42.27 | J156: 47.37 | K156: 48.83 | L156: 49.92 | M156: 47.75 | N156: 45.2 | O156: 308800000 | P156: 15.40%
A157: 147 | B157: Others | C157: POLYCAB | D157: 2021-10-28 | E157: 2299.35 | F157: 2320.43 | G157: 2268.97 | H157: 2238.58 | I157: 2187.12 | J157: 2350.82 | K157: 2402.28 | L157: 2432.67 | M157: 2371.9 | N157: 2290.05 | O157: 1094100 | P157: 2.42%
A158: 148 | B158: Power | C158: POWERGRID | D158: 2021-10-28 | E158: 190.75 | F158: 191.13 | G158: 189.57 | H158: 188.38 | I158: 186.82 | J158: 192.32 | K158: 193.88 | L158: 195.07 | M158: 192.7 | N158: 189.95 | O158: 30856738 | P158: -9.90%
A159: 149 | B159: Media | C159: PVR | D159: 2021-10-28 | E159: 1763.35 | F159: 1767.05 | G159: 1733.35 | H159: 1703.35 | I159: 1669.65 | J159: 1797.05 | K159: 1830.75 | L159: 1860.75 | M159: 1800.75 | N159: 1737.05 | O159: 3184368 | P159: 1.93%
A160: 150 | B160: Cement | C160: RAMCOCEM | D160: 2021-10-28 | E160: 1018.35 | F160: 993.93 | G160: 962.97 | H160: 907.58 | I160: 876.62 | J160: 1049.32 | K160: 1080.28 | L160: 1135.67 | M160: 1024.9 | N160: 938.55 | O160: 2680900 | P160: -6.91%
A161: 151 | B161: Banking | C161: RBLBANK | D161: 2021-10-28 | E161: 211.50 | F161: 210.13 | G161: 206.77 | H161: 202.03 | I161: 198.67 | J161: 214.87 | K161: 218.23 | L161: 222.97 | M161: 213.5 | N161: 205.4 | O161: 29290000 | P161: 7.78%
A162: 152 | B162: Power | C162: RECLTD | D162: 2021-10-28 | E162: 152.15 | F162: 151.15 | G162: 148.90 | H162: 145.65 | I162: 143.40 | J162: 154.40 | K162: 156.65 | L162: 159.90 | M162: 153.4 | N162: 147.9 | O162: 33450000 | P162: -20.35%
A163: 153 | B163: Oil_Gas | C163: RELIANCE | D163: 2021-10-28 | E163: 2663.15 | F163: 2706.55 | G163: 2563.10 | H163: 2463.05 | I163: 2319.60 | J163: 2806.60 | K163: 2950.05 | L163: 3050.10 | M163: 2850 | N163: 2606.5 | O163: 32032250 | P163: -2.75%
A164: 154 | B164: Metals | C164: SAIL | D164: 2021-10-28 | E164: 120.00 | F164: 119.08 | G164: 117.17 | H164: 114.33 | I164: 112.42 | J164: 121.92 | K164: 123.83 | L164: 126.67 | M164: 121 | N164: 116.25 | O164: 171513000 | P164: -2.19%
A165: 155 | B165: Finance | C165: SBILIFE | D165: 2021-10-28 | E165: 1173.15 | F165: 1162.03 | G165: 1146.92 | H165: 1120.68 | I165: 1105.57 | J165: 1188.27 | K165: 1203.38 | L165: 1229.62 | M165: 1177.15 | N165: 1135.8 | O165: 9076500 | P165: -1.04%
A166: 156 | B166: Banking | C166: SBIN | D166: 2021-10-28 | E166: 513.95 | F166: 513.88 | G166: 508.52 | H166: 503.08 | I166: 497.72 | J166: 519.32 | K166: 524.68 | L166: 530.12 | M166: 519.25 | N166: 508.45 | O166: 90480000 | P166: 3.74%
A167: 157 | B167: Cement | C167: SHREECEM | D167: 2021-10-28 | E167: 27871.35 | F167: 27736.75 | G167: 27436.60 | H167: 27001.85 | I167: 26701.70 | J167: 28171.50 | K167: 28471.65 | L167: 28906.40 | M167: 28036.9 | N167: 27302 | O167: 175850 | P167: -2.13%
A168: 158 | B168: Capital_Goods | C168: SIEMENS | D168: 2021-10-28 | E168: 2171.00 | F168: 2170.93 | G168: 2152.37 | H168: 2133.73 | I168: 2115.17 | J168: 2189.57 | K168: 2208.13 | L168: 2226.77 | M168: 2189.5 | N168: 2152.3 | O168: 1631300 | P168: -1.05%
A169: 159 | B169: Textile | C169: SRF | D169: 2021-10-28 | E169: 2117.05 | F169: 2120.07 | G169: 2068.13 | H169: 2019.22 | I169: 1967.28 | J169: 2168.98 | K169: 2220.92 | L169: 2269.83 | M169: 2172 | N169: 2071.15 | O169: 3803750 | P169: -3.18%
A170: 160 | B170: Finance | C170: SRTRANSFIN | D170: 2021-10-28 | E170: 1530.00 | F170: 1539.98 | G170: 1489.12 | H170: 1448.23 | I170: 1397.37 | J170: 1580.87 | K170: 1631.73 | L170: 1672.62 | M170: 1590.85 | N170: 1499.1 | O170: 4103600 | P170: -1.69%
A171: 161 | B171: Pharma | C171: STAR | D171: 2021-10-28 | E171: 540.60 | F171: 538.88 | G171: 532.37 | H171: 524.13 | I171: 517.62 | J171: 547.12 | K171: 553.63 | L171: 561.87 | M171: 545.4 | N171: 530.65 | O171: 3289950 | P171: 2.05%
A172: 162 | B172: Pharma | C172: SUNPHARMA | D172: 2021-10-28 | E172: 815.35 | F172: 815.85 | G172: 807.60 | H172: 799.85 | I172: 791.60 | J172: 823.60 | K172: 831.85 | L172: 839.60 | M172: 824.1 | N172: 808.1 | O172: 30569000 | P172: -1.63%
A173: 163 | B173: Media | C173: SUNTV | D173: 2021-10-28 | E173: 568.00 | F173: 566.05 | G173: 558.50 | H173: 549.00 | I173: 541.45 | J173: 575.55 | K173: 583.10 | L173: 592.60 | M173: 573.6 | N173: 556.55 | O173: 14131500 | P173: -5.07%
A174: 164 | B174: Pharma | C174: SYNGENE | D174: 2021-10-28 | E174: 550.05 | F174: 554.88 | G174: 539.77 | H174: 529.48 | I174: 514.37 | J174: 565.17 | K174: 580.28 | L174: 590.57 | M174: 570 | N174: 544.6 | O174: 2107150 | P174: 10.47%
A175: 165 | B175: Chemical | C175: TATACHEM | D175: 2021-10-28 | E175: 1006.85 | F175: 1000.00 | G175: 988.60 | H175: 970.35 | I175: 958.95 | J175: 1018.25 | K175: 1029.65 | L175: 1047.90 | M175: 1011.4 | N175: 981.75 | O175: 10443000 | P175: -4.95%
A176: 166 | B176: FMCG | C176: TATACONSUM | D176: 2021-10-28 | E176: 810.55 | F176: 803.92 | G176: 794.08 | H176: 777.62 | I176: 767.78 | J176: 820.38 | K176: 830.22 | L176: 846.68 | M176: 813.75 | N176: 787.45 | O176: 11742300 | P176: 1.26%
A177: 167 | B177: Automobile | C177: TATAMOTORS | D177: 2021-10-28 | E177: 509.50 | F177: 501.30 | G177: 491.25 | H177: 473.00 | I177: 462.95 | J177: 519.55 | K177: 529.60 | L177: 547.85 | M177: 511.35 | N177: 483.05 | O177: 83439450 | P177: 1.80%
A178: 168 | B178: Power | C178: TATAPOWER | D178: 2021-10-28 | E178: 226.00 | F178: 224.43 | G178: 216.17 | H178: 206.33 | I178: 198.07 | J178: 234.27 | K178: 242.53 | L178: 252.37 | M178: 232.7 | N178: 214.6 | O178: 104685750 | P178: 9.14%
A179: 169 | B179: Metals | C179: TATASTEEL | D179: 2021-10-28 | E179: 1345.35 | F179: 1333.68 | G179: 1315.12 | H179: 1284.88 | I179: 1266.32 | J179: 1363.92 | K179: 1382.48 | L179: 1412.72 | M179: 1352.25 | N179: 1303.45 | O179: 44101400 | P179: -4.37%
A180: 170 | B180: Technology | C180: TCS | D180: 2021-10-28 | E180: 3495.10 | F180: 3505.75 | G180: 3473.70 | H180: 3452.30 | I180: 3420.25 | J180: 3527.15 | K180: 3559.20 | L180: 3580.60 | M180: 3537.8 | N180: 3484.35 | O180: 17654100 | P180: 4.09%
A181: 171 | B181: Technology | C181: TECHM | D181: 2021-10-28 | E181: 1561.20 | F181: 1576.97 | G181: 1524.98 | H181: 1488.77 | I181: 1436.78 | J181: 1613.18 | K181: 1665.17 | L181: 1701.38 | M181: 1628.95 | N181: 1540.75 | O181: 11740800 | P181: -9.50%
A182: 172 | B182: FMCG | C182: TITAN | D182: 2021-10-28 | E182: 2464.80 | F182: 2438.57 | G182: 2401.13 | H182: 2337.47 | I182: 2300.03 | J182: 2502.23 | K182: 2539.67 | L182: 2603.33 | M182: 2476 | N182: 2374.9 | O182: 7136250 | P182: 7.33%
A183: 173 | B183: Pharma | C183: TORNTPHARM | D183: 2021-10-28 | E183: 2952.70 | F183: 3003.57 | G183: 2891.23 | H183: 2829.77 | I183: 2717.43 | J183: 3065.03 | K183: 3177.37 | L183: 3238.83 | M183: 3115.9 | N183: 2942.1 | O183: 666750 | P183: -1.22%
A184: 174 | B184: Power | C184: TORNTPOWER | D184: 2021-10-28 | E184: 499.05 | F184: 497.85 | G184: 489.55 | H184: 480.05 | I184: 471.75 | J184: 507.35 | K184: 515.65 | L184: 525.15 | M184: 506.15 | N184: 488.35 | O184: 3892500 | P184: 5.49%
A185: 175 | B185: Others | C185: TRENT | D185: 2021-10-28 | E185: 1044.85 | F185: 1039.28 | G185: 1024.62 | H185: 1004.38 | I185: 989.72 | J185: 1059.52 | K185: 1074.18 | L185: 1094.42 | M185: 1053.95 | N185: 1019.05 | O185: 2156875 | P185: 4.31%
A186: 176 | B186: Automobile | C186: TVSMOTOR | D186: 2021-10-28 | E186: 625.90 | F186: 617.42 | G186: 605.83 | H186: 585.77 | I186: 574.18 | J186: 637.48 | K186: 649.07 | L186: 669.13 | M186: 629 | N186: 597.35 | O186: 7588000 | P186: 0.17%
A187: 177 | B187: FMCG | C187: UBL | D187: 2021-10-28 | E187: 1663.30 | F187: 1655.52 | G187: 1639.43 | H187: 1615.57 | I187: 1599.48 | J187: 1679.38 | K187: 1695.47 | L187: 1719.33 | M187: 1671.6 | N187: 1631.65 | O187: 1701000 | P187: 6.95%
A188: 178 | B188: Cement | C188: ULTRACEMCO | D188: 2021-10-28 | E188: 7276.60 | F188: 7241.03 | G188: 7183.12 | H188: 7089.63 | I188: 7031.72 | J188: 7334.52 | K188: 7392.43 | L188: 7485.92 | M188: 7298.95 | N188: 7147.55 | O188: 2459200 | P188: -4.23%
A189: 179 | B189: Chemical | C189: UPL | D189: 2021-10-28 | E189: 714.85 | F189: 707.78 | G189: 698.42 | H189: 681.98 | I189: 672.62 | J189: 724.22 | K189: 733.58 | L189: 750.02 | M189: 717.15 | N189: 691.35 | O189: 26146900 | P189: -1.83%
A190: 180 | B190: Metals | C190: VEDL | D190: 2021-10-28 | E190: 330.25 | F190: 327.65 | G190: 322.85 | H190: 315.45 | I190: 310.65 | J190: 335.05 | K190: 339.85 | L190: 347.25 | M190: 332.45 | N190: 320.25 | O190: 132413400 | P190: 1.83%
A191: 181 | B191: Capital_Goods | C191: VOLTAS | D191: 2021-10-28 | E191: 1191.85 | F191: 1188.68 | G191: 1179.37 | H191: 1166.88 | I191: 1157.57 | J191: 1201.17 | K191: 1210.48 | L191: 1222.97 | M191: 1198 | N191: 1176.2 | O191: 2773000 | P191: 2.48%
A192: 182 | B192: Technology | C192: WIPRO | D192: 2021-10-28 | E192: 669.65 | F192: 671.45 | G192: 663.80 | H192: 657.95 | I192: 650.30 | J192: 677.30 | K192: 684.95 | L192: 690.80 | M192: 679.1 | N192: 665.6 | O192: 30672000 | P192: 1.42%
A193: 183 | B193: Media | C193: ZEEL | D193: 2021-10-28 | E193: 317.70 | F193: 314.48 | G193: 302.92 | H193: 288.13 | I193: 276.57 | J193: 329.27 | K193: 340.83 | L193: 355.62 | M193: 326.05 | N193: 299.7 | O193: 76485000 | P193: -0.95%
A203: Pivot Point: This is trigger point for intra day buy/sell based on the price range of the previous day
A204: As per the tool,the trader should take BUY position just above Pivot and keep the stop loss of pivot point and the first target would be Resistance 1(R1)
A205: If R1 is crossed then R2 becomes the next target with stop loss of at R1
A206: Similarly if price goes below pivot point then the trader should sell and keep a stop loss of pivot point and the first target would be S1
A207: If S1 is crossed then S2 becomes the next target with stop loss of at S1
A209: Disclaimer:
A210: This document has been prepared by the Retail Research Desk of Asit C Mehta
A211: Investment Intermediates Ltd. and is meant for use of the recipient only
A212: and is not for circulation. This document is not to be reported or
A213: copied or made available to others. It should not be considered to be
A214: taken as an offer to sell or a solicitation to buy any security. The
A215: information contained herein is from sources believed reliable. We do
A216: not represent that it is accurate or complete and it should not be
... 2 more rows

Sheet Cash Intra
M5: Back to Main Page
A6: FOR INTRA DAY TRADING | K6: =Main!B10 -> 2021-10-27
A8: Sr.no | C8: CLOSE RATE | D8: Pivot Point | E8: Supports | H8: Resistances
E9: S1 | F9: S2 | G9: S3 | H9: R1 | I9: R2 | J9: R3 | K9: HIGH | L9: LOW | M9: Total Trade Quanity in Lakhs
A10: 1 | B10: Nifty 50 | C10: 18268.4 | D10: 18226.05 | E10: 18141.65 | F10: 18014.90 | G10: 17930.50 | H10: 18352.80 | I10: 18437.20 | J10: 18563.95 | K10: 18310.45 | L10: 18099.3
A11: 2 | B11: Nifty Bank | C11: 41238.3 | D11: 41144.90 | E11: 40922.55 | F11: 40606.80 | G11: 40384.45 | H11: 41460.65 | I11: 41683.00 | J11: 41998.75 | K11: 41367.25 | L11: 40829.15
A12: 3 | B12: Nifty CPSE | C12: 2401.7 | D12: 2398.88 | E12: 2389.32 | F12: 2376.93 | G12: 2367.37 | H12: 2411.27 | I12: 2420.83 | J12: 2433.22 | K12: 2408.45 | L12: 2386.5
A13: 4 | B13: Nifty Infra | C13: 5169.3 | D13: 5154.57 | E13: 5131.38 | F13: 5093.47 | G13: 5070.28 | H13: 5192.48 | I13: 5215.67 | J13: 5253.58 | K13: 5177.75 | L13: 5116.65
A14: 5 | B14: Nifty IT | C14: 35162.35 | D14: 35273.32 | E14: 34846.78 | F14: 34531.22 | G14: 34104.68 | H14: 35588.88 | I14: 36015.42 | J14: 36330.98 | K14: 35699.85 | L14: 34957.75
A15: 6 | B15: Nifty PSE | C15: 4176.3 | D15: 4171.07 | E15: 4153.43 | F15: 4130.57 | G15: 4112.93 | H15: 4193.93 | I15: 4211.57 | J15: 4234.43 | K15: 4188.7 | L15: 4148.2
A16: 7 | B16: Nifty Midcap 50 | C16: 8641.65 | D16: 8590.70 | E16: 8524.80 | F16: 8407.95 | G16: 8342.05 | H16: 8707.55 | I16: 8773.45 | J16: 8890.30 | K16: 8656.6 | L16: 8473.85
A17: 8 | B17: ACC | C17: 2236.3 | D17: 2230.42 | E17: 2215.88 | F17: 2195.47 | G17: 2180.93 | H17: 2250.83 | I17: 2265.37 | J17: 2285.78 | K17: 2244.95 | L17: 2210 | M17: 4.84377
A18: 9 | B18: AUBANK | C18: 1260.95 | D18: 1245.75 | E18: 1223.05 | F18: 1185.15 | G18: 1162.45 | H18: 1283.65 | I18: 1306.35 | J18: 1344.25 | K18: 1268.45 | L18: 1207.85 | M18: 22.64912
A19: 10 | B19: AARTIIND | C19: 1014.45 | D19: 1012.13 | E19: 1005.32 | F19: 996.18 | G19: 989.37 | H19: 1021.27 | I19: 1028.08 | J19: 1037.22 | K19: 1018.95 | L19: 1003 | M19: 4.56876
A20: 11 | B20: ABBOTINDIA | C20: 20205.2 | D20: 20163.78 | E20: 20041.42 | F20: 19877.63 | G20: 19755.27 | H20: 20327.57 | I20: 20449.93 | J20: 20613.72 | K20: 20286.15 | L20: 20000 | M20: 0.29284
A21: 12 | B21: ADANIENT | C21: 1543.85 | D21: 1540.67 | E21: 1524.08 | F21: 1504.32 | G21: 1487.73 | H21: 1560.43 | I21: 1577.02 | J21: 1596.78 | K21: 1557.25 | L21: 1520.9 | M21: 16.61783
A22: 13 | B22: ADANIGREEN | C22: 1179.95 | D22: 1183.92 | E22: 1168.03 | F22: 1156.12 | G22: 1140.23 | H22: 1195.83 | I22: 1211.72 | J22: 1223.63 | K22: 1199.8 | L22: 1172 | M22: 1.38432
A23: 14 | B23: ADANIPORTS | C23: 749.9 | D23: 749.50 | E23: 740.45 | F23: 731.00 | G23: 721.95 | H23: 758.95 | I23: 768.00 | J23: 777.45 | K23: 758.55 | L23: 740.05 | M23: 30.93933
A24: 15 | B24: ATGL | C24: 1434.05 | D24: 1438.42 | E24: 1406.83 | F24: 1379.62 | G24: 1348.03 | H24: 1465.63 | I24: 1497.22 | J24: 1524.43 | K24: 1470 | L24: 1411.2 | M24: 5.93252
A25: 16 | B25: ADANITRANS | C25: 1854.85 | D25: 1851.60 | E25: 1803.25 | F25: 1751.65 | G25: 1703.30 | H25: 1903.20 | I25: 1951.55 | J25: 2003.15 | K25: 1899.95 | L25: 1800 | M25: 0.62879
A26: 17 | B26: ABCAPITAL | C26: 100.3 | D26: 99.95 | E26: 98.30 | F26: 96.30 | G26: 94.65 | H26: 101.95 | I26: 103.60 | J26: 105.60 | K26: 101.6 | L26: 97.95 | M26: 26.88911
A27: 18 | B27: ABFRL | C27: 260.25 | D27: 257.05 | E27: 252.20 | F27: 244.15 | G27: 239.30 | H27: 265.10 | I27: 269.95 | J27: 278.00 | K27: 261.9 | L27: 249 | M27: 32.99448
A28: 19 | B28: AJANTPHARM | C28: 2117.85 | D28: 2131.00 | E28: 2088.05 | F28: 2058.25 | G28: 2015.30 | H28: 2160.80 | I28: 2203.75 | J28: 2233.55 | K28: 2173.95 | L28: 2101.2 | M28: 0.34334
A29: 20 | B29: APLLTD | C29: 756.95 | D29: 755.05 | E29: 742.90 | F29: 728.85 | G29: 716.70 | H29: 769.10 | I29: 781.25 | J29: 795.30 | K29: 767.2 | L29: 741 | M29: 2.36099
A30: 21 | B30: ALKEM | C30: 3695.85 | D30: 3696.95 | E30: 3669.10 | F30: 3642.35 | G30: 3614.50 | H30: 3723.70 | I30: 3751.55 | J30: 3778.30 | K30: 3724.8 | L30: 3670.2 | M30: 0.84404
A31: 22 | B31: AMARAJABAT | C31: 699.85 | D31: 698.27 | E31: 694.18 | F31: 688.52 | G31: 684.43 | H31: 703.93 | I31: 708.02 | J31: 713.68 | K31: 702.35 | L31: 692.6 | M31: 7.32385
A32: 23 | B32: AMBUJACEM | C32: 380.35 | D32: 378.30 | E32: 375.30 | F32: 370.25 | G32: 367.25 | H32: 383.35 | I32: 386.35 | J32: 391.40 | K32: 381.3 | L32: 373.25 | M32: 34.27318
A33: 24 | B33: APOLLOHOSP | C33: 4267.95 | D33: 4237.33 | E33: 4166.17 | F33: 4064.38 | G33: 3993.22 | H33: 4339.12 | I33: 4410.28 | J33: 4512.07 | K33: 4308.5 | L33: 4135.55 | M33: 7.9045
A34: 25 | B34: APOLLOTYRE | C34: 219.05 | D34: 218.73 | E34: 216.07 | F34: 213.08 | G34: 210.42 | H34: 221.72 | I34: 224.38 | J34: 227.37 | K34: 221.4 | L34: 215.75 | M34: 32.81444
A35: 26 | B35: ASHOKLEY | C35: 143.35 | D35: 141.40 | E35: 138.85 | F35: 134.35 | G35: 131.80 | H35: 145.90 | I35: 148.45 | J35: 152.95 | K35: 143.95 | L35: 136.9 | M35: 125.17839
A36: 27 | B36: ASIANPAINT | C36: 2969.8 | D36: 2963.93 | E36: 2903.87 | F36: 2837.93 | G36: 2777.87 | H36: 3029.87 | I36: 3089.93 | J36: 3155.87 | K36: 3024 | L36: 2898 | M36: 19.88263
A37: 28 | B37: AUROPHARMA | C37: 703.5 | D37: 697.47 | E37: 689.43 | F37: 675.37 | G37: 667.33 | H37: 711.53 | I37: 719.57 | J37: 733.63 | K37: 705.5 | L37: 683.4 | M37: 17.17288
A38: 29 | B38: DMART | C38: 4568.5 | D38: 4510.83 | E38: 4422.67 | F38: 4276.83 | G38: 4188.67 | H38: 4656.67 | I38: 4744.83 | J38: 4890.67 | K38: 4599 | L38: 4365 | M38: 6.37834
A39: 30 | B39: AXISBANK | C39: 841.9 | D39: 839.02 | E39: 826.38 | F39: 810.87 | G39: 798.23 | H39: 854.53 | I39: 867.17 | J39: 882.68 | K39: 851.65 | L39: 823.5 | M39: 167.71909
A40: 31 | B40: BAJAJ-AUTO | C40: 3791.75 | D40: 3788.60 | E40: 3765.40 | F40: 3739.05 | G40: 3715.85 | H40: 3814.95 | I40: 3838.15 | J40: 3864.50 | K40: 3811.8 | L40: 3762.25 | M40: 1.7005
A41: 32 | B41: BAJFINANCE | C41: 7855.65 | D41: 7800.57 | E41: 7706.18 | F41: 7556.72 | G41: 7462.33 | H41: 7950.03 | I41: 8044.42 | J41: 8193.88 | K41: 7894.95 | L41: 7651.1 | M41: 16.60575
A42: 33 | B42: BAJAJFINSV | C42: 18353.35 | D42: 18259.47 | E42: 18068.93 | F42: 17784.52 | G42: 17593.98 | H42: 18543.88 | I42: 18734.42 | J42: 19018.83 | K42: 18450 | L42: 17975.05 | M42: 2.96749
A43: 34 | B43: BAJAJHLDNG | C43: 4725.5 | D43: 4735.53 | E43: 4693.07 | F43: 4660.63 | G43: 4618.17 | H43: 4767.97 | I43: 4810.43 | J43: 4842.87 | K43: 4778 | L43: 4703.1 | M43: 0.10372
A44: 35 | B44: BALKRISIND | C44: 2492.2 | D44: 2459.20 | E44: 2413.50 | F44: 2334.80 | G44: 2289.10 | H44: 2537.90 | I44: 2583.60 | J44: 2662.30 | K44: 2504.9 | L44: 2380.5 | M44: 5.50532
A45: 36 | B45: BANDHANBNK | C45: 305.4 | D45: 306.80 | E45: 297.80 | F45: 290.20 | G45: 281.20 | H45: 314.40 | I45: 323.40 | J45: 331.00 | K45: 315.8 | L45: 299.2 | M45: 112.08268
A46: 37 | B46: BANKBARODA | C46: 99.9 | D46: 99.93 | E46: 96.47 | F46: 93.03 | G46: 89.57 | H46: 103.37 | I46: 106.83 | J46: 110.27 | K46: 103.4 | L46: 96.5 | M46: 1482.11296
A47: 38 | B47: BANKINDIA | C47: 61.85 | D47: 62.05 | E47: 60.85 | F47: 59.85 | G47: 58.65 | H47: 63.05 | I47: 64.25 | J47: 65.25 | K47: 63.25 | L47: 61.05 | M47: 138.2613
A48: 39 | B48: BATAINDIA | C48: 1989.5 | D48: 1983.77 | E48: 1962.73 | F48: 1935.97 | G48: 1914.93 | H48: 2010.53 | I48: 2031.57 | J48: 2058.33 | K48: 2004.8 | L48: 1957 | M48: 2.74514
A49: 40 | B49: BERGEPAINT | C49: 733.3 | D49: 731.35 | E49: 719.70 | F49: 706.10 | G49: 694.45 | H49: 744.95 | I49: 756.60 | J49: 770.20 | K49: 743 | L49: 717.75 | M49: 6.86132
A50: 41 | B50: BEL | C50: 206.2 | D50: 204.85 | E50: 202.45 | F50: 198.70 | G50: 196.30 | H50: 208.60 | I50: 211.00 | J50: 214.75 | K50: 207.25 | L50: 201.1 | M50: 31.68382
A51: 42 | B51: BHARATFORG | C51: 785.9 | D51: 777.32 | E51: 766.63 | F51: 747.37 | G51: 736.68 | H51: 796.58 | I51: 807.27 | J51: 826.53 | K51: 788 | L51: 758.05 | M51: 12.98265
A52: 43 | B52: BHEL | C52: 71.65 | D52: 70.80 | E52: 69.50 | F52: 67.35 | G52: 66.05 | H52: 72.95 | I52: 74.25 | J52: 76.40 | K52: 72.1 | L52: 68.65 | M52: 619.31483
A53: 44 | B53: BPCL | C53: 431.05 | D53: 432.02 | E53: 427.08 | F53: 423.12 | G53: 418.18 | H53: 435.98 | I53: 440.92 | J53: 444.88 | K53: 436.95 | L53: 428.05 | M53: 49.72613
A54: 45 | B54: BHARTIARTL | C54: 696.2 | D54: 698.35 | E54: 686.85 | F54: 677.50 | G54: 666.00 | H54: 707.70 | I54: 719.20 | J54: 728.55 | K54: 709.85 | L54: 689 | M54: 109.53878
A55: 46 | B55: BIOCON | C55: 333.55 | D55: 329.45 | E55: 324.20 | F55: 314.85 | G55: 309.60 | H55: 338.80 | I55: 344.05 | J55: 353.40 | K55: 334.7 | L55: 320.1 | M55: 31.13691
A56: 47 | B56: BBTC | C56: 1094.8 | D56: 1096.60 | E56: 1089.20 | F56: 1083.60 | G56: 1076.20 | H56: 1102.20 | I56: 1109.60 | J56: 1115.20 | K56: 1104 | L56: 1091 | M56: 0.25044
A57: 48 | B57: BOSCHLTD | C57: 17021.8 | D57: 16920.27 | E57: 16761.53 | F57: 16501.27 | G57: 16342.53 | H57: 17180.53 | I57: 17339.27 | J57: 17599.53 | K57: 17079 | L57: 16660 | M57: 0.22206
A58: 49 | B58: BRITANNIA | C58: 3692.8 | D58: 3667.90 | E58: 3630.75 | F58: 3568.70 | G58: 3531.55 | H58: 3729.95 | I58: 3767.10 | J58: 3829.15 | K58: 3705.05 | L58: 3605.85 | M58: 3.26825
A59: 50 | B59: CESC | C59: 91.95 | D59: 92.12 | E59: 90.83 | F59: 89.72 | G59: 88.43 | H59: 93.23 | I59: 94.52 | J59: 95.63 | K59: 93.4 | L59: 91 | M59: 28.83395
A60: 51 | B60: CADILAHC | C60: 508.8 | D60: 505.58 | E60: 501.17 | F60: 493.53 | G60: 489.12 | H60: 513.22 | I60: 517.63 | J60: 525.27 | K60: 510 | L60: 497.95 | M60: 19.21489
A61: 52 | B61: CANBK | C61: 193.35 | D61: 197.37 | E61: 187.23 | F61: 181.12 | G61: 170.98 | H61: 203.48 | I61: 213.62 | J61: 219.73 | K61: 207.5 | L61: 191.25 | M61: 601.55155
A62: 53 | B62: CASTROLIND | C62: 140.75 | D62: 140.32 | E62: 138.73 | F62: 136.72 | G62: 135.13 | H62: 142.33 | I62: 143.92 | J62: 145.93 | K62: 141.9 | L62: 138.3 | M62: 4.56392
A63: 54 | B63: CHOLAFIN | C63: 604.9 | D63: 598.33 | E63: 584.92 | F63: 564.93 | G63: 551.52 | H63: 618.32 | I63: 631.73 | J63: 651.72 | K63: 611.75 | L63: 578.35 | M63: 35.96997
A64: 55 | B64: CIPLA | C64: 907.5 | D64: 907.22 | E64: 900.28 | F64: 893.07 | G64: 886.13 | H64: 914.43 | I64: 921.37 | J64: 928.58 | K64: 914.15 | L64: 900 | M64: 14.05411
A65: 56 | B65: CUB | C65: 181.05 | D65: 180.07 | E65: 176.18 | F65: 171.32 | G65: 167.43 | H65: 184.93 | I65: 188.82 | J65: 193.68 | K65: 183.95 | L65: 175.2 | M65: 107.79683
A66: 57 | B66: COALINDIA | C66: 175.05 | D66: 174.27 | E66: 172.53 | F66: 170.02 | G66: 168.28 | H66: 176.78 | I66: 178.52 | J66: 181.03 | K66: 176 | L66: 171.75 | M66: 116.02891
A67: 58 | B67: COFORGE | C67: 5088.05 | D67: 5086.02 | E67: 4964.08 | F67: 4840.12 | G67: 4718.18 | H67: 5209.98 | I67: 5331.92 | J67: 5455.88 | K67: 5207.95 | L67: 4962.05 | M67: 4.89882
A68: 59 | B68: COLPAL | C68: 1546.6 | D68: 1538.78 | E68: 1527.82 | F68: 1509.03 | G68: 1498.07 | H68: 1557.57 | I68: 1568.53 | J68: 1587.32 | K68: 1549.75 | L68: 1520 | M68: 6.42134
A69: 60 | B69: CONCOR | C69: 676.5 | D69: 674.88 | E69: 668.62 | F69: 660.73 | G69: 654.47 | H69: 682.77 | I69: 689.03 | J69: 696.92 | K69: 681.15 | L69: 667 | M69: 16.91659
A70: 61 | B70: COROMANDEL | C70: 807.9 | D70: 807.73 | E70: 799.22 | F70: 790.53 | G70: 782.02 | H70: 816.42 | I70: 824.93 | J70: 833.62 | K70: 816.25 | L70: 799.05 | M70: 2.9212
A71: 62 | B71: CROMPTON | C71: 463.9 | D71: 461.97 | E71: 451.93 | F71: 439.97 | G71: 429.93 | H71: 473.93 | I71: 483.97 | J71: 495.93 | K71: 472 | L71: 450 | M71: 21.30926
A72: 63 | B72: CUMMINSIND | C72: 875.35 | D72: 875.90 | E72: 864.80 | F72: 854.25 | G72: 843.15 | H72: 886.45 | I72: 897.55 | J72: 908.10 | K72: 887 | L72: 865.35 | M72: 6.5492
A73: 64 | B73: DLF | C73: 415.85 | D73: 411.78 | E73: 406.42 | F73: 396.98 | G73: 391.62 | H73: 421.22 | I73: 426.58 | J73: 436.02 | K73: 417.15 | L73: 402.35 | M73: 51.11958
A74: 65 | B74: DABUR | C74: 581.35 | D74: 579.92 | E74: 575.88 | F74: 570.42 | G74: 566.38 | H74: 585.38 | I74: 589.42 | J74: 594.88 | K74: 583.95 | L74: 574.45 | M74: 19.49684
A75: 66 | B75: DALBHARAT | C75: 1944.6 | D75: 1927.30 | E75: 1899.60 | F75: 1854.60 | G75: 1826.90 | H75: 1972.30 | I75: 2000.00 | J75: 2045.00 | K75: 1955 | L75: 1882.3 | M75: 2.13921
A76: 67 | B76: DEEPAKNTR | C76: 2467 | D76: 2425.67 | E76: 2371.33 | F76: 2275.67 | G76: 2221.33 | H76: 2521.33 | I76: 2575.67 | J76: 2671.33 | K76: 2480 | L76: 2330 | M76: 14.87281
A77: 68 | B77: DHANI | C77: 197.35 | D77: 198.62 | E77: 194.18 | F77: 191.02 | G77: 186.58 | H77: 201.78 | I77: 206.22 | J77: 209.38 | K77: 203.05 | L77: 195.45 | M77: 10.95709
A78: 69 | B78: DIVISLAB | C78: 5018.9 | D78: 5021.67 | E78: 4969.33 | F78: 4919.77 | G78: 4867.43 | H78: 5071.23 | I78: 5123.57 | J78: 5173.13 | K78: 5074 | L78: 4972.1 | M78: 3.34367
A79: 70 | B79: DIXON | C79: 5161.1 | D79: 5037.95 | E79: 4858.15 | F79: 4555.20 | G79: 4375.40 | H79: 5340.90 | I79: 5520.70 | J79: 5823.65 | K79: 5217.75 | L79: 4735 | M79: 7.66074
A80: 71 | B80: LALPATHLAB | C80: 3556.45 | D80: 3517.17 | E80: 3455.33 | F80: 3354.22 | G80: 3292.38 | H80: 3618.28 | I80: 3680.12 | J80: 3781.23 | K80: 3579 | L80: 3416.05 | M80: 2.04718
A81: 72 | B81: DRREDDY | C81: 4666.2 | D81: 4667.33 | E81: 4635.87 | F81: 4605.53 | G81: 4574.07 | H81: 4697.67 | I81: 4729.13 | J81: 4759.47 | K81: 4698.8 | L81: 4637 | M81: 2.72713
A82: 73 | B82: EICHERMOT | C82: 2590.25 | D82: 2591.73 | E82: 2570.47 | F82: 2550.68 | G82: 2529.42 | H82: 2611.52 | I82: 2632.78 | J82: 2652.57 | K82: 2613 | L82: 2571.95 | M82: 6.77512
A83: 74 | B83: EMAMILTD | C83: 520.65 | D83: 520.22 | E83: 508.38 | F83: 496.12 | G83: 484.28 | H83: 532.48 | I83: 544.32 | J83: 556.58 | K83: 532.05 | L83: 507.95 | M83: 6.64582
A84: 75 | B84: ENDURANCE | C84: 1785.55 | D84: 1785.30 | E84: 1725.60 | F84: 1665.65 | G84: 1605.95 | H84: 1845.25 | I84: 1904.95 | J84: 1964.90 | K84: 1845 | L84: 1725.35 | M84: 1.24378
A85: 76 | B85: ESCORTS | C85: 1544.45 | D85: 1526.78 | E85: 1503.92 | F85: 1463.38 | G85: 1440.52 | H85: 1567.32 | I85: 1590.18 | J85: 1630.72 | K85: 1549.65 | L85: 1486.25 | M85: 13.64333
A86: 77 | B86: EXIDEIND | C86: 176.65 | D86: 176.07 | E86: 174.78 | F86: 172.92 | G86: 171.63 | H86: 177.93 | I86: 179.22 | J86: 181.08 | K86: 177.35 | L86: 174.2 | M86: 22.12467
A87: 78 | B87: FEDERALBNK | C87: 102 | D87: 102.78 | E87: 100.87 | F87: 99.73 | G87: 97.82 | H87: 103.92 | I87: 105.83 | J87: 106.97 | K87: 104.7 | L87: 101.65 | M87: 256.56807
A88: 79 | B88: FORTIS | C88: 257.25 | D88: 254.43 | E88: 250.87 | F88: 244.48 | G88: 240.92 | H88: 260.82 | I88: 264.38 | J88: 270.77 | K88: 258 | L88: 248.05 | M88: 13.68351
A89: 80 | B89: GAIL | C89: 152 | D89: 151.12 | E89: 149.73 | F89: 147.47 | G89: 146.08 | H89: 153.38 | I89: 154.77 | J89: 157.03 | K89: 152.5 | L89: 148.85 | M89: 75.5036
A90: 81 | B90: GMRINFRA | C90: 41.2 | D90: 41.13 | E90: 40.67 | F90: 40.13 | G90: 39.67 | H90: 41.67 | I90: 42.13 | J90: 42.67 | K90: 41.6 | L90: 40.6 | M90: 122.80853
A91: 82 | B91: GLAND | C91: 3560.3 | D91: 3617.60 | E91: 3455.20 | F91: 3350.10 | G91: 3187.70 | H91: 3722.70 | I91: 3885.10 | J91: 3990.20 | K91: 3780 | L91: 3512.5 | M91: 3.72705
A92: 83 | B92: GLENMARK | C92: 507.9 | D92: 501.70 | E92: 493.85 | F92: 479.80 | G92: 471.95 | H92: 515.75 | I92: 523.60 | J92: 537.65 | K92: 509.55 | L92: 487.65 | M92: 11.73704
A93: 84 | B93: GODREJAGRO | C93: 593.45 | D93: 594.35 | E93: 585.70 | F93: 577.95 | G93: 569.30 | H93: 602.10 | I93: 610.75 | J93: 618.50 | K93: 603 | L93: 586.6 | M93: 0.59622
A94: 85 | B94: GODREJCP | C94: 964 | D94: 956.00 | E94: 943.10 | F94: 922.20 | G94: 909.30 | H94: 976.90 | I94: 989.80 | J94: 1010.70 | K94: 968.9 | L94: 935.1 | M94: 8.67692
A95: 86 | B95: GODREJIND | C95: 575.45 | D95: 574.83 | E95: 570.67 | F95: 565.88 | G95: 561.72 | H95: 579.62 | I95: 583.78 | J95: 588.57 | K95: 579 | L95: 570.05 | M95: 0.7051
A96: 87 | B96: GODREJPROP | C96: 2345.25 | D96: 2324.95 | E96: 2286.40 | F96: 2227.55 | G96: 2189.00 | H96: 2383.80 | I96: 2422.35 | J96: 2481.20 | K96: 2363.5 | L96: 2266.1 | M96: 10.14326
A97: 88 | B97: GRASIM | C97: 1739.4 | D97: 1736.88 | E97: 1706.77 | F97: 1674.13 | G97: 1644.02 | H97: 1769.52 | I97: 1799.63 | J97: 1832.27 | K97: 1767 | L97: 1704.25 | M97: 13.34788
A98: 89 | B98: GUJGASLTD | C98: 595.2 | D98: 591.48 | E98: 584.97 | F98: 574.73 | G98: 568.22 | H98: 601.72 | I98: 608.23 | J98: 618.47 | K98: 598 | L98: 581.25 | M98: 9.34528
A99: 90 | B99: GSPL | C99: 305.1 | D99: 304.92 | E99: 302.38 | F99: 299.67 | G99: 297.13 | H99: 307.63 | I99: 310.17 | J99: 312.88 | K99: 307.45 | L99: 302.2 | M99: 7.73997
A100: 91 | B100: HCLTECH | C100: 1166.8 | D100: 1167.35 | E100: 1152.70 | F100: 1138.60 | G100: 1123.95 | H100: 1181.45 | I100: 1196.10 | J100: 1210.20 | K100: 1182 | L100: 1153.25 | M100: 51.2666
A101: 92 | B101: HDFCAMC | C101: 2736.15 | D101: 2728.58 | E101: 2687.17 | F101: 2638.18 | G101: 2596.77 | H101: 2777.57 | I101: 2818.98 | J101: 2867.97 | K101: 2770 | L101: 2679.6 | M101: 7.7528
A102: 93 | B102: HDFCBANK | C102: 1652.75 | D102: 1657.65 | E102: 1641.45 | F102: 1630.15 | G102: 1613.95 | H102: 1668.95 | I102: 1685.15 | J102: 1696.45 | K102: 1673.85 | L102: 1646.35 | M102: 60.45328
A103: 94 | B103: HDFCLIFE | C103: 690.05 | D103: 689.72 | E103: 684.43 | F103: 678.82 | G103: 673.53 | H103: 695.33 | I103: 700.62 | J103: 706.23 | K103: 695 | L103: 684.1 | M103: 26.16174
A104: 95 | B104: HAVELLS | C104: 1285.5 | D104: 1285.43 | E104: 1261.87 | F104: 1238.23 | G104: 1214.67 | H104: 1309.07 | I104: 1332.63 | J104: 1356.27 | K104: 1309 | L104: 1261.8 | M104: 13.74534
A105: 96 | B105: HEROMOTOCO | C105: 2700.5 | D105: 2697.83 | E105: 2687.67 | F105: 2674.83 | G105: 2664.67 | H105: 2710.67 | I105: 2720.83 | J105: 2733.67 | K105: 2708 | L105: 2685 | M105: 2.82346
A106: 97 | B106: HINDALCO | C106: 486.05 | D106: 482.20 | E106: 476.40 | F106: 466.75 | G106: 460.95 | H106: 491.85 | I106: 497.65 | J106: 507.30 | K106: 488 | L106: 472.55 | M106: 81.20433
A107: 98 | B107: HAL | C107: 1324.9 | D107: 1324.43 | E107: 1313.87 | F107: 1302.83 | G107: 1292.27 | H107: 1335.47 | I107: 1346.03 | J107: 1357.07 | K107: 1335 | L107: 1313.4 | M107: 6.63859
A108: 99 | B108: HINDPETRO | C108: 332.4 | D108: 328.90 | E108: 321.90 | F108: 311.40 | G108: 304.40 | H108: 339.40 | I108: 346.40 | J108: 356.90 | K108: 335.9 | L108: 318.4 | M108: 57.26988
A109: 100 | B109: HINDUNILVR | C109: 2436.85 | D109: 2440.93 | E109: 2412.97 | F109: 2389.08 | G109: 2361.12 | H109: 2464.82 | I109: 2492.78 | J109: 2516.67 | K109: 2468.9 | L109: 2417.05 | M109: 15.9506
A110: 101 | B110: HINDZINC | C110: 323.2 | D110: 324.23 | E110: 320.97 | F110: 318.73 | G110: 315.47 | H110: 326.47 | I110: 329.73 | J110: 331.97 | K110: 327.5 | L110: 322 | M110: 8.28215
A111: 102 | B111: HDFC | C111: 2911.65 | D111: 2913.88 | E111: 2893.77 | F111: 2875.88 | G111: 2855.77 | H111: 2931.77 | I111: 2951.88 | J111: 2969.77 | K111: 2934 | L111: 2896 | M111: 24.30141
A112: 103 | B112: ICICIBANK | C112: 829.4 | D112: 831.15 | E112: 820.60 | F112: 811.80 | G112: 801.25 | H112: 839.95 | I112: 850.50 | J112: 859.30 | K112: 841.7 | L112: 822.35 | M112: 169.25115
A113: 104 | B113: ICICIGI | C113: 1505.75 | D113: 1506.02 | E113: 1493.13 | F113: 1480.52 | G113: 1467.63 | H113: 1518.63 | I113: 1531.52 | J113: 1544.13 | K113: 1518.9 | L113: 1493.4 | M113: 3.98883
A114: 105 | B114: ICICIPRULI | C114: 622.65 | D114: 623.05 | E114: 617.10 | F114: 611.55 | G114: 605.60 | H114: 628.60 | I114: 634.55 | J114: 640.10 | K114: 629 | L114: 617.5 | M114: 7.60306
A115: 106 | B115: ISEC | C115: 762.65 | D115: 762.97 | E115: 748.98 | F115: 735.32 | G115: 721.33 | H115: 776.63 | I115: 790.62 | J115: 804.28 | K115: 776.95 | L115: 749.3 | M115: 4.08957
A116: 107 | B116: IDFCFIRSTB | C116: 52.85 | D116: 51.80 | E116: 50.60 | F116: 48.35 | G116: 47.15 | H116: 54.05 | I116: 55.25 | J116: 57.50 | K116: 53 | L116: 49.55 | M116: 933.12958
A117: 108 | B117: ITC | C117: 236.7 | D117: 236.10 | E117: 233.20 | F117: 229.70 | G117: 226.80 | H117: 239.60 | I117: 242.50 | J117: 246.00 | K117: 239 | L117: 232.6 | M117: 189.3417
A118: 109 | B118: IBULHSGFIN | C118: 228.2 | D118: 226.87 | E118: 223.83 | F118: 219.47 | G118: 216.43 | H118: 231.23 | I118: 234.27 | J118: 238.63 | K118: 229.9 | L118: 222.5 | M118: 93.47833
A119: 110 | B119: INDIAMART | C119: 7244.55 | D119: 7299.47 | E119: 7110.08 | F119: 6975.62 | G119: 6786.23 | H119: 7433.93 | I119: 7623.32 | J119: 7757.78 | K119: 7488.85 | L119: 7165 | M119: 2.90566
A120: 111 | B120: INDHOTEL | C120: 207.45 | D120: 208.28 | E120: 204.07 | F120: 200.68 | G120: 196.47 | H120: 211.67 | I120: 215.88 | J120: 219.27 | K120: 212.5 | L120: 204.9 | M120: 60.10714
A121: 112 | B121: IOC | C121: 131.5 | D121: 131.32 | E121: 130.23 | F121: 128.97 | G121: 127.88 | H121: 132.58 | I121: 133.67 | J121: 134.93 | K121: 132.4 | L121: 130.05 | M121: 101.32403
A122: 113 | B122: IRCTC | C122: 4189.5 | D122: 4213.50 | E122: 4027.00 | F122: 3864.50 | G122: 3678.00 | H122: 4376.00 | I122: 4562.50 | J122: 4725.00 | K122: 4400 | L122: 4051 | M122: 82.02241
A123: 114 | B123: IGL | C123: 473.2 | D123: 471.58 | E123: 468.67 | F123: 464.13 | G123: 461.22 | H123: 476.12 | I123: 479.03 | J123: 483.57 | K123: 474.5 | L123: 467.05 | M123: 21.64082
A124: 115 | B124: INDUSTOWER | C124: 281.45 | D124: 287.82 | E124: 271.63 | F124: 261.82 | G124: 245.63 | H124: 297.63 | I124: 313.82 | J124: 323.63 | K124: 304 | L124: 278 | M124: 116.10386
A125: 116 | B125: INDUSINDBK | C125: 1154.9 | D125: 1161.87 | E125: 1130.73 | F125: 1106.57 | G125: 1075.43 | H125: 1186.03 | I125: 1217.17 | J125: 1241.33 | K125: 1193 | L125: 1137.7 | M125: 34.13917
A126: 117 | B126: NAUKRI | C126: 6069.65 | D126: 6040.90 | E126: 5931.80 | F126: 5793.95 | G126: 5684.85 | H126: 6178.75 | I126: 6287.85 | J126: 6425.70 | K126: 6150 | L126: 5903.05 | M126: 2.46269
A127: 118 | B127: INFY | C127: 1703.7 | D127: 1708.73 | E127: 1690.87 | F127: 1678.03 | G127: 1660.17 | H127: 1721.57 | I127: 1739.43 | J127: 1752.27 | K127: 1726.6 | L127: 1695.9 | M127: 58.71709
A128: 119 | B128: INDIGO | C128: 2021.2 | D128: 2013.50 | E128: 1997.00 | F128: 1972.80 | G128: 1956.30 | H128: 2037.70 | I128: 2054.20 | J128: 2078.40 | K128: 2030 | L128: 1989.3 | M128: 2.34685
A129: 120 | B129: IPCALAB | C129: 2189.5 | D129: 2209.50 | E129: 2151.00 | F129: 2112.50 | G129: 2054.00 | H129: 2248.00 | I129: 2306.50 | J129: 2345.00 | K129: 2268 | L129: 2171 | M129: 2.88779
A130: 121 | B130: JSWENERGY | C130: 369.75 | D130: 369.58 | E130: 360.17 | F130: 350.58 | G130: 341.17 | H130: 379.17 | I130: 388.58 | J130: 398.17 | K130: 379 | L130: 360 | M130: 13.29276
A131: 122 | B131: JSWSTEEL | C131: 694.35 | D131: 688.77 | E131: 680.08 | F131: 665.82 | G131: 657.13 | H131: 703.03 | I131: 711.72 | J131: 725.98 | K131: 697.45 | L131: 674.5 | M131: 42.38644
A132: 123 | B132: JINDALSTEL | C132: 445.7 | D132: 440.38 | E132: 431.87 | F132: 418.03 | G132: 409.52 | H132: 454.22 | I132: 462.73 | J132: 476.57 | K132: 448.9 | L132: 426.55 | M132: 65.2165
A133: 124 | B133: JUBLFOOD | C133: 3715.6 | D133: 3697.83 | E133: 3667.77 | F133: 3619.93 | G133: 3589.87 | H133: 3745.67 | I133: 3775.73 | J133: 3823.57 | K133: 3727.9 | L133: 3650 | M133: 5.08788
A134: 125 | B134: KOTAKBANK | C134: 2210.95 | D134: 2191.55 | E134: 2143.10 | F134: 2075.25 | G134: 2026.80 | H134: 2259.40 | I134: 2307.85 | J134: 2375.70 | K134: 2240 | L134: 2123.7 | M134: 106.69001
A135: 126 | B135: L&TFH | C135: 84.85 | D135: 83.83 | E135: 82.52 | F135: 80.18 | G135: 78.87 | H135: 86.17 | I135: 87.48 | J135: 89.82 | K135: 85.15 | L135: 81.5 | M135: 120.62523
A136: 127 | B136: LTTS | C136: 4564.85 | D136: 4589.02 | E136: 4463.03 | F136: 4361.22 | G136: 4235.23 | H136: 4690.83 | I136: 4816.82 | J136: 4918.63 | K136: 4715 | L136: 4487.2 | M136: 4.28624
A137: 128 | B137: LICHSGFIN | C137: 405.8 | D137: 404.22 | E137: 400.23 | F137: 394.67 | G137: 390.68 | H137: 409.78 | I137: 413.77 | J137: 419.33 | K137: 408.2 | L137: 398.65 | M137: 29.67467
A138: 129 | B138: LTI | C138: 6506.65 | D138: 6511.83 | E138: 6414.82 | F138: 6322.98 | G138: 6225.97 | H138: 6603.67 | I138: 6700.68 | J138: 6792.52 | K138: 6608.85 | L138: 6420 | M138: 3.63082
A139: 130 | B139: LT | C139: 1796.25 | D139: 1796.57 | E139: 1781.23 | F139: 1766.22 | G139: 1750.88 | H139: 1811.58 | I139: 1826.92 | J139: 1841.93 | K139: 1811.9 | L139: 1781.55 | M139: 19.30107
A140: 131 | B140: LAURUSLABS | C140: 564.6 | D140: 560.93 | E140: 553.87 | F140: 543.13 | G140: 536.07 | H140: 571.67 | I140: 578.73 | J140: 589.47 | K140: 568 | L140: 550.2 | M140: 22.83635
A141: 132 | B141: LUPIN | C141: 929.8 | D141: 931.22 | E141: 922.58 | F141: 915.37 | G141: 906.73 | H141: 938.43 | I141: 947.07 | J141: 954.28 | K141: 939.85 | L141: 924 | M141: 10.53103
A142: 133 | B142: MRF | C142: 80093.75 | D142: 79959.15 | E142: 79418.30 | F142: 78742.85 | G142: 78202.00 | H142: 80634.60 | I142: 81175.45 | J142: 81850.90 | K142: 80500 | L142: 79283.7 | M142: 0.07847
A143: 134 | B143: MGL | C143: 1007.95 | D143: 998.28 | E143: 986.57 | F143: 965.18 | G143: 953.47 | H143: 1019.67 | I143: 1031.38 | J143: 1052.77 | K143: 1010 | L143: 976.9 | M143: 3.58527
A144: 135 | B144: M&MFIN | C144: 188.2 | D144: 185.63 | E144: 181.92 | F144: 175.63 | G144: 171.92 | H144: 191.92 | I144: 195.63 | J144: 201.92 | K144: 189.35 | L144: 179.35 | M144: 48.42168
A145: 136 | B145: M&M | C145: 894.55 | D145: 892.85 | E145: 885.70 | F145: 876.85 | G145: 869.70 | H145: 901.70 | I145: 908.85 | J145: 917.70 | K145: 900 | L145: 884 | M145: 34.10657
A146: 137 | B146: MANAPPURAM | C146: 204.5 | D146: 204.13 | E146: 200.37 | F146: 196.23 | G146: 192.47 | H146: 208.27 | I146: 212.03 | J146: 216.17 | K146: 207.9 | L146: 200 | M146: 52.2179
A147: 138 | B147: MARICO | C147: 563.25 | D147: 559.77 | E147: 554.53 | F147: 545.82 | G147: 540.58 | H147: 568.48 | I147: 573.72 | J147: 582.43 | K147: 565 | L147: 551.05 | M147: 15.41807
A148: 139 | B148: MARUTI | C148: 7297.35 | D148: 7281.83 | E148: 7225.72 | F148: 7154.08 | G148: 7097.97 | H148: 7353.47 | I148: 7409.58 | J148: 7481.22 | K148: 7337.95 | L148: 7210.2 | M148: 2.92203
A149: 140 | B149: MFSL | C149: 975.9 | D149: 974.82 | E149: 955.73 | F149: 935.57 | G149: 916.48 | H149: 994.98 | I149: 1014.07 | J149: 1034.23 | K149: 993.9 | L149: 954.65 | M149: 16.89758
A150: 141 | B150: MINDTREE | C150: 4550.9 | D150: 4526.07 | E150: 4458.13 | F150: 4365.37 | G150: 4297.43 | H150: 4618.83 | I150: 4686.77 | J150: 4779.53 | K150: 4594 | L150: 4433.3 | M150: 8.99783
A151: 142 | B151: MPHASIS | C151: 3244 | D151: 3262.42 | E151: 3182.98 | F151: 3121.97 | G151: 3042.53 | H151: 3323.43 | I151: 3402.87 | J151: 3463.88 | K151: 3341.85 | L151: 3201.4 | M151: 6.59888
A152: 143 | B152: MUTHOOTFIN | C152: 1529.3 | D152: 1525.10 | E152: 1508.20 | F152: 1487.10 | G152: 1470.20 | H152: 1546.20 | I152: 1563.10 | J152: 1584.20 | K152: 1542 | L152: 1504 | M152: 9.02649
A153: 144 | B153: NATCOPHARM | C153: 842.35 | D153: 845.85 | E153: 833.70 | F153: 825.05 | G153: 812.90 | H153: 854.50 | I153: 866.65 | J153: 875.30 | K153: 858 | L153: 837.2 | M153: 10.75859
A154: 145 | B154: NMDC | C154: 142.55 | D154: 141.87 | E154: 140.43 | F154: 138.32 | G154: 136.88 | H154: 143.98 | I154: 145.42 | J154: 147.53 | K154: 143.3 | L154: 139.75 | M154: 100.7489
A155: 146 | B155: NTPC | C155: 143.2 | D155: 143.77 | E155: 141.88 | F155: 140.57 | G155: 138.68 | H155: 145.08 | I155: 146.97 | J155: 148.28 | K155: 145.65 | L155: 142.45 | M155: 162.24116
A156: 147 | B156: NAVINFLUOR | C156: 3460.5 | D156: 3443.12 | E156: 3392.38 | F156: 3324.27 | G156: 3273.53 | H156: 3511.23 | I156: 3561.97 | J156: 3630.08 | K156: 3493.85 | L156: 3375 | M156: 1.98228
A157: 148 | B157: NESTLEIND | C157: 19217.6 | D157: 19045.52 | E157: 18811.03 | F157: 18404.47 | G157: 18169.98 | H157: 19452.08 | I157: 19686.57 | J157: 20093.13 | K157: 19280 | L157: 18638.95 | M157: 1.06658
A158: 149 | B158: NAM-INDIA | C158: 430.95 | D158: 432.65 | E158: 423.30 | F158: 415.65 | G158: 406.30 | H158: 440.30 | I158: 449.65 | J158: 457.30 | K158: 442 | L158: 425 | M158: 9.85787
A159: 150 | B159: OBEROIRLTY | C159: 940.35 | D159: 930.20 | E159: 909.15 | F159: 877.95 | G159: 856.90 | H159: 961.40 | I159: 982.45 | J159: 1013.65 | K159: 951.25 | L159: 899 | M159: 15.64628
A160: 151 | B160: ONGC | C160: 163.1 | D160: 162.45 | E160: 160.95 | F160: 158.80 | G160: 157.30 | H160: 164.60 | I160: 166.10 | J160: 168.25 | K160: 163.95 | L160: 160.3 | M160: 330.22684
A161: 152 | B161: OIL | C161: 220.5 | D161: 221.27 | E161: 215.43 | F161: 210.37 | G161: 204.53 | H161: 226.33 | I161: 232.17 | J161: 237.23 | K161: 227.1 | L161: 216.2 | M161: 22.79317
A162: 153 | B162: PIIND | C162: 3035.9 | D162: 3004.17 | E162: 2937.73 | F162: 2839.57 | G162: 2773.13 | H162: 3102.33 | I162: 3168.77 | J162: 3266.93 | K162: 3070.6 | L162: 2906 | M162: 4.01894
A163: 154 | B163: PAGEIND | C163: 37383.6 | D163: 37411.18 | E163: 36423.42 | F163: 35463.23 | G163: 34475.47 | H163: 38371.37 | I163: 39359.13 | J163: 40319.32 | K163: 38398.95 | L163: 36451 | M163: 0.3301
A164: 155 | B164: PETRONET | C164: 232.05 | D164: 230.97 | E164: 229.38 | F164: 226.72 | G164: 225.13 | H164: 233.63 | I164: 235.22 | J164: 237.88 | K164: 232.55 | L164: 228.3 | M164: 12.31027
A165: 156 | B165: PFIZER | C165: 4979.05 | D165: 4984.02 | E165: 4913.03 | F165: 4847.02 | G165: 4776.03 | H165: 5050.03 | I165: 5121.02 | J165: 5187.03 | K165: 5055 | L165: 4918 | M165: 0.34784
A166: 157 | B166: PIDILITIND | C166: 2318.85 | D166: 2311.97 | E166: 2288.93 | F166: 2259.02 | G166: 2235.98 | H166: 2341.88 | I166: 2364.92 | J166: 2394.83 | K166: 2335 | L166: 2282.05 | M166: 2.17581
A167: 158 | B167: PEL | C167: 2673.2 | D167: 2657.23 | E167: 2611.17 | F167: 2549.13 | G167: 2503.07 | H167: 2719.27 | I167: 2765.33 | J167: 2827.37 | K167: 2703.3 | L167: 2595.2 | M167: 5.57597
A168: 159 | B168: POLYCAB | C168: 2298.7 | D168: 2321.53 | E168: 2269.27 | F168: 2239.83 | G168: 2187.57 | H168: 2350.97 | I168: 2403.23 | J168: 2432.67 | K168: 2373.8 | L168: 2292.1 | M168: 4.54181
A169: 160 | B169: PFC | C169: 137.2 | D169: 137.65 | E169: 135.30 | F169: 133.40 | G169: 131.05 | H169: 139.55 | I169: 141.90 | J169: 143.80 | K169: 140 | L169: 135.75 | M169: 69.02462
A170: 161 | B170: POWERGRID | C170: 190.4 | D170: 191.02 | E170: 189.08 | F170: 187.77 | G170: 185.83 | H170: 192.33 | I170: 194.27 | J170: 195.58 | K170: 192.95 | L170: 189.7 | M170: 63.94388
A171: 162 | B171: PRESTIGE | C171: 441.1 | D171: 435.50 | E171: 425.55 | F171: 410.00 | G171: 400.05 | H171: 451.05 | I171: 461.00 | J171: 476.55 | K171: 445.45 | L171: 419.95 | M171: 11.56595
A172: 163 | B172: PGHH | C172: 14420.7 | D172: 14443.57 | E172: 14327.13 | F172: 14233.57 | G172: 14117.13 | H172: 14537.13 | I172: 14653.57 | J172: 14747.13 | K172: 14560 | L172: 14350 | M172: 0.04864
A173: 164 | B173: PNB | C173: 45.85 | D173: 46.22 | E173: 44.83 | F173: 43.82 | G173: 42.43 | H173: 47.23 | I173: 48.62 | J173: 49.63 | K173: 47.6 | L173: 45.2 | M173: 2141.46592
A174: 165 | B174: RBLBANK | C174: 210.85 | D174: 209.63 | E174: 206.52 | F174: 202.18 | G174: 199.07 | H174: 213.97 | I174: 217.08 | J174: 221.42 | K174: 212.75 | L174: 205.3 | M174: 155.84295
A175: 166 | B175: RECLTD | C175: 151.7 | D175: 151.05 | E175: 148.65 | F175: 145.60 | G175: 143.20 | H175: 154.10 | I175: 156.50 | J175: 159.55 | K175: 153.45 | L175: 148 | M175: 70.53308
A176: 167 | B176: RELIANCE | C176: 2661.05 | D176: 2644.37 | E176: 2619.83 | F176: 2578.62 | G176: 2554.08 | H176: 2685.58 | I176: 2710.12 | J176: 2751.33 | K176: 2668.9 | L176: 2603.15 | M176: 44.99706
A177: 168 | B177: SBICARD | C177: 1123.1 | D177: 1129.33 | E177: 1113.82 | F177: 1104.53 | G177: 1089.02 | H177: 1138.62 | I177: 1154.13 | J177: 1163.42 | K177: 1144.85 | L177: 1120.05 | M177: 10.15325
A178: 169 | B178: SBILIFE | C178: 1172.05 | D178: 1161.45 | E178: 1144.60 | F178: 1117.15 | G178: 1100.30 | H178: 1188.90 | I178: 1205.75 | J178: 1233.20 | K178: 1178.3 | L178: 1134 | M178: 15.72647
A179: 170 | B179: SRF | C179: 2110.6 | D179: 2115.85 | E179: 2059.75 | F179: 2008.90 | G179: 1952.80 | H179: 2166.70 | I179: 2222.80 | J179: 2273.65 | K179: 2171.95 | L179: 2065 | M179: 19.2564
A180: 171 | B180: SANOFI | C180: 8069.3 | D180: 8116.45 | E180: 7932.85 | F180: 7796.40 | G180: 7612.80 | H180: 8252.90 | I180: 8436.50 | J180: 8572.95 | K180: 8300.05 | L180: 7980 | M180: 0.31642
A181: 172 | B181: SHREECEM | C181: 27777.9 | D181: 27697.30 | E181: 27399.60 | F181: 27021.30 | G181: 26723.60 | H181: 28075.60 | I181: 28373.30 | J181: 28751.60 | K181: 27995 | L181: 27319 | M181: 0.28367
A182: 173 | B182: SRTRANSFIN | C182: 1525.9 | D182: 1536.83 | E182: 1485.67 | F182: 1445.43 | G182: 1394.27 | H182: 1577.07 | I182: 1628.23 | J182: 1668.47 | K182: 1588 | L182: 1496.6 | M182: 19.97703
A183: 174 | B183: SIEMENS | C183: 2169.25 | D183: 2170.13 | E183: 2150.82 | F183: 2132.38 | G183: 2113.07 | H183: 2188.57 | I183: 2207.88 | J183: 2226.32 | K183: 2189.45 | L183: 2151.7 | M183: 1.36906
A184: 175 | B184: SBIN | C184: 512.55 | D184: 512.78 | E184: 507.37 | F184: 502.18 | G184: 496.77 | H184: 517.97 | I184: 523.38 | J184: 528.57 | K184: 518.2 | L184: 507.6 | M184: 211.07457
A185: 176 | B185: SAIL | C185: 119.9 | D185: 118.90 | E185: 117.10 | F185: 114.30 | G185: 112.50 | H185: 121.70 | I185: 123.50 | J185: 126.30 | K185: 120.7 | L185: 116.1 | M185: 307.94702
A186: 177 | B186: SUNPHARMA | C186: 813.5 | D186: 814.57 | E186: 805.23 | F186: 796.97 | G186: 787.63 | H186: 822.83 | I186: 832.17 | J186: 840.43 | K186: 823.9 | L186: 806.3 | M186: 16.28608
A187: 178 | B187: SUNTV | C187: 568.2 | D187: 566.80 | E187: 558.80 | F187: 549.40 | G187: 541.40 | H187: 576.20 | I187: 584.20 | J187: 593.60 | K187: 574.8 | L187: 557.4 | M187: 24.30708
A188: 179 | B188: SYNGENE | C188: 549.6 | D188: 555.70 | E188: 541.40 | F188: 533.20 | G188: 518.90 | H188: 563.90 | I188: 578.20 | J188: 586.40 | K188: 570 | L188: 547.5 | M188: 8.99406
A189: 180 | B189: TVSMOTOR | C189: 625.9 | D189: 618.42 | E189: 607.48 | F189: 589.07 | G189: 578.13 | H189: 636.83 | I189: 647.77 | J189: 666.18 | K189: 629.35 | L189: 600 | M189: 25.25727
A190: 181 | B190: TATACHEM | C190: 1006.6 | D190: 1001.05 | E190: 988.15 | F190: 969.70 | G190: 956.80 | H190: 1019.50 | I190: 1032.40 | J190: 1050.85 | K190: 1013.95 | L190: 982.6 | M190: 31.83161
A191: 182 | B191: TCS | C191: 3482.6 | D191: 3495.53 | E191: 3462.07 | F191: 3441.53 | G191: 3408.07 | H191: 3516.07 | I191: 3549.53 | J191: 3570.07 | K191: 3529 | L191: 3475 | M191: 38.78763
A192: 183 | B192: TATACONSUM | C192: 808.9 | D192: 802.30 | E192: 792.70 | F192: 776.50 | G192: 766.90 | H192: 818.50 | I192: 828.10 | J192: 844.30 | K192: 811.9 | L192: 786.1 | M192: 17.768
A193: 184 | B193: TATAELXSI | C193: 5876.2 | D193: 5900.07 | E193: 5800.13 | F193: 5724.07 | G193: 5624.13 | H193: 5976.13 | I193: 6076.07 | J193: 6152.13 | K193: 6000 | L193: 5824 | M193: 1.6174
A194: 185 | B194: TATAMOTORS | C194: 508.65 | D194: 500.63 | E194: 491.27 | F194: 473.88 | G194: 464.52 | H194: 518.02 | I194: 527.38 | J194: 544.77 | K194: 510 | L194: 483.25 | M194: 580.2777
A195: 186 | B195: TATAPOWER | C195: 225.3 | D195: 223.95 | E195: 215.60 | F195: 205.90 | G195: 197.55 | H195: 233.65 | I195: 242.00 | J195: 251.70 | K195: 232.3 | L195: 214.25 | M195: 1130.36438
A196: 187 | B196: TATASTEEL | C196: 1343.65 | D196: 1332.03 | E196: 1313.07 | F196: 1282.48 | G196: 1263.52 | H196: 1362.62 | I196: 1381.58 | J196: 1412.17 | K196: 1351 | L196: 1301.45 | M196: 77.22875
A197: 188 | B197: TECHM | C197: 1563.3 | D197: 1578.77 | E197: 1527.53 | F197: 1491.77 | G197: 1440.53 | H197: 1614.53 | I197: 1665.77 | J197: 1701.53 | K197: 1630 | L197: 1543 | M197: 169.78043
A198: 189 | B198: RAMCOCEM | C198: 1014.85 | D198: 990.80 | E198: 960.60 | F198: 906.35 | G198: 876.15 | H198: 1045.05 | I198: 1075.25 | J198: 1129.50 | K198: 1021 | L198: 936.55 | M198: 14.90695
A199: 190 | B199: TITAN | C199: 2454.75 | D199: 2431.40 | E199: 2394.35 | F199: 2333.95 | G199: 2296.90 | H199: 2491.80 | I199: 2528.85 | J199: 2589.25 | K199: 2468.45 | L199: 2371 | M199: 25.67357
A200: 191 | B200: TORNTPHARM | C200: 2944.25 | D200: 2998.03 | E200: 2881.27 | F200: 2818.28 | G200: 2701.52 | H200: 3061.02 | I200: 3177.78 | J200: 3240.77 | K200: 3114.8 | L200: 2935.05 | M200: 2.52759
A201: 192 | B201: TORNTPOWER | C201: 499.15 | D201: 497.53 | E201: 488.12 | F201: 477.08 | G201: 467.67 | H201: 508.57 | I201: 517.98 | J201: 529.02 | K201: 506.95 | L201: 486.5 | M201: 7.80784
A202: 193 | B202: TRENT | C202: 1041.45 | D202: 1037.40 | E202: 1020.55 | F202: 999.65 | G202: 982.80 | H202: 1058.30 | I202: 1075.15 | J202: 1096.05 | K202: 1054.25 | L202: 1016.5 | M202: 9.99447
A203: 194 | B203: UPL | C203: 713.25 | D203: 707.77 | E203: 699.08 | F203: 684.92 | G203: 676.23 | H203: 721.93 | I203: 730.62 | J203: 744.78 | K203: 716.45 | L203: 693.6 | M203: 14.75209
A204: 195 | B204: ULTRACEMCO | C204: 7269.1 | D204: 7238.03 | E204: 7181.07 | F204: 7093.03 | G204: 7036.07 | H204: 7326.07 | I204: 7383.03 | J204: 7471.07 | K204: 7295 | L204: 7150 | M204: 3.72893
A205: 196 | B205: UNIONBANK | C205: 48.25 | D205: 48.58 | E205: 46.97 | F205: 45.68 | G205: 44.07 | H205: 49.87 | I205: 51.48 | J205: 52.77 | K205: 50.2 | L205: 47.3 | M205: 213.29458
... 29 more rows

Sheet MidCap Intra
L5: Back To Main Page
A6: FOR INTRA DAY TRADING | K6: =Main!B10 -> 2021-10-27
A9: Sr.no | B9: Scrip | C9: CLOSE RATE | D9: Pivot Point | E9: Supports | H9: Resistances
E10: S1 | F10: S2 | G10: S3 | H10: R1 | I10: R2 | J10: R3 | K10: HIGH | L10: LOW | M10: Total Trade Quanity in Lakhs
A11: 1 | B11: 3MINDIA | C11: 26146.75 | D11: 26099.32 | E11: 25848.63 | F11: 25550.52 | G11: 25299.83 | H11: 26397.43 | I11: 26648.12 | J11: 26946.23 | K11: 26350 | L11: 25801.2 | M11: 0.02876
A12: 2 | B12: ABB | C12: 1845.6 | D12: 1844.18 | E12: 1819.52 | F12: 1793.43 | G12: 1768.77 | H12: 1870.27 | I12: 1894.93 | J12: 1921.02 | K12: 1868.85 | L12: 1818.1 | M12: 2.0678
A13: 3 | B13: POWERINDIA | C13: 2342.85 | D13: 2335.62 | E13: 2301.23 | F13: 2259.62 | G13: 2225.23 | H13: 2377.23 | I13: 2411.62 | J13: 2453.23 | K13: 2370 | L13: 2294 | M13: 0.45123
A14: 4 | B14: ACC | C14: 2236.3 | D14: 2230.42 | E14: 2215.88 | F14: 2195.47 | G14: 2180.93 | H14: 2250.83 | I14: 2265.37 | J14: 2285.78 | K14: 2244.95 | L14: 2210 | M14: 4.84377
A15: 5 | B15: AIAENG | C15: 1906.85 | D15: 1913.13 | E15: 1896.02 | F15: 1885.18 | G15: 1868.07 | H15: 1923.97 | I15: 1941.08 | J15: 1951.92 | K15: 1930.25 | L15: 1902.3 | M15: 0.19553
A16: 6 | B16: APLAPOLLO | C16: 807.5 | D16: 797.50 | E16: 771.20 | F16: 734.90 | G16: 708.60 | H16: 833.80 | I16: 860.10 | J16: 896.40 | K16: 823.8 | L16: 761.2 | M16: 10.42136
A17: 7 | B17: AUBANK | C17: 1260.95 | D17: 1245.75 | E17: 1223.05 | F17: 1185.15 | G17: 1162.45 | H17: 1283.65 | I17: 1306.35 | J17: 1344.25 | K17: 1268.45 | L17: 1207.85 | M17: 22.64912
A18: 8 | B18: AARTIDRUGS | C18: 632.25 | D18: 635.42 | E18: 626.83 | F18: 621.42 | G18: 612.83 | H18: 640.83 | I18: 649.42 | J18: 654.83 | K18: 644 | L18: 630 | M18: 3.00312
A19: 9 | B19: AARTIIND | C19: 1014.45 | D19: 1012.13 | E19: 1005.32 | F19: 996.18 | G19: 989.37 | H19: 1021.27 | I19: 1028.08 | J19: 1037.22 | K19: 1018.95 | L19: 1003 | M19: 4.56876
A20: 10 | B20: AAVAS | C20: 2820.1 | D20: 2806.60 | E20: 2778.20 | F20: 2736.30 | G20: 2707.90 | H20: 2848.50 | I20: 2876.90 | J20: 2918.80 | K20: 2835 | L20: 2764.7 | M20: 0.40779
A21: 11 | B21: ABBOTINDIA | C21: 20205.2 | D21: 20163.78 | E21: 20041.42 | F21: 19877.63 | G21: 19755.27 | H21: 20327.57 | I21: 20449.93 | J21: 20613.72 | K21: 20286.15 | L21: 20000 | M21: 0.29284
A22: 12 | B22: ADANIENT | C22: 1543.85 | D22: 1540.67 | E22: 1524.08 | F22: 1504.32 | G22: 1487.73 | H22: 1560.43 | I22: 1577.02 | J22: 1596.78 | K22: 1557.25 | L22: 1520.9 | M22: 16.61783
A23: 13 | B23: ADANIGREEN | C23: 1179.95 | D23: 1183.92 | E23: 1168.03 | F23: 1156.12 | G23: 1140.23 | H23: 1195.83 | I23: 1211.72 | J23: 1223.63 | K23: 1199.8 | L23: 1172 | M23: 1.38432
A24: 14 | B24: ADANIPORTS | C24: 749.9 | D24: 749.50 | E24: 740.45 | F24: 731.00 | G24: 721.95 | H24: 758.95 | I24: 768.00 | J24: 777.45 | K24: 758.55 | L24: 740.05 | M24: 30.93933
A25: 15 | B25: ATGL | C25: 1434.05 | D25: 1438.42 | E25: 1406.83 | F25: 1379.62 | G25: 1348.03 | H25: 1465.63 | I25: 1497.22 | J25: 1524.43 | K25: 1470 | L25: 1411.2 | M25: 5.93252
A26: 16 | B26: ADANITRANS | C26: 1854.85 | D26: 1851.60 | E26: 1803.25 | F26: 1751.65 | G26: 1703.30 | H26: 1903.20 | I26: 1951.55 | J26: 2003.15 | K26: 1899.95 | L26: 1800 | M26: 0.62879
A27: 17 | B27: ABCAPITAL | C27: 100.3 | D27: 99.95 | E27: 98.30 | F27: 96.30 | G27: 94.65 | H27: 101.95 | I27: 103.60 | J27: 105.60 | K27: 101.6 | L27: 97.95 | M27: 26.88911
A28: 18 | B28: ABFRL | C28: 260.25 | D28: 257.05 | E28: 252.20 | F28: 244.15 | G28: 239.30 | H28: 265.10 | I28: 269.95 | J28: 278.00 | K28: 261.9 | L28: 249 | M28: 32.99448
A29: 19 | B29: ADVENZYMES | C29: 380.65 | D29: 379.72 | E29: 376.03 | F29: 371.42 | G29: 367.73 | H29: 384.33 | I29: 388.02 | J29: 392.63 | K29: 383.4 | L29: 375.1 | M29: 1.08206
A30: 20 | B30: AEGISCHEM | C30: 217 | D30: 214.57 | E30: 210.33 | F30: 203.67 | G30: 199.43 | H30: 221.23 | I30: 225.47 | J30: 232.13 | K30: 218.8 | L30: 207.9 | M30: 8.43555
A31: 21 | B31: AFFLE | C31: 1071.4 | D31: 1070.13 | E31: 1051.27 | F31: 1031.13 | G31: 1012.27 | H31: 1090.27 | I31: 1109.13 | J31: 1129.27 | K31: 1089 | L31: 1050 | M31: 1.69864
A32: 22 | B32: AJANTPHARM | C32: 2117.85 | D32: 2131.00 | E32: 2088.05 | F32: 2058.25 | G32: 2015.30 | H32: 2160.80 | I32: 2203.75 | J32: 2233.55 | K32: 2173.95 | L32: 2101.2 | M32: 0.34334
A33: 23 | B33: AKZOINDIA | C33: 2093.6 | D33: 2112.53 | E33: 2066.07 | F33: 2038.53 | G33: 1992.07 | H33: 2140.07 | I33: 2186.53 | J33: 2214.07 | K33: 2159 | L33: 2085 | M33: 0.13201
A34: 24 | B34: ALEMBICLTD | C34: 105.6 | D34: 105.13 | E34: 103.47 | F34: 101.33 | G34: 99.67 | H34: 107.27 | I34: 108.93 | J34: 111.07 | K34: 106.8 | L34: 103 | M34: 2.07075
A35: 25 | B35: APLLTD | C35: 756.95 | D35: 755.05 | E35: 742.90 | F35: 728.85 | G35: 716.70 | H35: 769.10 | I35: 781.25 | J35: 795.30 | K35: 767.2 | L35: 741 | M35: 2.36099
A36: 26 | B36: ALKEM | C36: 3695.85 | D36: 3696.95 | E36: 3669.10 | F36: 3642.35 | G36: 3614.50 | H36: 3723.70 | I36: 3751.55 | J36: 3778.30 | K36: 3724.8 | L36: 3670.2 | M36: 0.84404
A37: 27 | B37: ALKYLAMINE | C37: 3781.5 | D37: 3710.97 | E37: 3621.93 | F37: 3462.37 | G37: 3373.33 | H37: 3870.53 | I37: 3959.57 | J37: 4119.13 | K37: 3800 | L37: 3551.4 | M37: 0.62591
A38: 28 | B38: ALOKINDS | C38: 22.85 | D38: 22.95 | E38: 22.70 | F38: 22.55 | G38: 22.30 | H38: 23.10 | I38: 23.35 | J38: 23.50 | K38: 23.2 | L38: 22.8 | M38: 51.2318
A39: 29 | B39: AMARAJABAT | C39: 699.85 | D39: 698.27 | E39: 694.18 | F39: 688.52 | G39: 684.43 | H39: 703.93 | I39: 708.02 | J39: 713.68 | K39: 702.35 | L39: 692.6 | M39: 7.32385
A40: 30 | B40: AMBER | C40: 3440 | D40: 3372.55 | E40: 3283.25 | F40: 3126.50 | G40: 3037.20 | H40: 3529.30 | I40: 3618.60 | J40: 3775.35 | K40: 3461.85 | L40: 3215.8 | M40: 0.77933
A41: 31 | B41: AMBUJACEM | C41: 380.35 | D41: 378.30 | E41: 375.30 | F41: 370.25 | G41: 367.25 | H41: 383.35 | I41: 386.35 | J41: 391.40 | K41: 381.3 | L41: 373.25 | M41: 34.27318
A42: 32 | B42: ANGELBRKG | C42: 1292.65 | D42: 1285.97 | E42: 1261.83 | F42: 1231.02 | G42: 1206.88 | H42: 1316.78 | I42: 1340.92 | J42: 1371.73 | K42: 1310.1 | L42: 1255.15 | M42: 3.95137
A43: 33 | B43: APOLLOHOSP | C43: 4267.95 | D43: 4237.33 | E43: 4166.17 | F43: 4064.38 | G43: 3993.22 | H43: 4339.12 | I43: 4410.28 | J43: 4512.07 | K43: 4308.5 | L43: 4135.55 | M43: 7.9045
A44: 34 | B44: APOLLOTYRE | C44: 219.05 | D44: 218.73 | E44: 216.07 | F44: 213.08 | G44: 210.42 | H44: 221.72 | I44: 224.38 | J44: 227.37 | K44: 221.4 | L44: 215.75 | M44: 32.81444
A45: 35 | B45: ASAHIINDIA | C45: 352.7 | D45: 353.98 | E45: 348.97 | F45: 345.23 | G45: 340.22 | H45: 357.72 | I45: 362.73 | J45: 366.47 | K45: 359 | L45: 350.25 | M45: 0.38532
A46: 36 | B46: ASHOKLEY | C46: 143.35 | D46: 141.40 | E46: 138.85 | F46: 134.35 | G46: 131.80 | H46: 145.90 | I46: 148.45 | J46: 152.95 | K46: 143.95 | L46: 136.9 | M46: 125.17839
A47: 37 | B47: ASHOKA | C47: 109.95 | D47: 108.93 | E47: 107.02 | F47: 104.08 | G47: 102.17 | H47: 111.87 | I47: 113.78 | J47: 116.72 | K47: 110.85 | L47: 106 | M47: 11.1077
A48: 38 | B48: ASIANPAINT | C48: 2969.8 | D48: 2963.93 | E48: 2903.87 | F48: 2837.93 | G48: 2777.87 | H48: 3029.87 | I48: 3089.93 | J48: 3155.87 | K48: 3024 | L48: 2898 | M48: 19.88263
A49: 39 | B49: ASTERDM | C49: 187.35 | D49: 186.90 | E49: 183.80 | F49: 180.25 | G49: 177.15 | H49: 190.45 | I49: 193.55 | J49: 197.10 | K49: 190 | L49: 183.35 | M49: 5.79652
A50: 40 | B50: ASTRAZEN | C50: 3013.15 | D50: 3017.90 | E50: 2995.90 | F50: 2978.65 | G50: 2956.65 | H50: 3035.15 | I50: 3057.15 | J50: 3074.40 | K50: 3039.9 | L50: 3000.65 | M50: 0.1113
A51: 41 | B51: ASTRAL | C51: 2128.5 | D51: 2134.52 | E51: 2091.53 | F51: 2054.57 | G51: 2011.58 | H51: 2171.48 | I51: 2214.47 | J51: 2251.43 | K51: 2177.5 | L51: 2097.55 | M51: 2.55152
A52: 42 | B52: ATUL | C52: 9674.9 | D52: 9498.20 | E52: 9258.70 | F52: 8842.50 | G52: 8603.00 | H52: 9914.40 | I52: 10153.90 | J52: 10570.10 | K52: 9737.7 | L52: 9082 | M52: 0.19664
A53: 43 | B53: AUROPHARMA | C53: 703.5 | D53: 697.47 | E53: 689.43 | F53: 675.37 | G53: 667.33 | H53: 711.53 | I53: 719.57 | J53: 733.63 | K53: 705.5 | L53: 683.4 | M53: 17.17288
A54: 44 | B54: AVANTIFEED | C54: 551.55 | D54: 549.85 | E54: 544.70 | F54: 537.85 | G54: 532.70 | H54: 556.70 | I54: 561.85 | J54: 568.70 | K54: 555 | L54: 543 | M54: 0.89936
A55: 45 | B55: DMART | C55: 4568.5 | D55: 4510.83 | E55: 4422.67 | F55: 4276.83 | G55: 4188.67 | H55: 4656.67 | I55: 4744.83 | J55: 4890.67 | K55: 4599 | L55: 4365 | M55: 6.37834
A56: 46 | B56: AXISBANK | C56: 841.9 | D56: 839.02 | E56: 826.38 | F56: 810.87 | G56: 798.23 | H56: 854.53 | I56: 867.17 | J56: 882.68 | K56: 851.65 | L56: 823.5 | M56: 167.71909
A57: 47 | B57: BASF | C57: 3304.05 | D57: 3285.10 | E57: 3241.30 | F57: 3178.55 | G57: 3134.75 | H57: 3347.85 | I57: 3391.65 | J57: 3454.40 | K57: 3328.9 | L57: 3222.35 | M57: 0.2189
A58: 48 | B58: BEML | C58: 1603.35 | D58: 1596.03 | E58: 1534.07 | F58: 1464.78 | G58: 1402.82 | H58: 1665.32 | I58: 1727.28 | J58: 1796.57 | K58: 1658 | L58: 1526.75 | M58: 5.04017
A59: 49 | B59: BSE | C59: 1363.95 | D59: 1344.65 | E59: 1309.30 | F59: 1254.65 | G59: 1219.30 | H59: 1399.30 | I59: 1434.65 | J59: 1489.30 | K59: 1380 | L59: 1290 | M59: 7.10808
A60: 50 | B60: BAJAJ-AUTO | C60: 3791.75 | D60: 3788.60 | E60: 3765.40 | F60: 3739.05 | G60: 3715.85 | H60: 3814.95 | I60: 3838.15 | J60: 3864.50 | K60: 3811.8 | L60: 3762.25 | M60: 1.7005
A61: 51 | B61: BAJAJCON | C61: 235.45 | D61: 234.17 | E61: 230.83 | F61: 226.22 | G61: 222.88 | H61: 238.78 | I61: 242.12 | J61: 246.73 | K61: 237.5 | L61: 229.55 | M61: 3.59835
A62: 52 | B62: BAJAJELEC | C62: 1147.75 | D62: 1150.98 | E62: 1136.97 | F62: 1126.18 | G62: 1112.17 | H62: 1161.77 | I62: 1175.78 | J62: 1186.57 | K62: 1165 | L62: 1140.2 | M62: 0.59517
A63: 53 | B63: BAJFINANCE | C63: 7855.65 | D63: 7800.57 | E63: 7706.18 | F63: 7556.72 | G63: 7462.33 | H63: 7950.03 | I63: 8044.42 | J63: 8193.88 | K63: 7894.95 | L63: 7651.1 | M63: 16.60575
A64: 54 | B64: BAJAJFINSV | C64: 18353.35 | D64: 18259.47 | E64: 18068.93 | F64: 17784.52 | G64: 17593.98 | H64: 18543.88 | I64: 18734.42 | J64: 19018.83 | K64: 18450 | L64: 17975.05 | M64: 2.96749
A65: 55 | B65: BAJAJHLDNG | C65: 4725.5 | D65: 4735.53 | E65: 4693.07 | F65: 4660.63 | G65: 4618.17 | H65: 4767.97 | I65: 4810.43 | J65: 4842.87 | K65: 4778 | L65: 4703.1 | M65: 0.10372
A66: 56 | B66: BALAMINES | C66: 3965.8 | D66: 3946.53 | E66: 3844.27 | F66: 3722.73 | G66: 3620.47 | H66: 4068.07 | I66: 4170.33 | J66: 4291.87 | K66: 4048.8 | L66: 3825 | M66: 1.18649
A67: 57 | B67: BALKRISIND | C67: 2492.2 | D67: 2459.20 | E67: 2413.50 | F67: 2334.80 | G67: 2289.10 | H67: 2537.90 | I67: 2583.60 | J67: 2662.30 | K67: 2504.9 | L67: 2380.5 | M67: 5.50532
A68: 58 | B68: BALMLAWRIE | C68: 129.1 | D68: 129.25 | E68: 128.10 | F68: 127.10 | G68: 125.95 | H68: 130.25 | I68: 131.40 | J68: 132.40 | K68: 130.4 | L68: 128.25 | M68: 3.13012
A69: 59 | B69: BALRAMCHIN | C69: 332.15 | D69: 323.38 | E69: 311.87 | F69: 291.58 | G69: 280.07 | H69: 343.67 | I69: 355.18 | J69: 375.47 | K69: 334.9 | L69: 303.1 | M69: 26.1773
A70: 60 | B70: BANDHANBNK | C70: 305.4 | D70: 306.80 | E70: 297.80 | F70: 290.20 | G70: 281.20 | H70: 314.40 | I70: 323.40 | J70: 331.00 | K70: 315.8 | L70: 299.2 | M70: 112.08268
A71: 61 | B71: BANKBARODA | C71: 99.9 | D71: 99.93 | E71: 96.47 | F71: 93.03 | G71: 89.57 | H71: 103.37 | I71: 106.83 | J71: 110.27 | K71: 103.4 | L71: 96.5 | M71: 1482.11296
A72: 62 | B72: BANKINDIA | C72: 61.85 | D72: 62.05 | E72: 60.85 | F72: 59.85 | G72: 58.65 | H72: 63.05 | I72: 64.25 | J72: 65.25 | K72: 63.25 | L72: 61.05 | M72: 138.2613
A73: 63 | B73: MAHABANK | C73: 21.8 | D73: 21.78 | E73: 21.32 | F73: 20.83 | G73: 20.37 | H73: 22.27 | I73: 22.73 | J73: 23.22 | K73: 22.25 | L73: 21.3 | M73: 94.81418
A74: 64 | B74: BATAINDIA | C74: 1989.5 | D74: 1983.77 | E74: 1962.73 | F74: 1935.97 | G74: 1914.93 | H74: 2010.53 | I74: 2031.57 | J74: 2058.33 | K74: 2004.8 | L74: 1957 | M74: 2.74514
A75: 65 | B75: BAYERCROP | C75: 4997.2 | D75: 5029.45 | E75: 4943.90 | F75: 4890.60 | G75: 4805.05 | H75: 5082.75 | I75: 5168.30 | J75: 5221.60 | K75: 5115 | L75: 4976.15 | M75: 0.30151
A76: 66 | B76: BERGEPAINT | C76: 733.3 | D76: 731.35 | E76: 719.70 | F76: 706.10 | G76: 694.45 | H76: 744.95 | I76: 756.60 | J76: 770.20 | K76: 743 | L76: 717.75 | M76: 6.86132
A77: 67 | B77: BDL | C77: 420.7 | D77: 424.63 | E77: 414.27 | F77: 407.83 | G77: 397.47 | H77: 431.07 | I77: 441.43 | J77: 447.87 | K77: 435 | L77: 418.2 | M77: 1.71582
A78: 68 | B78: BEL | C78: 206.2 | D78: 204.85 | E78: 202.45 | F78: 198.70 | G78: 196.30 | H78: 208.60 | I78: 211.00 | J78: 214.75 | K78: 207.25 | L78: 201.1 | M78: 31.68382
A79: 69 | B79: BHARATFORG | C79: 785.9 | D79: 777.32 | E79: 766.63 | F79: 747.37 | G79: 736.68 | H79: 796.58 | I79: 807.27 | J79: 826.53 | K79: 788 | L79: 758.05 | M79: 12.98265
A80: 70 | B80: BHEL | C80: 71.65 | D80: 70.80 | E80: 69.50 | F80: 67.35 | G80: 66.05 | H80: 72.95 | I80: 74.25 | J80: 76.40 | K80: 72.1 | L80: 68.65 | M80: 619.31483
A81: 71 | B81: BPCL | C81: 431.05 | D81: 432.02 | E81: 427.08 | F81: 423.12 | G81: 418.18 | H81: 435.98 | I81: 440.92 | J81: 444.88 | K81: 436.95 | L81: 428.05 | M81: 49.72613
A82: 72 | B82: BHARATRAS | C82: 10385.4 | D82: 10340.72 | E82: 10161.43 | F82: 9937.47 | G82: 9758.18 | H82: 10564.68 | I82: 10743.97 | J82: 10967.93 | K82: 10520 | L82: 10116.75 | M82: 0.04722
A83: 73 | B83: BHARTIARTL | C83: 696.2 | D83: 698.35 | E83: 686.85 | F83: 677.50 | G83: 666.00 | H83: 707.70 | I83: 719.20 | J83: 728.55 | K83: 709.85 | L83: 689 | M83: 109.53878
A84: 74 | B84: BIOCON | C84: 333.55 | D84: 329.45 | E84: 324.20 | F84: 314.85 | G84: 309.60 | H84: 338.80 | I84: 344.05 | J84: 353.40 | K84: 334.7 | L84: 320.1 | M84: 31.13691
A85: 75 | B85: BIRLACORPN | C85: 1366.55 | D85: 1351.52 | E85: 1331.03 | F85: 1295.52 | G85: 1275.03 | H85: 1387.03 | I85: 1407.52 | J85: 1443.03 | K85: 1372 | L85: 1316 | M85: 0.52259
A86: 76 | B86: BSOFT | C86: 400.2 | D86: 401.45 | E86: 397.40 | F86: 394.60 | G86: 390.55 | H86: 404.25 | I86: 408.30 | J86: 411.10 | K86: 405.5 | L86: 398.65 | M86: 11.71704
A87: 77 | B87: BLISSGVS | C87: 103.9 | D87: 104.65 | E87: 102.05 | F87: 100.20 | G87: 97.60 | H87: 106.50 | I87: 109.10 | J87: 110.95 | K87: 107.25 | L87: 102.8 | M87: 2.37492
A88: 78 | B88: BLUEDART | C88: 6236.3 | D88: 6215.78 | E88: 6150.02 | F88: 6063.73 | G88: 5997.97 | H88: 6302.07 | I88: 6367.83 | J88: 6454.12 | K88: 6281.55 | L88: 6129.5 | M88: 0.13092
A89: 79 | B89: BLUESTARCO | C89: 928.95 | D89: 931.58 | E89: 912.37 | F89: 895.78 | G89: 876.57 | H89: 948.17 | I89: 967.38 | J89: 983.97 | K89: 950.8 | L89: 915 | M89: 1.59414
A90: 80 | B90: BBTC | C90: 1094.8 | D90: 1096.60 | E90: 1089.20 | F90: 1083.60 | G90: 1076.20 | H90: 1102.20 | I90: 1109.60 | J90: 1115.20 | K90: 1104 | L90: 1091 | M90: 0.25044
A91: 81 | B91: BOSCHLTD | C91: 17021.8 | D91: 16920.27 | E91: 16761.53 | F91: 16501.27 | G91: 16342.53 | H91: 17180.53 | I91: 17339.27 | J91: 17599.53 | K91: 17079 | L91: 16660 | M91: 0.22206
A92: 82 | B92: BRIGADE | C92: 465.7 | D92: 458.08 | E92: 441.62 | F92: 417.53 | G92: 401.07 | H92: 482.17 | I92: 498.63 | J92: 522.72 | K92: 474.55 | L92: 434 | M92: 10.14442
A93: 83 | B93: BRITANNIA | C93: 3692.8 | D93: 3667.90 | E93: 3630.75 | F93: 3568.70 | G93: 3531.55 | H93: 3729.95 | I93: 3767.10 | J93: 3829.15 | K93: 3705.05 | L93: 3605.85 | M93: 3.26825
A94: 84 | B94: BURGERKING | C94: 158.25 | D94: 158.63 | E94: 156.87 | F94: 155.48 | G94: 153.72 | H94: 160.02 | I94: 161.78 | J94: 163.17 | K94: 160.4 | L94: 157.25 | M94: 7.39804
A95: 85 | B95: CCL | C95: 358.9 | D95: 358.32 | E95: 352.88 | F95: 346.87 | G95: 341.43 | H95: 364.33 | I95: 369.77 | J95: 375.78 | K95: 363.75 | L95: 352.3 | M95: 3.19963
A96: 86 | B96: CESC | C96: 91.95 | D96: 92.12 | E96: 90.83 | F96: 89.72 | G96: 88.43 | H96: 93.23 | I96: 94.52 | J96: 95.63 | K96: 93.4 | L96: 91 | M96: 28.83395
A97: 87 | B97: CRISIL | C97: 2839.75 | D97: 2862.58 | E97: 2797.17 | F97: 2754.58 | G97: 2689.17 | H97: 2905.17 | I97: 2970.58 | J97: 3013.17 | K97: 2928 | L97: 2820 | M97: 0.27287
A98: 88 | B98: CSBBANK | C98: 303.55 | D98: 306.70 | E98: 299.35 | F98: 295.15 | G98: 287.80 | H98: 310.90 | I98: 318.25 | J98: 322.45 | K98: 314.05 | L98: 302.5 | M98: 6.59423
A99: 89 | B99: CADILAHC | C99: 508.8 | D99: 505.58 | E99: 501.17 | F99: 493.53 | G99: 489.12 | H99: 513.22 | I99: 517.63 | J99: 525.27 | K99: 510 | L99: 497.95 | M99: 19.21489
A100: 90 | B100: CANFINHOME | C100: 656.45 | D100: 657.35 | E100: 645.10 | F100: 633.75 | G100: 621.50 | H100: 668.70 | I100: 680.95 | J100: 692.30 | K100: 669.6 | L100: 646 | M100: 7.57028
A101: 91 | B101: CANBK | C101: 193.35 | D101: 197.37 | E101: 187.23 | F101: 181.12 | G101: 170.98 | H101: 203.48 | I101: 213.62 | J101: 219.73 | K101: 207.5 | L101: 191.25 | M101: 601.55155
A102: 92 | B102: CAPLIPOINT | C102: 865.7 | D102: 869.27 | E102: 851.48 | F102: 837.27 | G102: 819.48 | H102: 883.48 | I102: 901.27 | J102: 915.48 | K102: 887.05 | L102: 855.05 | M102: 1.18688
A103: 93 | B103: CGCL | C103: 521.3 | D103: 519.70 | E103: 511.60 | F103: 501.90 | G103: 493.80 | H103: 529.40 | I103: 537.50 | J103: 547.20 | K103: 527.8 | L103: 510 | M103: 0.33523
A104: 94 | B104: CARBORUNIV | C104: 867.65 | D104: 861.68 | E104: 843.37 | F104: 819.08 | G104: 800.77 | H104: 885.97 | I104: 904.28 | J104: 928.57 | K104: 880 | L104: 837.4 | M104: 0.4668
A105: 95 | B105: CASTROLIND | C105: 140.75 | D105: 140.32 | E105: 138.73 | F105: 136.72 | G105: 135.13 | H105: 142.33 | I105: 143.92 | J105: 145.93 | K105: 141.9 | L105: 138.3 | M105: 4.56392
A106: 96 | B106: CEATLTD | C106: 1295.5 | D106: 1272.17 | E106: 1214.33 | F106: 1133.17 | G106: 1075.33 | H106: 1353.33 | I106: 1411.17 | J106: 1492.33 | K106: 1330 | L106: 1191 | M106: 6.37754
A107: 97 | B107: CENTRALBK | C107: 23.6 | D107: 23.42 | E107: 22.83 | F107: 22.07 | G107: 21.48 | H107: 24.18 | I107: 24.77 | J107: 25.53 | K107: 24 | L107: 22.65 | M107: 189.71424
A108: 98 | B108: CDSL | C108: 1395.2 | D108: 1374.88 | E108: 1354.57 | F108: 1313.93 | G108: 1293.62 | H108: 1415.52 | I108: 1435.83 | J108: 1476.47 | K108: 1395.2 | L108: 1334.25 | M108: 4.21615
A109: 99 | B109: CENTURYPLY | C109: 550.7 | D109: 547.48 | E109: 539.97 | F109: 529.23 | G109: 521.72 | H109: 558.22 | I109: 565.73 | J109: 576.47 | K109: 555 | L109: 536.75 | M109: 1.59041
A110: 100 | B110: CENTURYTEX | C110: 810.6 | D110: 809.55 | E110: 791.85 | F110: 773.10 | G110: 755.40 | H110: 828.30 | I110: 846.00 | J110: 864.75 | K110: 827.25 | L110: 790.8 | M110: 3.94041
A111: 101 | B111: CERA | C111: 5302.05 | D111: 5476.37 | E111: 5007.83 | F111: 4713.62 | G111: 4245.08 | H111: 5770.58 | I111: 6239.12 | J111: 6533.33 | K111: 5944.9 | L111: 5182.15 | M111: 1.06142
A112: 102 | B112: CHALET | C112: 238.25 | D112: 238.92 | E112: 234.33 | F112: 230.42 | G112: 225.83 | H112: 242.83 | I112: 247.42 | J112: 251.33 | K112: 243.5 | L112: 235 | M112: 1.38482
A113: 103 | B113: CHAMBLFERT | C113: 336.75 | D113: 334.30 | E113: 326.45 | F113: 316.15 | G113: 308.30 | H113: 344.60 | I113: 352.45 | J113: 362.75 | K113: 342.15 | L113: 324 | M113: 9.82748
A114: 104 | B114: CHOLAHLDNG | C114: 695.9 | D114: 695.50 | E114: 689.05 | F114: 682.20 | G114: 675.75 | H114: 702.35 | I114: 708.80 | J114: 715.65 | K114: 701.95 | L114: 688.65 | M114: 0.384
A115: 105 | B115: CHOLAFIN | C115: 604.9 | D115: 598.33 | E115: 584.92 | F115: 564.93 | G115: 551.52 | H115: 618.32 | I115: 631.73 | J115: 651.72 | K115: 611.75 | L115: 578.35 | M115: 35.96997
A116: 106 | B116: CIPLA | C116: 907.5 | D116: 907.22 | E116: 900.28 | F116: 893.07 | G116: 886.13 | H116: 914.43 | I116: 921.37 | J116: 928.58 | K116: 914.15 | L116: 900 | M116: 14.05411
A117: 107 | B117: CUB | C117: 181.05 | D117: 180.07 | E117: 176.18 | F117: 171.32 | G117: 167.43 | H117: 184.93 | I117: 188.82 | J117: 193.68 | K117: 183.95 | L117: 175.2 | M117: 107.79683
A118: 108 | B118: COALINDIA | C118: 175.05 | D118: 174.27 | E118: 172.53 | F118: 170.02 | G118: 168.28 | H118: 176.78 | I118: 178.52 | J118: 181.03 | K118: 176 | L118: 171.75 | M118: 116.02891
A119: 109 | B119: COCHINSHIP | C119: 353.7 | D119: 354.75 | E119: 349.50 | F119: 345.30 | G119: 340.05 | H119: 358.95 | I119: 364.20 | J119: 368.40 | K119: 360 | L119: 350.55 | M119: 1.39169
A120: 110 | B120: COFORGE | C120: 5088.05 | D120: 5086.02 | E120: 4964.08 | F120: 4840.12 | G120: 4718.18 | H120: 5209.98 | I120: 5331.92 | J120: 5455.88 | K120: 5207.95 | L120: 4962.05 | M120: 4.89882
A121: 111 | B121: COLPAL | C121: 1546.6 | D121: 1538.78 | E121: 1527.82 | F121: 1509.03 | G121: 1498.07 | H121: 1557.57 | I121: 1568.53 | J121: 1587.32 | K121: 1549.75 | L121: 1520 | M121: 6.42134
A122: 112 | B122: CAMS | C122: 3016.15 | D122: 2983.87 | E122: 2943.73 | F122: 2871.32 | G122: 2831.18 | H122: 3056.28 | I122: 3096.42 | J122: 3168.83 | K122: 3024 | L122: 2911.45 | M122: 1.08059
A123: 113 | B123: CONCOR | C123: 676.5 | D123: 674.88 | E123: 668.62 | F123: 660.73 | G123: 654.47 | H123: 682.77 | I123: 689.03 | J123: 696.92 | K123: 681.15 | L123: 667 | M123: 16.91659
A124: 114 | B124: COROMANDEL | C124: 807.9 | D124: 807.73 | E124: 799.22 | F124: 790.53 | G124: 782.02 | H124: 816.42 | I124: 824.93 | J124: 833.62 | K124: 816.25 | L124: 799.05 | M124: 2.9212
A125: 115 | B125: CREDITACC | C125: 633.2 | D125: 632.80 | E125: 626.50 | F125: 619.80 | G125: 613.50 | H125: 639.50 | I125: 645.80 | J125: 652.50 | K125: 639.1 | L125: 626.1 | M125: 1.04976
A126: 116 | B126: CROMPTON | C126: 463.9 | D126: 461.97 | E126: 451.93 | F126: 439.97 | G126: 429.93 | H126: 473.93 | I126: 483.97 | J126: 495.93 | K126: 472 | L126: 450 | M126: 21.30926
A127: 117 | B127: CUMMINSIND | C127: 875.35 | D127: 875.90 | E127: 864.80 | F127: 854.25 | G127: 843.15 | H127: 886.45 | I127: 897.55 | J127: 908.10 | K127: 887 | L127: 865.35 | M127: 6.5492
A128: 118 | B128: CYIENT | C128: 1088.05 | D128: 1086.52 | E128: 1051.63 | F128: 1015.22 | G128: 980.33 | H128: 1122.93 | I128: 1157.82 | J128: 1194.23 | K128: 1121.4 | L128: 1050.1 | M128: 2.88813
A129: 119 | B129: DCBBANK | C129: 95.85 | D129: 96.10 | E129: 94.75 | F129: 93.65 | G129: 92.30 | H129: 97.20 | I129: 98.55 | J129: 99.65 | K129: 97.45 | L129: 95 | M129: 12.18712
A130: 120 | B130: DCMSHRIRAM | C130: 983.85 | D130: 976.28 | E130: 957.57 | F130: 931.28 | G130: 912.57 | H130: 1002.57 | I130: 1021.28 | J130: 1047.57 | K130: 995 | L130: 950 | M130: 0.86986
A131: 121 | B131: DLF | C131: 415.85 | D131: 411.78 | E131: 406.42 | F131: 396.98 | G131: 391.62 | H131: 421.22 | I131: 426.58 | J131: 436.02 | K131: 417.15 | L131: 402.35 | M131: 51.11958
A132: 122 | B132: DABUR | C132: 581.35 | D132: 579.92 | E132: 575.88 | F132: 570.42 | G132: 566.38 | H132: 585.38 | I132: 589.42 | J132: 594.88 | K132: 583.95 | L132: 574.45 | M132: 19.49684
A133: 123 | B133: DALBHARAT | C133: 1944.6 | D133: 1927.30 | E133: 1899.60 | F133: 1854.60 | G133: 1826.90 | H133: 1972.30 | I133: 2000.00 | J133: 2045.00 | K133: 1955 | L133: 1882.3 | M133: 2.13921
A134: 124 | B134: DEEPAKNTR | C134: 2467 | D134: 2425.67 | E134: 2371.33 | F134: 2275.67 | G134: 2221.33 | H134: 2521.33 | I134: 2575.67 | J134: 2671.33 | K134: 2480 | L134: 2330 | M134: 14.87281
A135: 125 | B135: DELTACORP | C135: 262.5 | D135: 260.28 | E135: 256.57 | F135: 250.63 | G135: 246.92 | H135: 266.22 | I135: 269.93 | J135: 275.87 | K135: 264 | L135: 254.35 | M135: 31.14891
A136: 126 | B136: DHANI | C136: 197.35 | D136: 198.62 | E136: 194.18 | F136: 191.02 | G136: 186.58 | H136: 201.78 | I136: 206.22 | J136: 209.38 | K136: 203.05 | L136: 195.45 | M136: 10.95709
A137: 127 | B137: DHANUKA | C137: 743.9 | D137: 749.07 | E137: 734.98 | F137: 726.07 | G137: 711.98 | H137: 757.98 | I137: 772.07 | J137: 780.98 | K137: 763.15 | L137: 740.15 | M137: 0.7538
A138: 128 | B138: DBL | C138: 633.1 | D138: 635.70 | E138: 625.40 | F138: 617.70 | G138: 607.40 | H138: 643.40 | I138: 653.70 | J138: 661.40 | K138: 646 | L138: 628 | M138: 1.56399
A139: 129 | B139: DISHTV | C139: 17.5 | D139: 17.65 | E139: 17.30 | F139: 17.10 | G139: 16.75 | H139: 17.85 | I139: 18.20 | J139: 18.40 | K139: 18 | L139: 17.45 | M139: 20.66874
A140: 130 | B140: DCAL | C140: 216.4 | D140: 214.33 | E140: 209.87 | F140: 203.33 | G140: 198.87 | H140: 220.87 | I140: 225.33 | J140: 231.87 | K140: 218.8 | L140: 207.8 | M140: 4.25722
A141: 131 | B141: DIVISLAB | C141: 5018.9 | D141: 5021.67 | E141: 4969.33 | F141: 4919.77 | G141: 4867.43 | H141: 5071.23 | I141: 5123.57 | J141: 5173.13 | K141: 5074 | L141: 4972.1 | M141: 3.34367
A142: 132 | B142: DIXON | C142: 5161.1 | D142: 5037.95 | E142: 4858.15 | F142: 4555.20 | G142: 4375.40 | H142: 5340.90 | I142: 5520.70 | J142: 5823.65 | K142: 5217.75 | L142: 4735 | M142: 7.66074
A143: 133 | B143: LALPATHLAB | C143: 3556.45 | D143: 3517.17 | E143: 3455.33 | F143: 3354.22 | G143: 3292.38 | H143: 3618.28 | I143: 3680.12 | J143: 3781.23 | K143: 3579 | L143: 3416.05 | M143: 2.04718
A144: 134 | B144: DRREDDY | C144: 4666.2 | D144: 4667.33 | E144: 4635.87 | F144: 4605.53 | G144: 4574.07 | H144: 4697.67 | I144: 4729.13 | J144: 4759.47 | K144: 4698.8 | L144: 4637 | M144: 2.72713
A145: 135 | B145: EIDPARRY | C145: 463.75 | D145: 460.33 | E145: 452.77 | F145: 441.78 | G145: 434.22 | H145: 471.32 | I145: 478.88 | J145: 489.87 | K145: 467.9 | L145: 449.35 | M145: 1.26072
A146: 136 | B146: EIHOTEL | C146: 139.9 | D146: 141.15 | E146: 137.80 | F146: 135.70 | G146: 132.35 | H146: 143.25 | I146: 146.60 | J146: 148.70 | K146: 144.5 | L146: 139.05 | M146: 7.21393
A147: 137 | B147: EPL | C147: 216.95 | D147: 218.82 | E147: 213.28 | F147: 209.62 | G147: 204.08 | H147: 222.48 | I147: 228.02 | J147: 231.68 | K147: 224.35 | L147: 215.15 | M147: 2.43042
A148: 138 | B148: EDELWEISS | C148: 77.65 | D148: 77.22 | E148: 76.43 | F148: 75.22 | G148: 74.43 | H148: 78.43 | I148: 79.22 | J148: 80.43 | K148: 78 | L148: 76 | M148: 9.21521
A149: 139 | B149: EICHERMOT | C149: 2590.25 | D149: 2591.73 | E149: 2570.47 | F149: 2550.68 | G149: 2529.42 | H149: 2611.52 | I149: 2632.78 | J149: 2652.57 | K149: 2613 | L149: 2571.95 | M149: 6.77512
A150: 140 | B150: ELGIEQUIP | C150: 196.95 | D150: 197.47 | E150: 195.48 | F150: 194.02 | G150: 192.03 | H150: 198.93 | I150: 200.92 | J150: 202.38 | K150: 199.45 | L150: 196 | M150: 0.67949
A151: 141 | B151: EMAMILTD | C151: 520.65 | D151: 520.22 | E151: 508.38 | F151: 496.12 | G151: 484.28 | H151: 532.48 | I151: 544.32 | J151: 556.58 | K151: 532.05 | L151: 507.95 | M151: 6.64582
A152: 142 | B152: ENDURANCE | C152: 1785.55 | D152: 1785.30 | E152: 1725.60 | F152: 1665.65 | G152: 1605.95 | H152: 1845.25 | I152: 1904.95 | J152: 1964.90 | K152: 1845 | L152: 1725.35 | M152: 1.24378
A153: 143 | B153: ENGINERSIN | C153: 73.65 | D153: 73.78 | E153: 73.32 | F153: 72.98 | G153: 72.52 | H153: 74.12 | I153: 74.58 | J153: 74.92 | K153: 74.25 | L153: 73.45 | M153: 12.78427
A154: 144 | B154: EQUITAS | C154: 131.85 | D154: 132.48 | E154: 128.97 | F154: 126.08 | G154: 122.57 | H154: 135.37 | I154: 138.88 | J154: 141.77 | K154: 136 | L154: 129.6 | M154: 7.89287
A155: 145 | B155: ERIS | C155: 810 | D155: 811.58 | E155: 803.42 | F155: 796.83 | G155: 788.67 | H155: 818.17 | I155: 826.33 | J155: 832.92 | K155: 819.75 | L155: 805 | M155: 0.49129
A156: 146 | B156: ESCORTS | C156: 1544.45 | D156: 1526.78 | E156: 1503.92 | F156: 1463.38 | G156: 1440.52 | H156: 1567.32 | I156: 1590.18 | J156: 1630.72 | K156: 1549.65 | L156: 1486.25 | M156: 13.64333
A157: 147 | B157: EXIDEIND | C157: 176.65 | D157: 176.07 | E157: 174.78 | F157: 172.92 | G157: 171.63 | H157: 177.93 | I157: 179.22 | J157: 181.08 | K157: 177.35 | L157: 174.2 | M157: 22.12467
A158: 148 | B158: FDC | C158: 326.7 | D158: 326.77 | E158: 323.78 | F158: 320.87 | G158: 317.88 | H158: 329.68 | I158: 332.67 | J158: 335.58 | K158: 329.75 | L158: 323.85 | M158: 0.98368
A159: 149 | B159: FEDERALBNK | C159: 102 | D159: 102.78 | E159: 100.87 | F159: 99.73 | G159: 97.82 | H159: 103.92 | I159: 105.83 | J159: 106.97 | K159: 104.7 | L159: 101.65 | M159: 256.56807
A160: 150 | B160: FINEORG | C160: 3443.9 | D160: 3411.12 | E160: 3356.23 | F160: 3268.57 | G160: 3213.68 | H160: 3498.78 | I160: 3553.67 | J160: 3641.33 | K160: 3466 | L160: 3323.45 | M160: 0.24043
A161: 151 | B161: FINCABLES | C161: 460.5 | D161: 460.80 | E161: 456.65 | F161: 452.80 | G161: 448.65 | H161: 464.65 | I161: 468.80 | J161: 472.65 | K161: 464.95 | L161: 456.95 | M161: 0.82337
A162: 152 | B162: FINPIPE | C162: 226.35 | D162: 226.22 | E162: 224.13 | F162: 221.92 | G162: 219.83 | H162: 228.43 | I162: 230.52 | J162: 232.73 | K162: 228.3 | L162: 224 | M162: 6.47092
A163: 153 | B163: FSL | C163: 200.85 | D163: 198.87 | E163: 194.48 | F163: 188.12 | G163: 183.73 | H163: 205.23 | I163: 209.62 | J163: 215.98 | K163: 203.25 | L163: 192.5 | M163: 32.46837
A164: 154 | B164: FORTIS | C164: 257.25 | D164: 254.43 | E164: 250.87 | F164: 244.48 | G164: 240.92 | H164: 260.82 | I164: 264.38 | J164: 270.77 | K164: 258 | L164: 248.05 | M164: 13.68351
A165: 155 | B165: FCONSUMER | C165: 7.1 | D165: 7.15 | E165: 7.00 | F165: 6.90 | G165: 6.75 | H165: 7.25 | I165: 7.40 | J165: 7.50 | K165: 7.3 | L165: 7.05 | M165: 63.71281
A166: 156 | B166: FRETAIL | C166: 49.6 | D166: 49.55 | E166: 48.65 | F166: 47.70 | G166: 46.80 | H166: 50.50 | I166: 51.40 | J166: 52.35 | K166: 50.45 | L166: 48.6 | M166: 15.52146
A167: 157 | B167: GAIL | C167: 152 | D167: 151.12 | E167: 149.73 | F167: 147.47 | G167: 146.08 | H167: 153.38 | I167: 154.77 | J167: 157.03 | K167: 152.5 | L167: 148.85 | M167: 75.5036
A168: 158 | B168: GEPIL | C168: 304.35 | D168: 305.12 | E168: 302.23 | F168: 300.12 | G168: 297.23 | H168: 307.23 | I168: 310.12 | J168: 312.23 | K168: 308 | L168: 303 | M168: 0.23746
A169: 159 | B169: GMMPFAUDLR | C169: 4869.95 | D169: 4824.22 | E169: 4733.43 | F169: 4596.92 | G169: 4506.13 | H169: 4960.73 | I169: 5051.52 | J169: 5188.03 | K169: 4915 | L169: 4687.7 | M169: 0.29216
A170: 160 | B170: GMRINFRA | C170: 41.2 | D170: 41.13 | E170: 40.67 | F170: 40.13 | G170: 39.67 | H170: 41.67 | I170: 42.13 | J170: 42.67 | K170: 41.6 | L170: 40.6 | M170: 122.80853
A171: 161 | B171: GALAXYSURF | C171: 3161.95 | D171: 3163.93 | E171: 3105.92 | F171: 3049.88 | G171: 2991.87 | H171: 3219.97 | I171: 3277.98 | J171: 3334.02 | K171: 3221.95 | L171: 3107.9 | M171: 0.25623
A172: 162 | B172: GRSE | C172: 221.6 | D172: 222.55 | E172: 218.10 | F172: 214.60 | G172: 210.15 | H172: 226.05 | I172: 230.50 | J172: 234.00 | K172: 227 | L172: 219.05 | M172: 1.87252
A173: 163 | B173: GARFIBRES | C173: 3365.65 | D173: 3369.92 | E173: 3319.83 | F173: 3274.02 | G173: 3223.93 | H173: 3415.73 | I173: 3465.82 | J173: 3511.63 | K173: 3420 | L173: 3324.1 | M173: 0.12706
A174: 164 | B174: GICRE | C174: 136.45 | D174: 136.95 | E174: 135.10 | F174: 133.75 | G174: 131.90 | H174: 138.30 | I174: 140.15 | J174: 141.50 | K174: 138.8 | L174: 135.6 | M174: 6.03741
A175: 165 | B175: GILLETTE | C175: 5690 | D175: 5687.67 | E175: 5657.28 | F175: 5624.57 | G175: 5594.18 | H175: 5720.38 | I175: 5750.77 | J175: 5783.48 | K175: 5718.05 | L175: 5654.95 | M175: 0.02143
A176: 166 | B176: GLAND | C176: 3560.3 | D176: 3617.60 | E176: 3455.20 | F176: 3350.10 | G176: 3187.70 | H176: 3722.70 | I176: 3885.10 | J176: 3990.20 | K176: 3780 | L176: 3512.5 | M176: 3.72705
A177: 167 | B177: GLAXO | C177: 1462.4 | D177: 1462.57 | E177: 1451.58 | F177: 1440.77 | G177: 1429.78 | H177: 1473.38 | I177: 1484.37 | J177: 1495.18 | K177: 1473.55 | L177: 1451.75 | M177: 0.19248
A178: 168 | B178: GLENMARK | C178: 507.9 | D178: 501.70 | E178: 493.85 | F178: 479.80 | G178: 471.95 | H178: 515.75 | I178: 523.60 | J178: 537.65 | K178: 509.55 | L178: 487.65 | M178: 11.73704
A179: 169 | B179: GODFRYPHLP | C179: 1311.2 | D179: 1321.07 | E179: 1291.83 | F179: 1272.47 | G179: 1243.23 | H179: 1340.43 | I179: 1369.67 | J179: 1389.03 | K179: 1350.3 | L179: 1301.7 | M179: 0.75222
A180: 170 | B180: GODREJAGRO | C180: 593.45 | D180: 594.35 | E180: 585.70 | F180: 577.95 | G180: 569.30 | H180: 602.10 | I180: 610.75 | J180: 618.50 | K180: 603 | L180: 586.6 | M180: 0.59622
A181: 171 | B181: GODREJCP | C181: 964 | D181: 956.00 | E181: 943.10 | F181: 922.20 | G181: 909.30 | H181: 976.90 | I181: 989.80 | J181: 1010.70 | K181: 968.9 | L181: 935.1 | M181: 8.67692
A182: 172 | B182: GODREJIND | C182: 575.45 | D182: 574.83 | E182: 570.67 | F182: 565.88 | G182: 561.72 | H182: 579.62 | I182: 583.78 | J182: 588.57 | K182: 579 | L182: 570.05 | M182: 0.7051
A183: 173 | B183: GODREJPROP | C183: 2345.25 | D183: 2324.95 | E183: 2286.40 | F183: 2227.55 | G183: 2189.00 | H183: 2383.80 | I183: 2422.35 | J183: 2481.20 | K183: 2363.5 | L183: 2266.1 | M183: 10.14326
A184: 174 | B184: GRANULES | C184: 317.65 | D184: 317.32 | E184: 315.18 | F184: 312.72 | G184: 310.58 | H184: 319.78 | I184: 321.92 | J184: 324.38 | K184: 319.45 | L184: 314.85 | M184: 7.88998
A185: 175 | B185: GRAPHITE | C185: 556.75 | D185: 546.70 | E185: 526.20 | F185: 495.65 | G185: 475.15 | H185: 577.25 | I185: 597.75 | J185: 628.30 | K185: 567.2 | L185: 516.15 | M185: 8.16529
A186: 176 | B186: GRASIM | C186: 1739.4 | D186: 1736.88 | E186: 1706.77 | F186: 1674.13 | G186: 1644.02 | H186: 1769.52 | I186: 1799.63 | J186: 1832.27 | K186: 1767 | L186: 1704.25 | M186: 13.34788
A187: 177 | B187: GESHIP | C187: 314.65 | D187: 314.78 | E187: 310.67 | F187: 306.68 | G187: 302.57 | H187: 318.77 | I187: 322.88 | J187: 326.87 | K187: 318.9 | L187: 310.8 | M187: 2.28197
A188: 178 | B188: GREAVESCOT | C188: 131.35 | D188: 133.93 | E188: 126.62 | F188: 121.88 | G188: 114.57 | H188: 138.67 | I188: 145.98 | J188: 150.72 | K188: 141.25 | L188: 129.2 | M188: 24.27293
A189: 179 | B189: GRINDWELL | C189: 1595.1 | D189: 1566.45 | E189: 1528.65 | F189: 1462.20 | G189: 1424.40 | H189: 1632.90 | I189: 1670.70 | J189: 1737.15 | K189: 1604.25 | L189: 1500 | M189: 1.21785
A190: 180 | B190: GUJALKALI | C190: 724.75 | D190: 701.62 | E190: 678.48 | F190: 632.22 | G190: 609.08 | H190: 747.88 | I190: 771.02 | J190: 817.28 | K190: 724.75 | L190: 655.35 | M190: 5.88193
A191: 181 | B191: GAEL | C191: 168.3 | D191: 168.30 | E191: 166.00 | F191: 163.70 | G191: 161.40 | H191: 170.60 | I191: 172.90 | J191: 175.20 | K191: 170.6 | L191: 166 | M191: 2.03296
A192: 182 | B192: FLUOROCHEM | C192: 1804.85 | D192: 1809.65 | E192: 1740.35 | F192: 1675.85 | G192: 1606.55 | H192: 1874.15 | I192: 1943.45 | J192: 2007.95 | K192: 1878.95 | L192: 1745.15 | M192: 1.13348
A193: 183 | B193: GUJGASLTD | C193: 595.2 | D193: 591.48 | E193: 584.97 | F193: 574.73 | G193: 568.22 | H193: 601.72 | I193: 608.23 | J193: 618.47 | K193: 598 | L193: 581.25 | M193: 9.34528
A194: 184 | B194: GNFC | C194: 441.45 | D194: 446.30 | E194: 432.80 | F194: 424.15 | G194: 410.65 | H194: 454.95 | I194: 468.45 | J194: 477.10 | K194: 459.8 | L194: 437.65 | M194: 8.26986
A195: 185 | B195: GPPL | C195: 109.65 | D195: 109.85 | E195: 108.05 | F195: 106.45 | G195: 104.65 | H195: 111.45 | I195: 113.25 | J195: 114.85 | K195: 111.65 | L195: 108.25 | M195: 5.16583
A196: 186 | B196: GSFC | C196: 133.3 | D196: 132.08 | E196: 128.17 | F196: 123.03 | G196: 119.12 | H196: 137.22 | I196: 141.13 | J196: 146.27 | K196: 136 | L196: 126.95 | M196: 32.61208
A197: 187 | B197: GSPL | C197: 305.1 | D197: 304.92 | E197: 302.38 | F197: 299.67 | G197: 297.13 | H197: 307.63 | I197: 310.17 | J197: 312.88 | K197: 307.45 | L197: 302.2 | M197: 7.73997
A198: 188 | B198: GULFOILLUB | C198: 593.65 | D198: 594.55 | E198: 569.10 | F198: 544.55 | G198: 519.10 | H198: 619.10 | I198: 644.55 | J198: 669.10 | K198: 620 | L198: 570 | M198: 0.53208
A199: 189 | B199: HEG | C199: 2126.8 | D199: 2086.27 | E199: 2010.53 | F199: 1894.27 | G199: 1818.53 | H199: 2202.53 | I199: 2278.27 | J199: 2394.53 | K199: 2162 | L199: 1970 | M199: 1.89301
A200: 190 | B200: HCLTECH | C200: 1166.8 | D200: 1167.35 | E200: 1152.70 | F200: 1138.60 | G200: 1123.95 | H200: 1181.45 | I200: 1196.10 | J200: 1210.20 | K200: 1182 | L200: 1153.25 | M200: 51.2666
A201: 191 | B201: HDFCAMC | C201: 2736.15 | D201: 2728.58 | E201: 2687.17 | F201: 2638.18 | G201: 2596.77 | H201: 2777.57 | I201: 2818.98 | J201: 2867.97 | K201: 2770 | L201: 2679.6 | M201: 7.7528
A202: 192 | B202: HDFCBANK | C202: 1652.75 | D202: 1657.65 | E202: 1641.45 | F202: 1630.15 | G202: 1613.95 | H202: 1668.95 | I202: 1685.15 | J202: 1696.45 | K202: 1673.85 | L202: 1646.35 | M202: 60.45328
A203: 193 | B203: HDFCLIFE | C203: 690.05 | D203: 689.72 | E203: 684.43 | F203: 678.82 | G203: 673.53 | H203: 695.33 | I203: 700.62 | J203: 706.23 | K203: 695 | L203: 684.1 | M203: 26.16174
A204: 194 | B204: HFCL | C204: 72.85 | D204: 72.10 | E204: 71.35 | F204: 69.85 | G204: 69.10 | H204: 73.60 | I204: 74.35 | J204: 75.85 | K204: 72.85 | L204: 70.6 | M204: 50.90283
A205: 195 | B205: HAPPSTMNDS | C205: 1297.85 | D205: 1274.95 | E205: 1239.90 | F205: 1181.95 | G205: 1146.90 | H205: 1332.90 | I205: 1367.95 | J205: 1425.90 | K205: 1310 | L205: 1217 | M205: 2.29077
A206: 196 | B206: HATSUN | C206: 1332.45 | D206: 1339.15 | E206: 1318.40 | F206: 1304.35 | G206: 1283.60 | H206: 1353.20 | I206: 1373.95 | J206: 1388.00 | K206: 1359.9 | L206: 1325.1 | M206: 0.22067
... 319 more rows

Sheet Bulk Deals
E6: Back To Main Page
A7: Subject : | B7: BULK DEAL | D7: =Main!B10 -> 2021-10-27
A9: Date | B9: Scrip code | C9: Scrip Name | D9: Client Name | E9: Buy / Sell | F9: Quantity Traded | G9: Trade Price / Wt.Avg.trade price | H9: Exchange
A10: 2021-10-26 | B10: 543319 | C10: AAPLUSTRAD | D10: AJAY SINGHAL AND SONS HUF | E10: BUY | F10: 96,000 | G10: 8.39 | H10: BSE
A11: 2021-10-26 | B11: 539570 | C11: ACEWIN | D11: SURESH KUMAR | E11: SELL | F11: 76,800 | G11: 4.32 | H11: BSE
A12: 2021-10-26 | B12: 540146 | C12: ACML | D12: INVICTUS STOCK RESEARCH PRIVATE LIMITED | E12: SELL | F12: 100,000 | G12: 37.9 | H12: BSE
A13: 2021-10-26 | B13: 540718 | C13: AKM | D13: RAHUL ANANTRAI MEHTA | E13: BUY | F13: 18,000 | G13: 22.93 | H13: BSE
A14: 2021-10-26 | B14: 540718 | C14: AKM | D14: RAHUL ANANTRAI MEHTA | E14: SELL | F14: 18,000 | G14: 24.45 | H14: BSE
A15: 2021-10-26 | B15: 540718 | C15: AKM | D15: RAMESHKUMAR HEMRAJ PARMAR | E15: BUY | F15: 42,000 | G15: 24.48 | H15: BSE
A16: 2021-10-26 | B16: 540718 | C16: AKM | D16: MANJU G RANKA | E16: BUY | F16: 120,000 | G16: 24.88 | H16: BSE
A17: 2021-10-26 | B17: 540718 | C17: AKM | D17: MBM BEARINGS (RAJASTHAN) P LTD | E17: SELL | F17: 138,000 | G17: 24.78 | H17: BSE
A18: 2021-10-26 | B18: 540718 | C18: AKM | D18: TVISHA CORPORATE ADVISORS LLP | E18: BUY | F18: 24,000 | G18: 26.6 | H18: BSE
A19: 2021-10-26 | B19: 540718 | C19: AKM | D19: TVISHA CORPORATE ADVISORS LLP | E19: SELL | F19: 6,000 | G19: 23 | H19: BSE
A20: 2021-10-26 | B20: 539304 | C20: CANOPYFIN | D20: RAJESH KUMAR AGARWAL | E20: SELL | F20: 100,000 | G20: 11.05 | H20: BSE
A21: 2021-10-26 | B21: 539304 | C21: CANOPYFIN | D21: VIJAY LALTAPRASAD YADAV | E21: BUY | F21: 71,000 | G21: 11.05 | H21: BSE
A22: 2021-10-26 | B22: 539405 | C22: DITCO | D22: KIRAN MADHUKAR DEVARDEKAR | E22: BUY | F22: 20,000 | G22: 16.95 | H22: BSE
A23: 2021-10-26 | B23: 539405 | C23: DITCO | D23: ANSHUL JAIN | E23: SELL | F23: 30,000 | G23: 16.97 | H23: BSE
A24: 2021-10-26 | B24: 540811 | C24: DML | D24: MANJULA VINOD KOTHARI | E24: BUY | F24: 50,000 | G24: 13.52 | H24: BSE
A25: 2021-10-26 | B25: 531913 | C25: GOPAIST | D25: AJITH PRATHAP MATHEW | E25: SELL | F25: 28,391 | G25: 5.81 | H25: BSE
A26: 2021-10-26 | B26: 541983 | C26: INNOVATIVE | D26: RIKHAV SECURITIES LIMITED | E26: SELL | F26: 145,000 | G26: 6.4 | H26: BSE
A27: 2021-10-26 | B27: 536868 | C27: INTELSOFT | D27: MICRO LOGISTICS INDIA PRIVATE LIMITED | E27: SELL | F27: 99,929 | G27: 52.19 | H27: BSE
A28: 2021-10-26 | B28: 500236 | C28: KANELIND | D28: DHIREN KANAIYALAL THAKKAR | E28: SELL | F28: 250,000 | G28: 5.24 | H28: BSE
A29: 2021-10-26 | B29: 534422 | C29: LOOKS | D29: SHREE KRISHNA SHARANAM FINANCIALS | E29: BUY | F29: 200,000 | G29: 19.4 | H29: BSE
A30: 2021-10-26 | B30: 534422 | C30: LOOKS | D30: TOPGAIN FINANCE PRIVATE LIMITED | E30: BUY | F30: 450,000 | G30: 19.35 | H30: BSE
A31: 2021-10-26 | B31: 523371 | C31: MAWANASUG | D31: M T CORPORATION | E31: BUY | F31: 203,663 | G31: 87.12 | H31: BSE
A32: 2021-10-26 | B32: 523371 | C32: MAWANASUG | D32: M T CORPORATION | E32: SELL | F32: 991 | G32: 90.3 | H32: BSE
A33: 2021-10-26 | B33: 526622 | C33: MFLINDIA | D33: MISTERKAPOORKESHRI | E33: SELL | F33: 1,859,652 | G33: 0.42 | H33: BSE
A34: 2021-10-26 | B34: 539767 | C34: MNIL | D34: MENIKA. | E34: SELL | F34: 39,193 | G34: 12.23 | H34: BSE
A35: 2021-10-26 | B35: 530167 | C35: MONGIPA | D35: MAHENDRA GIRDHARILAL WADHWANI | E35: BUY | F35: 19,572 | G35: 11.57 | H35: BSE
A36: 2021-10-26 | B36: 540080 | C36: NARAYANI | D36: MAHAVEERSOLANKI | E36: SELL | F36: 95,000 | G36: 27.97 | H36: BSE
A37: 2021-10-26 | B37: 543194 | C37: NIRMITEE | D37: ARC FINANCE LIMITED | E37: BUY | F37: 10,500 | G37: 410 | H37: BSE
A38: 2021-10-26 | B38: 543194 | C38: NIRMITEE | D38: RUPESH MANUBHAI SHAH | E38: SELL | F38: 10,500 | G38: 410 | H38: BSE
A39: 2021-10-26 | B39: 543375 | C39: PROMAX | D39: BP EQUITIES PVT. LTD. | E39: SELL | F39: 40,000 | G39: 16.21 | H39: BSE
A40: 2021-10-26 | B40: 543375 | C40: PROMAX | D40: ALPHA LEON ENTERPRISES LLP | E40: SELL | F40: 50,000 | G40: 17.02 | H40: BSE
A41: 2021-10-26 | B41: 530525 | C41: SHEETAL | D41: ALPHA LEON ENTERPRISES LLP | E41: BUY | F41: 10 | G41: 29.82 | H41: BSE
A42: 2021-10-26 | B42: 530525 | C42: SHEETAL | D42: ALPHA LEON ENTERPRISES LLP | E42: SELL | F42: 37,505 | G42: 31.38 | H42: BSE
A43: 2021-10-26 | B43: 542034 | C43: SMGOLD | D43: LINTON TRADERS PRIVATE LIMITED | E43: SELL | F43: 50,725 | G43: 175 | H43: BSE
A44: 2021-10-26 | B44: 539217 | C44: SRESTHA | D44: RUTANSHU BHASKARBHAI VYAS | E44: BUY | F44: 924,661 | G44: 2.56 | H44: BSE
A45: 2021-10-26 | B45: 539217 | C45: SRESTHA | D45: RUTANSHU BHASKARBHAI VYAS | E45: SELL | F45: 444,509 | G45: 2.54 | H45: BSE
A46: 2021-10-26 | B46: 539217 | C46: SRESTHA | D46: RVB BUSINESS CONSULTANCY SERVICES LLP | E46: SELL | F46: 1,621,346 | G46: 2.52 | H46: BSE
A47: 2021-10-26 | B47: 539026 | C47: SSPNFIN | D47: SANTOSH DAULAT PASHTE | E47: BUY | F47: 32,000 | G47: 9.61 | H47: BSE
A48: 2021-10-26 | B48: 539026 | C48: SSPNFIN | D48: SANTOSH DAULAT PASHTE | E48: SELL | F48: 32,000 | G48: 9.78 | H48: BSE
A49: 2021-10-26 | B49: 539026 | C49: SSPNFIN | D49: ESPS FINSERVE PRIVATE LIMITED | E49: BUY | F49: 32,000 | G49: 9.78 | H49: BSE
A50: 2021-10-26 | B50: 539026 | C50: SSPNFIN | D50: HEMANT PARMANAND SINGH | E50: SELL | F50: 32,000 | G50: 9.61 | H50: BSE
A51: 2021-10-26 | B51: 540738 | C51: STL | D51: ARYAMAN BROKING LIMITED | E51: SELL | F51: 87,000 | G51: 45.35 | H51: BSE
A52: 2021-10-26 | B52: 538706 | C52: ULTRACAB | D52: VIJAYBHAI GORDHANBHAI PATEL | E52: SELL | F52: 90,000 | G52: 126.25 | H52: BSE
A53: 2021-10-26 | B53: 532035 | C53: UNISTRMU | D53: RITU NAHAR | E53: SELL | F53: 94,756 | G53: 15.04 | H53: BSE
A54: 2021-10-26 | B54: ALANKIT | C54: Alankit Limited | D54: RS SECURITIES | E54: BUY | F54: 953,934 | G54: 17.53 | H54: NSE
A55: 2021-10-26 | B55: APTECHT | C55: Aptech Limited | D55: XTX MARKETS LLP | E55: BUY | F55: 223,135 | G55: 332.8 | H55: NSE
A56: 2021-10-26 | B56: ARSSINFRA | C56: ARSS Infra Proj. Ltd | D56: DEVKIBEN THARYA BHADRA | E56: BUY | F56: 421,084 | G56: 26.51 | H56: NSE
A57: 2021-10-26 | B57: BEWLTD | C57: BEW Engineering Limited | D57: HARYANA REFRACTORIES PRIVATE LIMITED | E57: BUY | F57: 24,000 | G57: 313.47 | H57: NSE
A58: 2021-10-26 | B58: MAWANASUG | C58: Mawana Sugars Limited | D58: JM FINANCIAL SERVICES LTD | E58: BUY | F58: 232,000 | G58: 87 | H58: NSE
A59: 2021-10-26 | B59: MOKSH | C59: Moksh Ornaments Limited | D59: ANUPAM NARAIN GUPTA | E59: BUY | F59: 276,382 | G59: 34.69 | H59: NSE
A60: 2021-10-26 | B60: NDL | C60: Nandan Denim Limited | D60: CNM FINVEST PRIVATE LIMITED . | E60: BUY | F60: 338,258 | G60: 76.78 | H60: NSE
A61: 2021-10-26 | B61: NECCLTD | C61: North East Carry Corp Ltd | D61: KAPASHI COMMERCIAL LTD | E61: BUY | F61: 400,000 | G61: 19.25 | H61: NSE
A62: 2021-10-26 | B62: PATINTLOG | C62: Patel Integrated Logistic | D62: MANSI SHARES & STOCK ADVISORS PVT LTD | E62: BUY | F62: 157,371 | G62: 24.99 | H62: NSE
A63: 2021-10-26 | B63: SERVOTECH | C63: Servotech Power Sys Ltd. | D63: NIRAJ LALWANI | E63: BUY | F63: 110,000 | G63: 20 | H63: NSE
A64: 2021-10-26 | B64: VISHWARAJ | C64: Vishwaraj Sugar Ind Ltd | D64: OLGA TRADING PRIVATE LIMITED | E64: BUY | F64: 993,159 | G64: 40.75 | H64: NSE
A65: 2021-10-26 | B65: VISHWARAJ | C65: Vishwaraj Sugar Ind Ltd | D65: JILESH NAVIN CHHEDA | E65: BUY | F65: 999,268 | G65: 39.94 | H65: NSE
A66: 2021-10-26 | B66: VISHWARAJ | C66: Vishwaraj Sugar Ind Ltd | D66: JAINAM SHARE CONSULTANTS PRIVATE LIMITED | E66: BUY | F66: 1,140,451 | G66: 38.53 | H66: NSE
A67: 2021-10-26 | B67: ALANKIT | C67: Alankit Limited | D67: RS SECURITIES | E67: SELL | F67: 851,521 | G67: 17.5 | H67: NSE
A68: 2021-10-26 | B68: APTECHT | C68: Aptech Limited | D68: XTX MARKETS LLP | E68: SELL | F68: 217,209 | G68: 333.28 | H68: NSE
A69: 2021-10-26 | B69: ARSSINFRA | C69: ARSS Infra Proj. Ltd | D69: MANISHA JITENDRA BHADRA | E69: SELL | F69: 300,000 | G69: 26.5 | H69: NSE
A70: 2021-10-26 | B70: MOKSH | C70: Moksh Ornaments Limited | D70: ANUPAM NARAIN GUPTA | E70: SELL | F70: 165,751 | G70: 34.57 | H70: NSE
A71: 2021-10-26 | B71: NDL | C71: Nandan Denim Limited | D71: CNM FINVEST PRIVATE LIMITED . | E71: SELL | F71: 317,829 | G71: 76.94 | H71: NSE
A72: 2021-10-26 | B72: SCAPDVR | C72: Stampede Capital Limited | D72: ANOOP KAPOOR | E72: SELL | F72: 313,774 | G72: 10.05 | H72: NSE
A73: 2021-10-26 | B73: VISHWARAJ | C73: Vishwaraj Sugar Ind Ltd | D73: JAINAM SHARE CONSULTANTS PRIVATE LIMITED | E73: SELL | F73: 1,140,451 | G73: 39.47 | H73: NSE
A74: 2021-10-26 | B74: VISHWARAJ | C74: Vishwaraj Sugar Ind Ltd | D74: JILESH NAVIN CHHEDA | E74: SELL | F74: 981,083 | G74: 38.87 | H74: NSE
A75: 2021-10-26 | B75: VISHWARAJ | C75: Vishwaraj Sugar Ind Ltd | D75: OLGA TRADING PRIVATE LIMITED | E75: SELL | F75: 993,159 | G75: 39.48 | H75: NSE

Sheet Call Tracker (Equity & F&O)
M5: Back To Main Page
A6: Retail Research Technical Calls & Fundamental Performance Report for the month of Oct-2021
M7: =Main!B10 -> 2021-10-27
B8: Positional Call
A9: Sr.no | B9: Date | D9: Company | E9: Rec | F9: Rec Price | G9: Stop Loss*** | H9: Call Closed At | I9: Target | J9: Remark | K9: Profit / Loss per Share | L9: All charges | M9: Net Gain / Loss % | N9: Status | O9: Closed Date | P9: Market Closing Price
A10: 1 | B10: 2021-09-15 | D10: AKZOINDIA | E10: Buy | F10: 2195 | G10: 2080 | H10: 2,295.00 | I10: 2400-2500 | J10: Part Profit of Rs.100/- | K10: =H10-F10 -> 100 | L10: =(F10*-0.7)/100 -> -15.37 | M10: =(K10+L10)/F10 -> 3.86% | N10: Successful | O10: 2021-09-30 | P10: =VLOOKUP(D10,'MidCap Intra'!B11:C504,2,0) -> 2093.6 | R10: H
A11: 2 | B11: 2021-09-21 | D11: GLAXO | E11: Buy | F11: 1500-1520 | G11: 1395 | I11: 1680-1720 | J11: Open | P11: =VLOOKUP(D11,'MidCap Intra'!B13:C506,2,0) -> 1462.4 | R11: H
A12: 3 | B12: 2021-09-24 | D12: JKCEMENT | E12: Buy | F12: 3130 | G12: 2920 | H12: 3,320.00 | I12: 3500-3600 | J12: Profit of Rs.190-/- | K12: =H12-F12 -> 190 | L12: =(F12*-0.7)/100 -> -21.91 | M12: =(K12+L12)/F12 -> 5.37% | N12: Successful | O12: 2021-10-04 | R12: H
A13: 4 | B13: 2021-09-27 | D13: IGL | E13: Buy | F13: 527.5 | G13: 495 | H13: 495.00 | I13: 580-600 | J13: Loss of Rs.32.5/- | K13: -32.5 | L13: -3.69 | M13: -6.86% | N13: Unsuccessful | O13: 2021-10-22 | R13: H
A14: 5 | B14: 2021-09-27 | D14: CROMPTON | E14: Buy | F14: 472.5 | G14: 445 | H14: 503.00 | I14: 530 | J14: Profit of Rs.30.5/- | K14: =H14-F14 -> 30.5 | L14: =(F14*-0.7)/100 -> -3.31 | M14: =(K14+L14)/F14 -> 5.76% | N14: Successful | O14: 2021-10-01 | R14: H
A15: 6 | B15: 2021-09-27 | D15: DALBHARAT | E15: Buy | F15: 2040 | G15: 1895 | H15: =(2155+1895)/2 -> 2,025.00 | I15: 2300-2400 | J15: Loss of Rs.15/- | K15: -15 | L15: -14.28 | M15: -1.44% | N15: Unsuccessful | O15: 2021-10-25 | R15: N
A16: 7 | B16: 2021-09-27 | D16: ENDURANCE | E16: Buy | F16: 1580 | G16: 1490 | H16: 1,685.00 | I16: 1750-1800 | J16: Profit of Rs.105/- | K16: =H16-F16 -> 105 | L16: =(F16*-0.7)/100 -> -11.06 | M16: =(K16+L16)/F16 -> 5.95% | N16: Successful | O16: 2021-10-12 | R16: H
A17: 8 | B17: 2021-09-29 | D17: CAMS | E17: Buy | F17: 3270 | G17: 3140 | H17: 3,025.00 | I17: 3600-3700 | J17: Loss of Rs.245/- | K17: =H17-F17 -> -245 | L17: =(F17*-0.7)/100 -> -22.89 | M17: =(K17+L17)/F17 -> -8.19% | N17: Unsuccessful | O17: 2021-10-01 | R17: H
A18: 9 | B18: 2021-09-29 | D18: INDIACEM | E18: Buy | F18: 191.5 | G18: 178 | H18: 204.50 | I18: 210 | J18: Profit of Rs.13/- | K18: =H18-F18 -> 13 | L18: =(F18*-0.7)/100 -> -1.34 | M18: =(K18+L18)/F18 -> 6.09% | N18: Successful | O18: 2021-10-01 | R18: N
A19: 10 | B19: 2021-10-04 | D19: PIIND | E19: Buy | F19: 3120 | G19: 2980 | H19: 3,315.00 | I19: 3350-3400 | J19: Profit of Rs.195/- | K19: =H19-F19 -> 195 | L19: =(F19*-0.7)/100 -> -21.84 | M19: =(K19+L19)/F19 -> 5.55% | N19: Successful | O19: 2021-10-08 | R19: H
A20: 11 | B20: 2021-10-05 | D20: HDFCLIFE | E20: Buy | F20: 715-725 | G20: 660 | I20: 820-850 | J20: Open | P20: =VLOOKUP(D20,'MidCap Intra'!B22:C521,2,0) -> 690.05 | R20: H
A21: 12 | B21: 2021-10-05 | D21: SUDARSCHEM | E21: Buy | F21: 675 | G21: 619 | H21: =(615+708.5)/2 -> 661.75 | I21: 780-800 | J21: Loss of Rs.13.25/- | K21: =H21-F21 -> -13.25 | L21: =(F21*-0.7)/100 -> -4.73 | M21: =(K21+L21)/F21 -> -2.66% | N21: Unsuccessful | O21: 2021-10-21 | R21: H
A22: 13 | B22: 2021-10-06 | D22: ITC | E22: Buy | F22: 231.5 | G22: 216 | H22: 259.50 | I22: 260-270 | J22: Profit of Rs.28/- | K22: =H22-F22 -> 28 | L22: =(F22*-0.7)/100 -> -1.62 | M22: =(K22+L22)/F22 -> 11.40% | N22: Successful | O22: 2021-10-14 | R22: H
A23: 14 | B23: 2021-10-08 | D23: BRITANNIA | E23: Buy | F23: 3850-3890 | G23: 3670 | I23: 4200-4300 | J23: Open | P23: =VLOOKUP(D23,'MidCap Intra'!B25:C515,2,0) -> 3692.8 | R23: H
A24: 15 | B24: 2021-10-11 | D24: ULTRACEMCO | E24: Buy | F24: 7300-7360 | G24: 6980 | I24: 7700-8000 | J24: Open | P24: =VLOOKUP(D24,'MidCap Intra'!B26:C515,2,0) -> 7269.1 | R24: H
A25: 16 | B25: 2021-10-18 | D25: SUMICHEM | E25: Buy | F25: 411.5 | G25: 387 | H25: 387.00 | I25: 435-455 | J25: Loss of Rs.24.5/- | K25: =H25-F25 -> -24.5 | L25: =(F25*-0.7)/100 -> -2.88 | M25: =(K25+L25)/F25 -> -6.65% | N25: Unsuccessful | O25: 2021-10-25 | R25: H
A26: 17 | B26: 2021-10-21 | D26: LAURUSLABS | E26: Buy | F26: 590 | G26: 549 | H26: 549.00 | I26: 645-675 | J26: Loss of Rs.41/- | K26: =H26-F26 -> -41 | L26: =(F26*-0.7)/100 -> -4.13 | M26: =(K26+L26)/F26 -> -7.65% | N26: Unsuccessful | O26: 2021-10-22 | R26: H
A27: 18 | B27: 2021-10-26 | D27: ICICIGI | E27: Buy | F27: 1480-1500 | G27: 1395 | I27: 1600-1700 | J27: Open
A32: CLBS = Closing Basis ***
A33: Dividend adjusted <> | F33: Reinitiated $
A34: Part book {} | F34: Revised stoploss #
B36: Momentum Call
A37: Sr.no | B37: Date | D37: Company | E37: Rec | F37: Rec Price | G37: Stop Loss | H37: Call Closed At | I37: Target | J37: Remark | K37: Profit / Loss per Share/Lot | L37: All charges | M37: Net Gain / Loss % | N37: Status | O37: Closed Date
A38: 1 | B38: 2021-09-23 | D38: COLPAL | E38: Buy | F38: 1707 | G38: 1670 | H38: 1709 | I38: 1760-1780 | J38: Profit of Rs.2/- | K38: =H38-F38 -> 2 | L38: =(F38*-0.7)/100 -> -11.95 | M38: =(K38+L38)/F38 -> -0.58% | N38: Successful | O38: 2021-10-11 | R38: H
A39: 2 | B39: 2021-10-01 | D39: SUNPHARMA | E39: Buy | F39: 822 | G39: 797 | H39: 842 | I39: 850-860 | J39: Profit of Rs.20/- | K39: 20 | L39: =(F39*-0.7)/100 -> -5.75 | M39: 1.73% | N39: Successful | O39: 2021-10-12 | R39: H
A40: 3 | B40: 2021-10-01 | D40: DHANUKA | E40: Buy | F40: 814 | G40: 794 | H40: 832.5 | I40: 845-855 | J40: Profit of Rs.18.5/- | K40: =H40-F40 -> 18.5 | L40: =(F40*-0.7)/100 -> -5.70 | M40: =(K40+L40)/F40 -> 1.57% | N40: Successful | O40: 2021-10-06 | R40: H
A41: 4 | B41: 2021-10-01 | D41: BANKINDIA | E41: Buy | F41: 54.95 | G41: 53 | H41: 56.2 | I41: 58-59 | J41: Profit of Rs.1.25/- | K41: =H41-F41 -> 1.25 | L41: =(F41*-0.07)/100 -> -0.04 | M41: =(K41+L41)/F41 -> 2.20% | N41: Successful | O41: 2021-10-01 | R41: H
A42: 5 | B42: 2021-10-05 | D42: TATACONSUM | E42: Buy | F42: 809.5 | G42: 788 | H42: 830 | I42: 840-850 | J42: Profit of Rs.20.5/- | K42: 20.5 | L42: =(F42*-0.7)/100 -> -5.67 | M42: 1.83% | N42: Successful | O42: 2021-10-06 | R42: H
A43: 6 | B43: 2021-10-05 | D43: BRITANNIA | E43: Buy | F43: 3890 | G43: 3770 | H43: 3992.5 | I43: 4050-4100 | J43: Profit of Rs.102.5/- | K43: 102.5 | L43: =(F43*-0.7)/100 -> -27.23 | M43: 1.93% | N43: Successful | O43: 2021-10-06 | R43: H
A44: 7 | B44: 2021-10-05 | D44: INDIAGLYCO | E44: Buy | F44: 985.5 | G44: 960 | H44: 998 | I44: 1020 | J44: Profit of Rs.12.5/- | K44: =H44-F44 -> 12.5 | L44: =(F44*-0.07)/100 -> -0.69 | M44: =(K44+L44)/F44 -> 1.20% | N44: Successful | O44: 2021-10-05 | R44: N
A45: 8 | B45: 2021-10-07 | D45: MIDHANI | E45: Buy | F45: 192.5 | G45: 186 | H45: 197.25 | I45: 200-203 | J45: Profit of Rs.4.75/- | K45: =H45-F45 -> 4.75 | L45: =(F45*-0.07)/100 -> -0.13 | M45: =(K45+L45)/F45 -> 2.40% | N45: Successful | O45: 2021-10-07 | R45: N
A46: 9 | B46: 2021-10-07 | D46: JBCHEPHARM | E46: Buy | F46: 1804 | G46: 1745 | H46: 1745 | I46: 1880-1900 | J46: Loss of Rs.59/- | K46: -59 | L46: =(F46*-0.7)/100 -> -12.63 | M46: -3.97% | N46: Unsuccessful | O46: 2021-10-21 | R46: H
A47: 10 | B47: 2021-10-08 | D47: SUMICHEM | E47: Buy | F47: 410.5 | G47: 399 | H47: 423 | I47: 425-435 | J47: Profit of Rs.12.5/- | K47: =H47-F47 -> 12.5 | L47: =(F47*-0.7)/100 -> -2.87 | M47: =(K47+L47)/F47 -> 2.35% | N47: Successful | O47: 2021-10-12 | R47: H
A48: 11 | B48: 2021-10-08 | D48: DHANUKA | E48: Buy | F48: 808 | G48: 788 | H48: 821.5 | I48: 830-840 | J48: Profit of Rs.13.5/- | K48: =H48-F48 -> 13.5 | L48: =(F48*-0.07)/100 -> -0.57 | M48: =(K48+L48)/F48 -> 1.60% | N48: Successful | O48: 2021-10-07 | R48: H
A49: 12 | B49: 2021-10-11 | D49: AEGISCHEM | E49: Buy | F49: 237 | G49: 230 | H49: 244.5 | I49: 244-248 | J49: Profit of Rs.7.5/- | K49: =H49-F49 -> 7.5 | L49: =(F49*-0.07)/100 -> -0.17 | M49: =(K49+L49)/F49 -> 3.09% | N49: Successful | O49: 2021-10-11 | R49: H
A50: 13 | B50: 2021-10-11 | D50: TATACONSUM | E50: Buy | F50: 813.5 | G50: 790 | H50: 836 | I50: 835-845 | J50: Profit of Rs.22.5/- | K50: 22.5 | L50: =(F50*-0.7)/100 -> -5.69 | M50: 2.07% | N50: Successful | O50: 2021-10-13 | R50: H
A51: 14 | B51: 2021-10-12 | D51: AEGISCHEM | E51: Buy | F51: 236.5 | G51: 230 | H51: 230 | I51: 244-248 | J51: Loss of Rs.6.5/- | K51: -6.5 | L51: =(F51*-0.7)/100 -> -1.66 | M51: -3.45% | N51: Unsuccessful | O51: 2021-10-14 | R51: H
A52: 15 | B52: 2021-10-12 | D52: HIKAL | E52: Buy | F52: 513 | G52: 498 | H52: 498 | I52: 530-540 | J52: Loss of Rs.15/- | K52: =H52-F52 -> -15 | L52: =(F52*-0.7)/100 -> -3.59 | M52: =(K52+L52)/F52 -> -3.62% | N52: Unsuccessful | O52: 2021-10-13 | R52: H
A53: 16 | B53: 2021-10-18 | D53: HDFCBANK | E53: Buy | F53: 1674-1684 | G53: 1638 | I53: 1740-1760 | J53: Open | R53: H
A54: 17 | B54: 2021-10-20 | D54: PIIND | E54: Buy | F54: 3170 | G54: 3070 | H54: 3070 | I54: 3250-3350 | J54: Loss of Rs.100/- | K54: =H54-F54 -> -100 | L54: =(F54*-0.07)/100 -> -2.22 | M54: =(K54+L54)/F54 -> -3.22% | N54: Unsuccessful | O54: 2021-10-20 | R54: H
A55: 18 | B55: 2021-10-22 | D55: HDFC | E55: Buy | F55: 2920-2930 | G55: 2850 | I55: 3020-3050 | J55: Open | R55: H
A56: 19 | B56: 2021-10-26 | D56: TCS | E56: Buy | F56: 3480-3495 | G56: 3390 | I56: 3600-3650 | J56: Open | R56: H
A62: CLBS = Closing Basis *** | H62: *
A63: Dividend adjusted <> | F63: Reinitiated $
F64: Revised stoploss #
A66: Master Trade High Risk
A67: Sr.no | B67: Date | D67: Company | E67: Rec | F67: Rec Price | G67: Stop Loss | H67: Call Closed At | I67: Target | J67: Remark | K67: Profit / Loss per share | L67: All charges | M67: Gain / Loss per Lot | N67: Lot | O67: Status | P67: Closed Date
A68: 1 | B68: 2021-09-30 | D68: HDFCBANK OCT FUT | E68: Buy | F68: 1597.5 | G68: 1575 | H68: 1599 | I68: 1640 | J68: Profit of Rs.1.5/- | K68: =H68-F68 -> 1.5 | L68: =(H68*N68)*0.07% -> 615.62 | M68: =(K68*N68)-L68 -> 209.4 | N68: 550 | O68: Neutral | P68: 2021-10-04 | R68: H
A69: 2 | B69: 2021-09-30 | D69: HDFCLIFE OCT FUT | E69: Buy | F69: 727.5 | G69: 717 | H69: 735 | I69: 745 | J69: Profit of Rs.7.5/- | K69: =H69-F69 -> 7.5 | L69: =(H69*N69)*0.07% -> 565.95 | M69: =(K69*N69)-L69 -> 7684.1 | N69: 1100 | O69: Successful | P69: 2021-10-04 | R69: H
A70: 3 | B70: 2021-10-04 | D70: SBILIFE OCT FUT | E70: Buy | F70: 1229 | G70: 1212 | H70: 1243 | I70: 1260-1270 | J70: Profit of Rs.14/- | K70: =H70-F70 -> 14 | L70: =(H70*N70)*0.07% -> 652.58 | M70: =(K70*N70)-L70 -> 9847.4 | N70: 750 | O70: Successful | P70: 2021-10-04 | R70: N
A71: 4 | B71: 2021-10-04 | D71: INFY OCT FUT | E71: Buy | F71: 1674 | G71: 1650 | H71: 1690 | I71: 1720-1730 | J71: Profit of Rs.16/- | K71: =H71-F71 -> 16 | L71: =(H71*N71)*0.07% -> 709.80 | M71: =(K71*N71)-L71 -> 8890.2 | N71: 600 | O71: Successful | P71: 2021-10-05 | R71: H
A72: 5 | B72: 2021-10-04 | D72: ICICIBANK OCT FUT | E72: Buy | F72: 702 | G72: 690 | H72: 708 | I72: 720-722 | J72: Profit of Rs.6/- | K72: 6 | L72: 681.45 | M72: 7568.6 | N72: 1375 | O72: Successful | P72: 2021-10-06 | R72: N
A73: 6 | B73: 2021-10-04 | D73: TVSMOTOR OCT FUT | E73: Buy | F73: 565.5 | G73: 555 | H73: 555 | I73: 585 | J73: Loss of Rs.10.5/- | K73: -10.5 | L73: 543.90 | M73: -15243.9 | N73: 1400 | O73: Unsuccessful | P73: 2021-10-06 | R73: N
A74: 7 | B74: 2021-10-04 | D74: HDFCBANK OCT FUT | E74: Buy | F74: 1590 | G74: 1568 | H74: 1605.5 | I74: 1620-1630 | J74: Profit of Rs.15.5/- | K74: =H74-F74 -> 15.5 | L74: =(H74*N74)*0.07% -> 618.12 | M74: =(K74*N74)-L74 -> 7906.9 | N74: 550 | O74: Successful | P74: 2021-10-06 | R74: H
A75: 8 | B75: 2021-10-05 | D75: HDFCLIFE OCT FUT | E75: Buy | F75: 726.5 | G75: 715 | H75: 737.5 | I75: 745 | J75: Profit of Rs.11/- | K75: =H75-F75 -> 11 | L75: =(H75*N75)*0.07% -> 567.88 | M75: =(K75*N75)-L75 -> 11532.1 | N75: 1100 | O75: Successful | P75: 2021-10-05 | R75: H
A76: 9 | B76: 2021-10-05 | D76: LT OCT FUT | E76: Buy | F76: 1721 | G76: 1698 | H76: 1737 | I76: 1760-1770 | J76: Profit of Rs.16/- | K76: 16 | L76: 699.14 | M76: 8500.9 | N76: 575 | O76: Successful | P76: 2021-10-06 | R76: N
A77: 10 | B77: 2021-10-06 | D77: SBILIFE OCT FUT | E77: Buy | F77: 1251 | G77: 1232 | H77: 1232 | I77: 1280-1290 | J77: Loss of Rs.19/- | K77: =H77-F77 -> -19 | L77: =(H77*N77)*0.07% -> 646.80 | M77: =(K77*N77)-L77 -> -14896.8 | N77: 750 | O77: Unsuccessful | P77: 2021-10-06 | R77: N
A78: 11 | B78: 2021-10-06 | D78: HINDUNILVR OCT FUT | E78: Buy | F78: 2692.5 | G78: 2650 | H78: 2650 | I78: 2760-2790 | J78: Loss of Rs.42.5/- | K78: =H78-F78 -> -42.5 | L78: =(H78*N78)*0.07% -> 556.50 | M78: =(K78*N78)-L78 -> -13306.5 | N78: 300 | O78: Unsuccessful | P78: 2021-10-06 | R78: N
A79: 12 | B79: 2021-10-06 | D79: BRITANNIA OCT FUT | E79: Buy | F79: 3950 | G79: 3880 | H79: 3890 | I79: 4050-4070 | J79: Loss of Rs.60/- | K79: -60 | L79: 544.60 | M79: -12544.6 | N79: 200 | O79: Unsuccessful | P79: 2021-10-06 | R79: H
A80: 13 | B80: 2021-10-06 | D80: HDFCLIFE OCT FUT | E80: Buy | F80: 726.5 | G80: 715 | H80: 735.5 | I80: 745 | J80: Profit of Rs.9/- | K80: =H80-F80 -> 9 | L80: =(H80*N80)*0.07% -> 566.34 | M80: =(K80*N80)-L80 -> 9333.7 | N80: 1100 | O80: Successful | P80: 2021-10-07 | R80: H
A81: 14 | B81: 2021-10-07 | D81: GRASIM OCT FUT | E81: Buy | F81: 1618 | G81: 1594 | H81: 1619 | I81: 1650-1660 | J81: Profit of Rs.1/- | K81: 1 | L81: 538.32 | M81: -63.3 | N81: 475 | O81: Neutral | P81: 2021-10-04 | R81: N
A82: 15 | B82: 2021-10-07 | D82: ICICIPRULI OCT FUT | E82: Buy | F82: 686.5 | G82: 679 | H82: 679 | I82: 700 | J82: Loss of Rs.7.5/- | K82: =H82-F82 -> -7.5 | L82: =(H82*N82)*0.07% -> 712.95 | M82: =(K82*N82)-L82 -> -11963.0 | N82: 1500 | O82: Unsuccessful | P82: 2021-10-06 | R82: N
A83: 16 | B83: 2021-10-08 | D83: HDFCLIFE OCT FUT | E83: Buy | F83: 726.5 | G83: 715 | H83: 715 | I83: 745 | J83: Loss of Rs.11.5/- | K83: =H83-F83 -> -11.5 | L83: =(H83*N83)*0.07% -> 550.55 | M83: =(K83*N83)-L83 -> -13200.6 | N83: 1100 | O83: Unsuccessful | P83: 2021-10-12 | R83: H
A84: 17 | B84: 2021-10-11 | D84: SIEMENS OCT FUT | E84: Buy | F84: 2235 | G84: 2185 | H84: 2266 | I84: 2280-2320 | J84: Profit of Rs.31/- | K84: 31 | L84: 436.21 | M84: 8088.8 | N84: 275 | O84: Successful | P84: 2021-10-12 | R84: N
A85: 18 | B85: 2021-10-12 | D85: HDFCBANK OCT FUT | E85: Buy | F85: 1631 | G85: 1609 | H85: 1652 | I85: 1660-1670 | J85: Profit of Rs.21/- | K85: 21 | L85: 636.02 | M85: 10914.0 | N85: 550 | O85: Successful | P85: 2021-10-14 | R85: N
A86: 19 | B86: 2021-10-13 | D86: BRITANNIA OCT FUT | E86: Buy | F86: 3880 | G86: 3815 | H86: 3925 | I86: 3950-4000 | J86: Profit of Rs.45/- | K86: 45 | L86: 549.50 | M86: 8450.5 | N86: 200 | O86: Successful | P86: 2021-10-14 | R86: N
A87: 20 | B87: 2021-10-13 | D87: ICICIBANK OCT FUT | E87: Buy | F87: 713 | G87: 702 | H87: 721 | I87: 724-730 | J87: Profit of Rs.8/- | K87: 8 | L87: 693.96 | M87: 10306.0 | N87: 1375 | O87: Successful | P87: 2021-10-14 | R87: N
A88: 21 | B88: 2021-10-14 | D88: AXISBANK OCT FUT | E88: Buy | F88: 794.5 | G88: 783 | H88: 806 | I88: 806-815 | J88: Profit of Rs.11.5/- | K88: =H88-F88 -> 11.5 | L88: =(H88*N88)*0.07% -> 677.04 | M88: =(K88*N88)-L88 -> 13123.0 | N88: 1200 | O88: Successful | P88: 2021-10-14 | R88: N
A89: 22 | B89: 2021-10-14 | D89: HINDUNILVR OCT FUT | E89: Buy | F89: 2642.5 | G89: 2598 | H89: 2677 | I89: 2690-2710 | J89: Profit of Rs.34.5/- | K89: =H89-F89 -> 34.5 | L89: =(H89*N89)*0.07% -> 562.17 | M89: =(K89*N89)-L89 -> 9787.8 | N89: 300 | O89: Successful | P89: 2021-10-19 | R89: H
A90: 23 | B90: 2021-10-14 | D90: HDFC OCT FUT | E90: Buy | F90: 2804 | G90: 2760 | H90: 2836 | I90: 2850-2870 | J90: Profit of Rs.32/- | K90: =H90-F90 -> 32 | L90: =(H90*N90)*0.07% -> 595.56 | M90: =(K90*N90)-L90 -> 9004.4 | N90: 300 | O90: Successful | P90: 2021-10-19 | R90: H
A91: 24 | B91: 2021-10-20 | D91: HINDUNILVR OCT FUT | E91: Buy | F91: 2542.5 | G91: 2498 | H91: 2498 | I91: 2590-2610 | J91: Loss of Rs.44.5/- | K91: -44.5 | L91: 524.58 | M91: -13874.6 | N91: 300 | O91: Unsuccessful | P91: 2021-10-20 | R91: H
A92: 25 | B92: 2021-10-25 | D92: AXISBANK OCT FUT | E92: Buy | F92: 844 | G92: 832 | H92: 832 | I92: 855-865 | J92: Loss of Rs.12/- | K92: -12 | L92: 698.88 | M92: -15098.9 | N92: 1200 | O92: Unsuccessful | P92: 2021-10-26 | R92: N
A93: 26 | B93: 2021-10-26 | D93: HDFCBANK NOV FUT | E93: Buy | F93: 1655-1657 | G93: 1635 | I93: 1685-1695 | J93: Open
A99: Master Trade Medium Risk
A100: Sr.no | B100: Date | D100: Company | E100: Rec | F100: Rec Price | G100: Stop Loss | H100: Call Closed At | I100: Target | J100: Remark | K100: Profit/ Loss per lot | L100: All charges | M100: Gain / Loss per Lot | N100: Lot | O100: Status | P100: Closed Date
A101: 1 | B101: 2021-10-04 | D101: RELIANCE 2600 CE OCT | E101: Buy | F101: 69 | G101: 55 | H101: 79.5 | I101: 90-95 | J101: Profit of Rs.10.5/- | K101: =H101-F101 -> 10.50 | L101: 100.00 | M101: =(K101*N101)-100 -> 2525 | N101: 250 | O101: Successful | P101: 2021-10-06 | R101: H
A102: 2 | B102: 2021-10-04 | D102: BANKNIFTY 37500 PE 07- OCT | E102: Sell | F102: 290 | G102: 444 | H102: 220 | I102: 0.1 | J102: Profit of Rs.70/- | K102: 70.00 | L102: 100.00 | M102: =(K102*N102)-100 -> 1650 | N102: 25 | O102: Successful | P102: 2021-10-05 | R102: H
A103: 3 | B103: 2021-10-06 | D103: RELIANCE 2600 CE OCT | E103: Buy | F103: 65 | G103: 45 | H103: 78 | I103: 90-95 | J103: Profit of Rs.13/- | K103: =H103-F103 -> 13.00 | L103: 100.00 | M103: =(K103*N103)-100 -> 3150 | N103: 250 | O103: Successful | P103: 2021-10-08 | R103: H
A104: 4 | B104: 2021-10-06 | D104: NIFTY 17850 PE 14-OCT | E104: Buy | F104: 152.5 | G104: 17 | H104: 142 | I104: 250-300 | J104: Profit of Rs. 17.5/- | K104: =H104-F104 -> -10.50 | L104: 100.00 | M104: =(17.5*50)-200 -> 675 | N104: 50 | O104: Successful | P104: 2021-10-07 | R104: H
D105: NIFTY 17850 PE 07-OCT | E105: Sell | F105: 70 | H105: 42 | K105: =F105-H105 -> 28.00 | L105: 100.00 | R105: H
A106: 5 | B106: 2021-10-07 | D106: HDFCLIFE 740 CE OCT | E106: Buy | F106: 15 | G106: 10 | H106: 18.5 | I106: 25 | J106: Profit of Rs.3.5/- | K106: =H106-F106 -> 3.50 | L106: 100.00 | M106: =(K106*N106)-100 -> 3750 | N106: 1100 | O106: Successful | P106: 2021-10-07 | R106: H
A107: 6 | B107: 2021-10-07 | D107: NIFTY 17800 PE 14-OCT | E107: Buy | F107: 102.5 | G107: 60 | H107: 121 | I107: 160-180 | J107: Profit of Rs.18.5/- | K107: 18.50 | L107: 100.00 | M107: 825 | N107: 50 | O107: Successful | P107: 2021-10-07 | R107: H
A108: 7 | B108: 2021-10-07 | D108: BANKNIFTY 37700 PE 14-OCT | E108: Buy | F108: 290 | G108: 170 | H108: 335 | I108: 500 | J108: Profit of Rs.45/- | K108: 45.00 | L108: 100.00 | M108: 1025 | N108: 25 | O108: Successful | P108: 2021-10-07 | R108: N
A109: 8 | B109: 2021-10-08 | D109: BANKNIFTY 37500 PE 14-OCT | E109: Buy | F109: 230 | G109: 180 | H109: 185 | I109: 290-340 | J109: Loss of Rs.45/- | K109: -45.00 | L109: 100.00 | M109: -1225 | N109: 25 | O109: Unsuccessful | P109: 2021-10-08 | R109: H
A110: 9 | B110: 2021-10-12 | D110: NIFTY 17950 PE 14-OCT | E110: Buy | F110: 92.5 | G110: 70 | H110: 124 | I110: 120-130 | J110: Profit of Rs.31.5/- | K110: 31.50 | L110: 100.00 | M110: 1475 | N110: 50 | O110: Successful | P110: 2021-10-12 | R110: H
A111: 10 | B111: 2021-10-19 | D111: HINDUNILVR 2560 CE OCT | E111: Buy | F111: 51.5 | G111: 37 | H111: 54.5 | I111: 70-80 | J111: Profit of Rs.3/- | K111: 3.00 | L111: 100.00 | M111: 650 | N111: 250 | O111: Successful | P111: 2021-10-20 | R111: H
A112: 11 | B112: 2021-10-21 | D112: ICICIBANK 760 CE OCT | E112: Buy | F112: 12.5 | G112: 8 | H112: 15.25 | I112: 18-20 | J112: Profit of Rs.2.75/- | K112: =H112-F112 -> 2.75 | L112: 100.00 | M112: =(K112*N112)-100 -> 3681.25 | N112: 1375 | O112: Successful | P112: 2021-10-21 | R112: H
A113: 12 | B113: 2021-10-21 | D113: BANKNIFTY 39800 CE 28-OCT | E113: Buy | F113: 380 | G113: 90 | H113: 530 | I113: 700-800 | J113: Profit of Rs. 125/- | K113: 150.00 | L113: 100.00 | M113: =(125*25)-200 -> 2925 | N113: 25 | O113: Successful | P113: 2021-10-21 | R113: H
D114: BANKNIFTY 39800 CE 21-OCT | E114: Sell | F114: 55 | H114: 80 | K114: =F114-H114 -> -25.00 | L114: 100.00 | R114: H
A115: 13 | B115: 2021-10-22 | D115: ITC 245 CE OCT | E115: Buy | F115: 3 | G115: 1.75 | H115: 1.65 | I115: 4.5-5.5 | J115: Loss of Rs.45/- | K115: =H115-F115 -> -1.35 | L115: 100.00 | M115: =(K115*N115)-100 -> -4420 | N115: 3200 | O115: Unsuccessful | P115: 2021-10-25 | R115: H
A116: 14 | B116: 2021-10-25 | D116: NIFTY 18200 CE OCT | E116: Buy | F116: 70 | G116: 18 | H116: 84 | I116: 120-140 | J116: Profit of Rs.14/- | K116: 14.00 | L116: 100.00 | M116: 600 | N116: 50 | O116: Successful | P116: 2021-10-25 | R116: H
A117: 15 | B117: 2021-10-25 | D117: HDFC 2900 CE OCT | E117: Buy | F117: 27 | G117: 15 | H117: 34.5 | I117: 45-55 | J117: Profit of Rs.7.50/- | K117: =H117-F117 -> 7.50 | L117: 100.00 | M117: =(K117*N117)-100 -> 2150 | N117: 300 | O117: Successful | P117: 2021-10-25 | R117: H
A118: 16 | B118: 2021-10-25 | D118: HDFCBANK 1660 CE OCT | E118: Buy | F118: 12 | G118: 4 | H118: 20.5 | I118: 20-28 | J118: Profit of Rs.8.50/- | K118: 8.50 | L118: 100.00 | M118: 4575 | N118: 550 | O118: Successful | P118: 2021-10-25 | R118: H
A119: 17 | B119: 2021-10-25 | D119: HDFC 2900 CE OCT | E119: Buy | F119: 24 | G119: 10 | H119: 36.5 | I119: 45-55 | J119: Profit of Rs.12.50/- | K119: 12.50 | L119: 100.00 | M119: 3650 | N119: 300 | O119: Successful | P119: 2021-10-25 | R119: H
A129: Techno -Funda (positional)
A130: Sr.no | B130: Date | D130: Company | E130: Rec | F130: Rec Price | G130: Stop Loss*** | H130: Call Closed At | I130: Target | J130: Remark | K130: Profit / Loss per Share/Lot | L130: All charges | M130: Net Gain / Loss % | N130: Status | O130: Closed Date | P130: Market Closing Price
A131: 1 | B131: 2021-08-12 | D131: SHARDACROP | E131: Buy | F131: 314 | G131: 284 | H131: 343.50 | I131: 380-390 | J131: Part profit of Rs.29.5/- | K131: =H131-F131 -> 29.5 | L131: =(F131*-0.7)/100 -> -2.20 | M131: =(K131+L131)/F131 -> 8.69% | N131: Successful | O131: 2021-09-16 | P131: =VLOOKUP(D131,'MidCap Intra'!B170:C663,2,0) -> 318.85 | R131: H
A132: 2 | B132: 2021-10-19 | D132: ITC | E132: Buy | F132: 230-251 | G132: 198 | I132: 320-340 | J132: Open | R132: H
A133: 3 | B133: 2021-10-21 | D133: OFSS | E133: Buy | F133: 4150-4550 | G133: 3700 | I133: 5400-6000 | J133: Open | R133: H
A135: CLBS = Closing Basis *** | F135: Reinitiated $
A136: Dividend adjusted <> | F136: Revised stoploss # | H136: .................
B138: Intrday Call
A139: Sr.no | B139: Date | D139: Company | E139: Rec | F139: Rec Price | G139: Stop Loss | H139: Call Closed At | I139: Target | J139: Remark | K139: Profit / Loss per Share/Lot | L139: Gain / Loss per Lot | M139: Lot | N139: All charges | O139: Net Gain / Loss % | P139: Status | Q139: Closed Date
B152: Investment Idea
A153: Sr.no | B153: Date | D153: Company | E153: Rec | F153: Rec Price | G153: Point of Review | H153: Close Rate | I153: Target | J153: Remark | K153: Profit / Loss per Share | L153: Gain / Loss % | M153: Status | N153: Closed Date
A154: 1 | B154: 2013-11-01 | D154: L&T Finance Holding | E154: Accu | F154: 82.00 | G154: - | H154: 100 | I154: 100.00 | J154: Target Achieved | K154: =H154-F154 -> 18.00 | L154: =K154/F154 -> 21.95% | M154: Successful | N154: 2016-10-14
A155: 2 | B155: 2014-06-04 | D155: Finolex Inds | E155: Buy | F155: 257.00 | G155: - | H155: 300 | I155: 300.00 | J155: Target Achieved | K155: 43.00 | L155: 16.73% | M155: Successful | N155: 2014-07-02
A156: 3 | B156: 2014-07-08 | D156: JK Cement | E156: Buy | F156: 393.00 | G156: - | H156: 468 | I156: 468.00 | J156: Target Achieved | K156: 75.00 | L156: 19.08% | M156: Successful | N156: 2014-08-12
A157: 4 | B157: 2014-08-06 | D157: Finolex Cables | E157: Buy | F157: 205.00 | G157: - | H157: 275 | I157: 250.00 | J157: Target Achieved | K157: 70.00 | L157: 34.15% | M157: Successful | N157: 2014-11-19
A158: 5 | B158: 2014-09-04 | D158: Exide Inds | E158: Buy | F158: 162.00 | G158: - | H158: 190 | I158: 190.00 | J158: Target Achieved | K158: 28.00 | L158: 17.28% | M158: Successful | N158: 2015-01-02
A159: 6 | B159: 2014-09-04 | D159: Deepak Nitrite | E159: Buy | F159: 75.00 | G159: - | H159: 91.5 | I159: 95-100 | J159: Profit of Rs.16.50/- | K159: 16.50 | L159: 22.00% | M159: Successful | N159: 2014-11-11
A160: 7 | B160: 2014-10-01 | D160: Mercks | E160: Buy | F160: 850.00 | G160: - | H160: 982.5 | I160: 1050.00 | J160: Profit of Rs.132.50/- | K160: 132.50 | L160: 15.59% | M160: Successful | N160: 2015-02-04
A161: 8 | B161: 2014-10-01 | D161: Grindwell Norton | E161: Buy | F161: 475.00 | G161: - | H161: 515 | I161: 600.00 | J161: Profit of Rs.40/- | K161: 40.00 | L161: 8.42% | M161: Successful | N161: 2014-10-27
A162: 9 | B162: 2014-10-01 | D162: Snowman Logistics | E162: Buy | F162: 86.00 | G162: - | H162: 99 | I162: 140.00 | J162: Profit of Rs.13.00/- | K162: 13.00 | L162: 15.12% | M162: Successful | N162: 2014-10-27
A163: 10 | B163: 2014-10-14 | D163: Birla Corp | E163: Buy | F163: 496.60 | G163: - | H163: 621 | I163: 580.00 | J163: Target Achieved | K163: 124.40 | L163: 25.05% | M163: Successful | N163: 2016-08-23
A164: 11 | B164: 2014-10-14 | D164: Ultratech Cem | E164: Buy | F164: 2481.90 | G164: - | H164: 2840 | I164: 2870.00 | J164: Profit of Rs.358.10/- | K164: 358.10 | L164: 14.43% | M164: Successful | N164: 2015-01-13
A165: 12 | B165: 2014-10-16 | D165: Sintex Inds | E165: Buy | F165: 84.50 | G165: - | H165: 93 | I165: 110.00 | J165: Profit of Rs.8.50/- | K165: 8.50 | L165: 10.06% | M165: Successful | N165: 2014-10-27
A166: 13 | B166: 2014-10-16 | D166: HSIL | E166: Buy | F166: 401.00 | G166: - | H166: 428 | I166: 450.00 | J166: Profit of Rs.27.00/- | K166: 27.00 | L166: 6.73% | M166: Successful | N166: 2015-01-16
A167: 14 | B167: 2014-10-16 | D167: Eveready Inds | E167: Buy | F167: 101.00 | G167: - | H167: 112 | I167: 120.00 | J167: Profit of Rs.11.00/- | K167: 11.00 | L167: 10.89% | M167: Successful | N167: 2014-10-27
A168: 15 | B168: 2014-11-11 | D168: Pennar Inds | E168: Buy | F168: 59.00 | G168: - | H168: 76 | I168: 76.00 | J168: Target Achieved | K168: 17.00 | L168: 28.81% | M168: Successful | N168: 2017-10-24
A169: 16 | B169: 2014-11-11 | D169: Snowman Logistics | E169: Buy | F169: 99.00 | G169: - | H169: 120 | I169: 120.00 | J169: Profit of Rs.21/- | K169: 21.00 | L169: 21.21% | M169: Successful | N169: 2014-11-17
A170: 17 | B170: 2014-11-13 | D170: Dharamsi Morarji Chem | E170: Buy | F170: 22.00 | G170: - | H170: 33.55 | I170: 32.00 | J170: Profit of Rs 11.55/- | K170: 11.55 | L170: 52.50% | M170: Successful | N170: 2015-07-03
A171: 18 | B171: 2014-12-03 | D171: Tatachem | E171: Buy | F171: 440.00 | G171: - | H171: 520 | I171: 520.00 | J171: Profit of Rs 80.00/- | K171: 80.00 | L171: 18.18% | M171: Successful | N171: 2015-07-23
A172: 19 | B172: 2014-12-03 | D172: Advanta | E172: Buy | F172: 360.00 | G172: - | H172: 427 | I172: 425.00 | J172: Profit of Rs.67.00/- | K172: 67.00 | L172: 18.61% | M172: Successful | N172: 2015-02-23
A173: 20 | B173: 2015-01-08 | D173: GDL | E173: Buy | F173: 360.00 | G173: - | H173: 455 | I173: 420.00 | J173: Profit of Rs.95.00/- | K173: 95.00 | L173: 26.39% | M173: Successful | N173: 2015-01-20
A174: 21 | B174: 2015-01-08 | D174: NRB Bearing | E174: Buy | F174: 130.00 | H174: 175.5 | I174: 165.00 | J174: Profit of Rs 45.50/- | K174: 45.50 | L174: 35.00% | M174: Successful | N174: 2017-12-19
A175: 22 | B175: 2015-02-05 | D175: GSFC | E175: Accu | F175: 98.00 | H175: 120 | I175: 120.00 | J175: Target Achieved | K175: 22.00 | L175: 22.45% | M175: Successful | N175: 2017-01-18
A176: 23 | B176: 2015-02-05 | D176: Sundrmfast | E176: Accu | F176: 196.00 | H176: 262 | I176: 255.00 | J176: Target Achieved | K176: 66.00 | L176: 33.67% | M176: Successful | N176: 2016-08-17
A177: 24 | B177: 2015-03-04 | D177: GPPL | E177: Accu | F177: 235 | H177: 77.00 | I177: 280-285 | J177: Loss of Rs.158/- | K177: -158.00 | L177: -67.23% | M177: Unsuccessful | N177: 2019-02-26
A178: 25 | B178: 2015-03-04 | D178: ORIENTCEM | E178: Accu | F178: 185.00 | H178: 224 | I178: 220-225 | J178: Target Achieved | K178: 39.00 | L178: 21.08% | M178: Successful | N178: 2016-10-04
A179: 26 | B179: 2015-03-27 | D179: PFS | E179: Accu | F179: 49.5 | H179: 15.85 | I179: 67.00 | J179: Loss of Rs.33.65/- | K179: -33.65 | L179: -68% | M179: Unsuccessful | N179: 2019-06-11
A180: 27 | B180: 2015-03-30 | D180: Walchandnagar Ind Ltd | E180: Accu | F180: 183.50 | H180: 219 | I180: 218.00 | J180: Profit of Rs.35.50/- | K180: 35.50 | L180: 19.35% | M180: Successful | N180: 2015-04-09
A181: 28 | B181: 2015-04-20 | D181: Kalpataru Power Transmission Ltd | E181: Accu | F181: =(227+237)/2 -> 232.00 | H181: 298 | I181: 298.00 | J181: Target Achieved | K181: 66.00 | L181: 28.45% | M181: Successful | N181: 2017-03-29
A182: 29 | B182: 2015-05-04 | D182: Mastek Ltd | E182: Buy | F182: 385.00 | H182: =212.5+331 -> 543.5 | I182: 510.00 | J182: Profit of Rs 158.50/- | K182: 158.50 | L182: 41.17% | M182: Successful | N182: 2015-08-19
A183: 30 | B183: 2015-05-04 | D183: Suprajit Eng | E183: Buy | F183: 115.50 | H183: 146 | I183: 142.00 | J183: Profit of Rs 30.50/- | K183: 30.50 | L183: 26.41% | M183: Successful | N183: 2015-07-17
A184: 31 | B184: 2015-05-27 | D184: TCI | E184: Buy | F184: 237.50 | H184: 279.5 | I184: 278.00 | J184: Target Achieved | K184: 42.00 | L184: 17.68% | M184: Successful | N184: 2015-08-06
A185: 32 | B185: 2015-06-19 | D185: HSIL | E185: Accu | F185: 340.00 | H185: 448 | I185: 448.00 | J185: Target Achieved | K185: 108.00 | L185: 31.76% | M185: Successful | N185: 2017-10-10
A186: 33 | B186: 2015-07-06 | D186: Capital First | E186: Accu | F186: 390.00 | H186: 460 | I186: 460.00 | J186: Target Achieved | K186: 70.00 | L186: 17.95% | M186: Successful | N186: 2016-04-18
A187: 34 | B187: 2015-07-10 | D187: Dolphin OffShore | E187: Accu | F187: 122.5 | H187: 61.00 | I187: 172.00 | J187: Loss of Rs.61.50/- | K187: -61.50 | L187: -50.20% | M187: Unsuccessful | N187: 2018-08-21
A188: 35 | B188: 2015-08-03 | D188: Allcargo logistics | E188: Accu | F188: 297.50 | H188: 350 | I188: 360.00 | J188: Profit of Rs 52.50/- | K188: 52.50 | L188: 17.65% | M188: Successful | N188: 2015-08-16
A189: 36 | B189: 2015-08-03 | D189: Camline Fine | E189: Accu | F189: 115.50 | H189: 149 | I189: 140.00 | J189: Profit of Rs 33.50/- | K189: 33.50 | L189: 29.00% | M189: Successful | N189: 2017-01-05
A190: 37 | B190: 2015-09-04 | D190: TCI | E190: Accu | F190: 226.00 | H190: 292 | I190: 292.00 | J190: Target Achieved | K190: 66.00 | L190: 29.20% | M190: Successful | N190: 2015-10-09
A191: 38 | B191: 2015-09-07 | D191: Kalpataru Power Transmission Ltd | E191: Accu | F191: 232.50 | H191: 312.5 | I191: 310.00 | J191: Target Achieved | K191: 80.00 | L191: 34.41% | M191: Successful | N191: 2017-03-29
A192: 39 | B192: 2015-09-21 | D192: LLOYD ELECTRIC & ENG LTD | E192: Accu | F192: 196.50 | H192: 238 | I192: 238.00 | J192: Target Achieved | K192: 41.50 | L192: 21.12% | M192: Successful | N192: 2015-10-14
A193: 40 | B193: 2015-09-24 | D193: L&T Finance Holding | E193: Accu | F193: 65.00 | H193: 82 | I193: 82.00 | J193: Target Achieved | K193: 17.00 | L193: 26.15% | M193: Successful | N193: 2016-07-27
A194: 41 | B194: 2015-10-14 | D194: KEC International ltd | E194: Accu | F194: 144.00 | H194: 182.5 | I194: 181.00 | J194: Target Achieved | K194: 38.50 | L194: 26.74% | M194: Successful | N194: 2017-03-23
A195: 42 | B195: 2015-10-14 | D195: Gruh Finance | E195: Accu | F195: 264.00 | H195: 311 | I195: 311.00 | J195: Target Achieved | K195: 47.00 | L195: 17.80% | M195: Successful | N195: 2016-08-22
A196: 43 | B196: 2015-11-10 | D196: Pidilitind | E196: Buy | F196: 549.50 | H196: 630 | I196: 630.00 | J196: Target Achieved | K196: 80.50 | L196: 14.65% | M196: Successful | N196: 2016-02-19
A197: 44 | B197: 2015-12-04 | D197: Zensar Technology | E197: Accu | F197: 1027.50 | H197: 1315 | I197: 1250.00 | J197: Target Achieved | K197: 287.50 | L197: 27.98% | M197: Successful | N197: 2018-05-24
A198: 45 | B198: 2015-12-29 | D198: Vinati Organics Ltd | E198: Accu | F198: 465.00 | H198: 540 | I198: 540.00 | J198: Target Achieved | K198: 75.00 | L198: 16.13% | M198: Successful | N198: 2016-06-09
A199: 46 | B199: 2016-01-11 | D199: GSFC | E199: Buy | F199: 81.00 | H199: 110 | I199: 110.00 | J199: Target Achieved | K199: 29.00 | L199: 35.80% | M199: Successful | N199: 2017-01-10
A200: 47 | B200: 2016-01-13 | D200: SSWL | E200: Buy | F200: 417.50 | H200: 547 | I200: 535.00 | J200: Target Achieved | K200: 129.50 | L200: 31.02% | M200: Successful | N200: 2016-07-27
A201: 48 | B201: 2016-02-08 | D201: Persistent System Ltd | E201: Accu | F201: 650.00 | H201: 800 | I201: 800.00 | J201: Target Achieved | K201: 150.00 | L201: 23.08% | M201: Successful | N201: 2018-02-23
A202: 49 | B202: 2016-03-04 | D202: UPL | E202: Accu | F202: 437.50 | H202: 504.5 | I202: 522.00 | J202: Profit of Rs.67/- | K202: 67.00 | L202: 15.31% | M202: Successful | N202: 2016-04-20
A203: 50 | B203: 2016-03-09 | D203: Ashoka Buildcon Ltd | E203: Accu | F203: 189.50 | H203: 218 | I203: 218.00 | J203: Target Achieved | K203: 28.50 | L203: 15.04% | M203: Successful | N203: 2017-10-26
A204: 51 | B204: 2016-04-11 | D204: PTC INDIA FIN SERV LTD | E204: Accu | F204: 36.5 | H204: 15.85 | I204: 60.00 | J204: Loss of Rs.20.65/- | K204: -20.65 | L204: -56.58% | M204: Unsuccessful | N204: 2019-06-11
A205: 52 | B205: 2016-04-12 | D205: CAMLINFINE $ | E205: Accu | F205: 93.00 | H205: 149 | I205: 140.00 | J205: Profit of Rs 56/- | K205: 56.00 | L205: 60.22% | M205: Successful | N205: 2017-01-05
A206: 53 | B206: 2016-04-12 | D206: Greaves Cotton Ltd. | E206: Accu | F206: 130.00 | H206: 150 | I206: 150-155 | J206: Target Achieved | K206: 20.00 | L206: 15.38% | M206: Successful | N206: 2016-07-13
A207: 54 | B207: 2016-04-13 | D207: DHFL | E207: Accu | F207: 196.00 | H207: 299 | I207: 299.00 | J207: Target Achieved | K207: 103.00 | L207: 52.55% | M207: Successful | N207: 2016-09-07
A208: 55 | B208: 2016-04-13 | D208: Magma | E208: Accu | F208: 88.00 | H208: 103 | I208: 103.00 | J208: Target Achieved | K208: 15.00 | L208: 17.05% | M208: Successful | N208: 2016-06-09
A209: 56 | B209: 2016-05-02 | D209: KEC International ltd $ | E209: Accu | F209: 127.50 | H209: 148 | I209: 148-150 | J209: Target Achieved | K209: =H209-F209 -> 20.50 | L209: =K209/F209 -> 16.08% | M209: Successful | N209: 2016-07-13
A210: 57 | B210: 2016-05-03 | D210: Mindtree | E210: Accu | F210: 675.00 | H210: 815 | I210: 790-800 | J210: Target Achieved | K210: 140.00 | L210: 20.74% | M210: Successful | N210: 2018-02-23
A211: 58 | B211: 2016-06-01 | D211: Atulauto | E211: Accu | F211: 500 | H211: 232.50 | I211: 565-570 | J211: Loss of Rs.267.50 /- | K211: -267.50 | L211: -53.50% | M211: Unsuccessful | N211: 2019-09-27
A212: 59 | B212: 2016-06-06 | D212: TRITURBINE | E212: Accu | F212: 110.00 | H212: 126.5 | I212: 125.00 | J212: Profit of Rs.16.50/- | K212: 16.50 | L212: 15.00% | M212: Successful | N212: 2016-07-01
A213: 60 | B213: 2016-06-17 | D213: Pennar Industries Ltd | E213: Accu | F213: 44.00 | H213: 69.5 | I213: 69.50 | J213: Profit of Rs.25.50/- | K213: 25.50 | L213: 57.95% | M213: Successful | N213: 2017-08-30
A214: 61 | B214: 2016-06-28 | D214: EVEREADY | E214: Accu | F214: 262.50 | H214: 340 | I214: 333.00 | J214: Profit of Rs.77.50/- | K214: 77.50 | L214: 29.52% | M214: Successful | N214: 2017-10-09
A215: 62 | B215: 2016-06-28 | D215: FIEMIND | E215: Accu | F215: 840.00 | H215: 1230 | I215: 1230.00 | J215: Target Achieved | K215: 390.00 | L215: 46.43% | M215: Successful | N215: 2016-10-06
A216: 63 | B216: 2016-07-05 | D216: Bajaj Corp Ltd | E216: Accu | F216: 395 | H216: =(468.5+342.5)/2 -> 405.50 | I216: 510.00 | J216: Profit of Rs.10.50/- | K216: =H216-F216 -> 10.50 | L216: =K216/F216 -> 3% | M216: Neutral | N216: 2019-05-21
A217: 64 | B217: 2016-08-02 | D217: GPPL $ | E217: Buy | F217: =169.5-12.8 -> 156.7 | H217: 77.00 | I217: 198-200 | J217: Loss of Rs.79.7/- | K217: -79.70 | L217: -50.86% | M217: Unsuccessful | N217: 2019-02-26
A218: 65 | B218: 2016-08-04 | D218: WONDERLA HOLIDAYS LTD | E218: Accu | F218: 400 | H218: 305.00 | I218: 475.00 | J218: Loss of Rs.95/- | K218: -95.00 | L218: -23.75% | M218: Unsuccessful | N218: 2019-05-21
A219: 66 | B219: 2016-08-11 | D219: CAMLINFINE | E219: Accu | F219: 86.50 | H219: 130 | I219: 130.00 | J219: Profit of Rs.43.50/- | K219: 43.50 | L219: 50.29% | M219: Successful | N219: 2017-12-22
A220: 67 | B220: 2016-08-18 | D220: GRANULES | E220: Accu | F220: 133.5 | H220: 126.50 | I220: 178.00 | J220: Exit | K220: -7.00 | L220: -5.24% | M220: Unsuccessful | N220: 2016-09-02
A221: 68 | B221: 2016-08-31 | D221: VA TECH WABAG | E221: Accu | F221: 560.00 | H221: 725 | I221: 725.00 | J221: Target Achieved | K221: 165.00 | L221: 29.46% | M221: Successful | N221: 2016-03-27
A222: 69 | B222: 2016-09-01 | D222: SKIPPER LIMITED | E222: Accu | F222: 160.50 | H222: 210 | I222: 210.00 | J222: Target Achieved | K222: 49.50 | L222: 30.84% | M222: Successful | N222: 2017-05-16
A223: 70 | B223: 2016-10-03 | D223: IFBIND | E223: Accu | F223: 430.00 | H223: 596 | I223: 575.00 | J223: Profit of Rs.166/- | K223: 166.00 | L223: 38.60% | M223: Successful | N223: 2017-02-03
A224: 71 | B224: 2016-10-14 | D224: ASIANTILES | E224: Accu | F224: 280.00 | H224: 345 | I224: 345.00 | J224: Target Achieved | K224: =H224-F224 -> 65.00 | L224: =K224/F224 -> 23.21% | M224: Successful | N224: 2017-03-20
A225: 72 | B225: 2016-10-14 | D225: DEEPIND | E225: Accu | F225: 245.00 | H225: 325.5 | I225: 330.00 | J225: Profit of Rs.80.5/- | K225: 80.50 | L225: 32.86% | M225: Successful | N225: 2017-02-03
A226: 73 | B226: 2016-10-17 | D226: DCBBANK | E226: Accu | F226: 125.00 | H226: 160 | I226: 160.00 | J226: Target Achieved | K226: 35.00 | L226: 28.00% | M226: Successful | N226: 2017-03-09
A227: 74 | B227: 2016-10-17 | D227: ORIENTREF | E227: Accu | F227: 114.00 | H227: 145 | I227: 145.00 | J227: Target Achieved | K227: 31.00 | L227: =K227/F227 -> 27.19% | M227: Successful | N227: 2017-05-04
A228: 75 | B228: 2016-10-17 | D228: GANECOS | E228: Accu | F228: 212.00 | H228: 280 | I228: 276.00 | J228: Profit of Rs.68/- | K228: 68.00 | L228: 32.08% | M228: Successful | N228: 2017-05-03
A229: 76 | B229: 2016-11-04 | D229: NBCC | E229: Accu | F229: 155.00 | H229: 210 | I229: 210.00 | J229: Profit of Rs.55/- | K229: 55.00 | L229: 35.48% | M229: Successful | N229: 2017-07-28
A230: 77 | B230: 2016-12-06 | D230: PRECAM | E230: Accu | F230: 150.5 | H230: 72.50 | I230: 174.00 | J230: Loss of Rs.78/- | K230: -78.00 | L230: -51.83% | M230: Unsuccessful | N230: 2018-08-21
A231: 78 | B231: 2016-12-08 | D231: INFRATEL | E231: Accu | F231: 380.00 | H231: 478 | I231: 468.00 | J231: Target Achieved | K231: =H231-F231 -> 98.00 | L231: =K231/F231 -> 25.79% | M231: Successful | N231: 2017-10-17
A232: 79 | B232: 2016-12-30 | D232: GODREJPROP | E232: Accu | F232: 305.00 | H232: 375 | I232: 375.00 | J232: Target Achieved | K232: 70.00 | L232: 22.95% | M232: Successful | N232: 2017-02-02
A233: 80 | B233: 2017-01-04 | D233: DEEPAKNTR | E233: Accu | F233: 99.50 | H233: 158 | I233: 158.00 | J233: Target Achieved | K233: 58.50 | L233: 58.79% | M233: Successful | N233: 2017-06-12
A234: 81 | B234: 2017-01-04 | D234: DEEPAKNTR | E234: Accu | F234: 99.50 | H234: 158 | I234: 158.00 | J234: Target Achieved | K234: 58.50 | L234: 58.79% | M234: Successful | N234: 2017-06-12
A235: 82 | B235: 2017-02-20 | D235: RECLTD | E235: Accu | F235: 140.50 | H235: 220 | I235: 220.00 | J235: Target Achieved | K235: =H235-F235 -> 79.50 | L235: =K235/F235 -> 56.58% | M235: Successful | N235: 2017-05-09
A236: 83 | B236: 2017-02-20 | D236: SUBROS | E236: Accu | F236: 202.50 | H236: 234 | I236: 234.00 | J236: Target Achieved | K236: 31.50 | L236: 15.56% | M236: Successful | N236: 2017-04-11
A237: 84 | B237: 2017-03-24 | D237: VRLLOG | E237: Accu | F237: 300.50 | H237: 417.5 | I237: 420.00 | J237: Profit of Rs.117/- | K237: =H237-F237 -> 117.00 | L237: =K237/F237 -> 38.94% | M237: Successful | N237: 2017-12-01
A238: 85 | B238: 2017-03-24 | D238: FIEMIND | E238: Accu | F238: 850.00 | H238: 1042.5 | I238: 1023.00 | J238: Profit of Rs 192.50/- | K238: 192.50 | L238: 22.65% | M238: Successful | N238: 2017-04-05
A239: 86 | B239: 2017-04-05 | D239: RATNAMANI | E239: Accu | F239: 785.00 | H239: 930 | I239: 920.00 | J239: Profit of Rs.145/- | K239: =H239-F239 -> 145.00 | L239: =K239/F239 -> 18.47% | M239: Successful | N239: 2017-08-29
A240: 87 | B240: 2017-04-06 | D240: ZEEMEDIA | E240: Accu | F240: 40 | H240: 13.10 | I240: 60.00 | J240: Loss of Rs.26.9/- | K240: -26.90 | L240: -67.25% | M240: Unsuccessful | N240: 2018-02-07
A241: 88 | B241: 2017-04-12 | D241: DABUR | E241: Accu | F241: 289.50 | H241: 354 | I241: 360.00 | J241: Profit of Rs.64.5/- | K241: =H241-F241 -> 64.50 | L241: =K241/F241 -> 22.28% | M241: Successful | N241: 2017-11-01
A242: 89 | B242: 2017-04-20 | D242: KPRMILL | E242: Accu | F242: 700.00 | H242: 840 | I242: 840.00 | J242: Profit of Rs.140/- | K242: 140.00 | L242: 20.00% | M242: Successful | N242: 2017-06-07
A243: 90 | B243: 2017-06-01 | D243: ESSELPACK | E243: Accu | F243: 130.00 | H243: 144.25 | I243: 170.00 | J243: Profit of Rs.14.25/- | K243: 14.25 | L243: 10.96% | M243: Successful | N243: 2019-07-29
... 83 more rows
